Body Name,Body,Organisational unit,Service division,Expenditure category,Date,Transacton number,Net amount,Supplier,Narrative
Tendring DC,http://statistics.data.gov.uk/id/local-authority-district/22UN,Corporate Services,1950 - Transport,3062 - Running Costs - Petrol,23/04/2013,2108562-1,123.34,REDACTED COMMERCIAL CONFIDENTIALITY,REDACTED COMMERCIAL CONFIDENTIALITY
Tendring DC,http://statistics.data.gov.uk/id/local-authority-district/22UN,Corporate Services,1180 - Benefit Fraud Investigation Service Unit,4400 - Maintenance Under Service Agreements,23/04/2013,1051496-1,60,2100055 - Alpha Business Machines,SERVICING OF FAX MACHINE
Tendring DC,http://statistics.data.gov.uk/id/local-authority-district/22UN,Corporate Services,8905 - Parish Precepts,6999 - Parish Precepts,03/04/2013,7104278-0,38393,2100075 - Alresford Parish Council,Parish Council Precepts - First Instalment 2013/14
Tendring DC,http://statistics.data.gov.uk/id/local-authority-district/22UN,Corporate Services,8905 - Parish Precepts,6999 - Parish Precepts,03/04/2013,7104279-2,15175,2100018 - Ardleigh Parish Council,Parish Council Precepts - First Instalment 2013/14
Tendring DC,http://statistics.data.gov.uk/id/local-authority-district/22UN,Corporate Services,1880 - Office Accommodation Expenses,2100 - Building Repairs,03/04/2013,2107908-1,23.99,2100048 - Argos Business Solutions,Argos
Tendring DC,http://statistics.data.gov.uk/id/local-authority-district/22UN,Corporate Services,1320 - Print Unit Service Unit,4302 - External Print Unit Expenses,03/04/2013,1051138-1,213,2100069 - Autoprint,JOB 6271628
Tendring DC,http://statistics.data.gov.uk/id/local-authority-district/22UN,Corporate Services,7100 - Community Health/Safety,4300 - Printing & Stationery,03/04/2013,2107902-1,114.59,2100111 - Banner Business Supplies Ltd,Stationery
Tendring DC,http://statistics.data.gov.uk/id/local-authority-district/22UN,Corporate Services,1100 - Head of Corporate Services and Admin Service Unit,4300 - Printing & Stationery,03/04/2013,2107905-1,204.71,2100111 - Banner Business Supplies Ltd,Banner: Stationery Order
Tendring DC,http://statistics.data.gov.uk/id/local-authority-district/22UN,Corporate Services,1320 - Print Unit Service Unit,4080 - Materials & Consumables,10/04/2013,2108097-1,17.5,2100111 - Banner Business Supplies Ltd,Date Stamp
Tendring DC,http://statistics.data.gov.uk/id/local-authority-district/22UN,Corporate Services,1100 - Head of Corporate Services and Admin Service Unit,4300 - Printing & Stationery,10/04/2013,2108098-1,103.9,2100111 - Banner Business Supplies Ltd,Misc Stationery
Tendring DC,http://statistics.data.gov.uk/id/local-authority-district/22UN,Corporate Services,6580 - Member Support Cost,4300 - Printing & Stationery,23/04/2013,2108557-1,21.94,2100111 - Banner Business Supplies Ltd,Paper & Labels
Tendring DC,http://statistics.data.gov.uk/id/local-authority-district/22UN,Corporate Services,1100 - Head of Corporate Services and Admin Service Unit,4300 - Printing & Stationery,23/04/2013,2108557-2,8.24,2100111 - Banner Business Supplies Ltd,Paper & Labels
Tendring DC,http://statistics.data.gov.uk/id/local-authority-district/22UN,Corporate Services,1100 - Head of Corporate Services and Admin Service Unit,4300 - Printing & Stationery,30/04/2013,2108613-1,7.56,REDACTED PERSONAL DATA,REDACTED PERSONAL DATA
Tendring DC,http://statistics.data.gov.uk/id/local-authority-district/22UN,Corporate Services,1100 - Head of Corporate Services and Admin Service Unit,4300 - Printing & Stationery,30/04/2013,2108614-1,15.46,REDACTED PERSONAL DATA,REDACTED PERSONAL DATA
Tendring DC,http://statistics.data.gov.uk/id/local-authority-district/22UN,Corporate Services,6580 - Member Support Cost,4300 - Printing & Stationery,30/04/2013,2108614-2,29.78,REDACTED PERSONAL DATA,REDACTED PERSONAL DATA
Tendring DC,http://statistics.data.gov.uk/id/local-authority-district/22UN,Corporate Services,6580 - Member Support Cost,4300 - Printing & Stationery,30/04/2013,2108615-1,24.3,REDACTED PERSONAL DATA,REDACTED PERSONAL DATA
Tendring DC,http://statistics.data.gov.uk/id/local-authority-district/22UN,Corporate Services,1100 - Head of Corporate Services and Admin Service Unit,4300 - Printing & Stationery,30/04/2013,2108616-1,7.56,REDACTED PERSONAL DATA,REDACTED PERSONAL DATA
Tendring DC,http://statistics.data.gov.uk/id/local-authority-district/22UN,Corporate Services,1100 - Head of Corporate Services and Admin Service Unit,4300 - Printing & Stationery,30/04/2013,2108617-1,35.61,REDACTED PERSONAL DATA,REDACTED PERSONAL DATA
Tendring DC,http://statistics.data.gov.uk/id/local-authority-district/22UN,Corporate Services,8905 - Parish Precepts,6999 - Parish Precepts,03/04/2013,7104280-0,1600,2100192 - Beaumont Parish Council,Parish Council Precepts - First Instalment 2013/14
Tendring DC,http://statistics.data.gov.uk/id/local-authority-district/22UN,Corporate Services,1880 - Office Accommodation Expenses,2100 - Building Repairs,03/04/2013,7009230-1,1493.76,2112681 - BIRLEM Ltd,BIRLEM
Tendring DC,http://statistics.data.gov.uk/id/local-authority-district/22UN,Corporate Services,9900 - General Fund Balance Sheet,B382 - Rechargeable Works - Other,23/04/2013,1051465-1,3913.1,2100155 - Blue Flame (Colchester) Ltd,217 COPPINS ROAD
Tendring DC,http://statistics.data.gov.uk/id/local-authority-district/22UN,Corporate Services,1200 - Exchequer Service Unit,4753 - Computer - Application Software,16/04/2013,2108190-1,9628.16,2108648 - Bond International Software (UK) Ltd,Maintenance 13/14
Tendring DC,http://statistics.data.gov.uk/id/local-authority-district/22UN,Corporate Services,1200 - Exchequer Service Unit,4753 - Computer - Application Software,30/04/2013,2108829-1,489.5,2100116 - Bottomline Technologies,Paybase 19/9/12 - 18/9/13
Tendring DC,http://statistics.data.gov.uk/id/local-authority-district/22UN,Corporate Services,"1580 - Benefits, Revenues and Customer Contact SU",4753 - Computer - Application Software,30/04/2013,2108829-2,489.5,2100116 - Bottomline Technologies,Paybase 19/9/12 - 18/9/13
Tendring DC,http://statistics.data.gov.uk/id/local-authority-district/22UN,Corporate Services,1200 - Exchequer Service Unit,4753 - Computer - Application Software,30/04/2013,2108830-1,500,2100116 - Bottomline Technologies,C Series Prof Svs
Tendring DC,http://statistics.data.gov.uk/id/local-authority-district/22UN,Corporate Services,"1580 - Benefits, Revenues and Customer Contact SU",4753 - Computer - Application Software,30/04/2013,2108830-2,500,2100116 - Bottomline Technologies,C Series Prof Svs
Tendring DC,http://statistics.data.gov.uk/id/local-authority-district/22UN,Corporate Services,8905 - Parish Precepts,6999 - Parish Precepts,03/04/2013,7104283-2,10000,2100166 - Bradfield Parish Council,Parish Council Precepts - First Instalment 2013/14
Tendring DC,http://statistics.data.gov.uk/id/local-authority-district/22UN,Corporate Services,8905 - Parish Precepts,6999 - Parish Precepts,03/04/2013,7104284-0,78967,2100177 - Brightlingsea Town Council,Parish Council Precepts - First Instalment 2013/14
Tendring DC,http://statistics.data.gov.uk/id/local-authority-district/22UN,Corporate Services,1880 - Office Accommodation Expenses,2304 - Energy Costs - Electricity,03/04/2013,2107909-1,715.46,2100197 - British Gas Trading Ltd,British Gas - Feb 13
Tendring DC,http://statistics.data.gov.uk/id/local-authority-district/22UN,Corporate Services,1860 - Depots General,2304 - Energy Costs - Electricity,03/04/2013,2107909-10,153.72,2100197 - British Gas Trading Ltd,British Gas - Feb 13
Tendring DC,http://statistics.data.gov.uk/id/local-authority-district/22UN,Corporate Services,1880 - Office Accommodation Expenses,2304 - Energy Costs - Electricity,03/04/2013,2107909-11,1210.97,2100197 - British Gas Trading Ltd,British Gas - Feb 13
Tendring DC,http://statistics.data.gov.uk/id/local-authority-district/22UN,Corporate Services,1880 - Office Accommodation Expenses,2304 - Energy Costs - Electricity,03/04/2013,2107909-2,72.29,2100197 - British Gas Trading Ltd,British Gas - Feb 13
Tendring DC,http://statistics.data.gov.uk/id/local-authority-district/22UN,Corporate Services,1880 - Office Accommodation Expenses,2304 - Energy Costs - Electricity,03/04/2013,2107909-3,139.83,2100197 - British Gas Trading Ltd,British Gas - Feb 13
Tendring DC,http://statistics.data.gov.uk/id/local-authority-district/22UN,Corporate Services,1860 - Depots General,2304 - Energy Costs - Electricity,03/04/2013,2107909-4,607.77,2100197 - British Gas Trading Ltd,British Gas - Feb 13
Tendring DC,http://statistics.data.gov.uk/id/local-authority-district/22UN,Corporate Services,1860 - Depots General,2304 - Energy Costs - Electricity,03/04/2013,2107909-5,23.43,2100197 - British Gas Trading Ltd,British Gas - Feb 13
Tendring DC,http://statistics.data.gov.uk/id/local-authority-district/22UN,Corporate Services,1880 - Office Accommodation Expenses,2304 - Energy Costs - Electricity,03/04/2013,2107909-6,257.08,2100197 - British Gas Trading Ltd,British Gas - Feb 13
Tendring DC,http://statistics.data.gov.uk/id/local-authority-district/22UN,Corporate Services,1880 - Office Accommodation Expenses,2304 - Energy Costs - Electricity,03/04/2013,2107909-7,57.76,2100197 - British Gas Trading Ltd,British Gas - Feb 13
Tendring DC,http://statistics.data.gov.uk/id/local-authority-district/22UN,Corporate Services,1880 - Office Accommodation Expenses,2304 - Energy Costs - Electricity,03/04/2013,2107909-8,112.88,2100197 - British Gas Trading Ltd,British Gas - Feb 13
Tendring DC,http://statistics.data.gov.uk/id/local-authority-district/22UN,Corporate Services,1880 - Office Accommodation Expenses,2304 - Energy Costs - Electricity,03/04/2013,2107909-9,1732.31,2100197 - British Gas Trading Ltd,British Gas - Feb 13
Tendring DC,http://statistics.data.gov.uk/id/local-authority-district/22UN,Corporate Services,1760 - IT Direct Service Costs,4715 - Data Communication Charge,03/04/2013,2107840-1,210,2100168 - British Telecommunications plc,BT Internet Services
Tendring DC,http://statistics.data.gov.uk/id/local-authority-district/22UN,Corporate Services,1760 - IT Direct Service Costs,4715 - Data Communication Charge,03/04/2013,2107841-1,54.34,2100168 - British Telecommunications plc,BT - 3525 8827
Tendring DC,http://statistics.data.gov.uk/id/local-authority-district/22UN,Corporate Services,1760 - IT Direct Service Costs,4715 - Data Communication Charge,03/04/2013,2107841-2,13.5,2100168 - British Telecommunications plc,BT - 3525 8827
Tendring DC,http://statistics.data.gov.uk/id/local-authority-district/22UN,Corporate Services,1760 - IT Direct Service Costs,4715 - Data Communication Charge,03/04/2013,2107842-1,54.34,2100168 - British Telecommunications plc,BT - 3526 7071
Tendring DC,http://statistics.data.gov.uk/id/local-authority-district/22UN,Corporate Services,1760 - IT Direct Service Costs,4715 - Data Communication Charge,03/04/2013,2107842-2,13.5,2100168 - British Telecommunications plc,BT - 3526 7071
Tendring DC,http://statistics.data.gov.uk/id/local-authority-district/22UN,Corporate Services,1760 - IT Direct Service Costs,4715 - Data Communication Charge,03/04/2013,2107843-1,54.34,2100168 - British Telecommunications plc,BT - EA 3526 7075
Tendring DC,http://statistics.data.gov.uk/id/local-authority-district/22UN,Corporate Services,1760 - IT Direct Service Costs,4715 - Data Communication Charge,03/04/2013,2107843-2,13.5,2100168 - British Telecommunications plc,BT - EA 3526 7075
Tendring DC,http://statistics.data.gov.uk/id/local-authority-district/22UN,Corporate Services,1760 - IT Direct Service Costs,4715 - Data Communication Charge,03/04/2013,2107844-1,34.41,2100168 - British Telecommunications plc,BT - 01255 223734
Tendring DC,http://statistics.data.gov.uk/id/local-authority-district/22UN,Corporate Services,1760 - IT Direct Service Costs,4715 - Data Communication Charge,16/04/2013,2108194-1,78,2100168 - British Telecommunications plc,BT Acc No 3892 3144
Tendring DC,http://statistics.data.gov.uk/id/local-authority-district/22UN,Corporate Services,1760 - IT Direct Service Costs,4715 - Data Communication Charge,23/04/2013,2108482-1,3159.3,2100168 - British Telecommunications plc,BT - Global Services Contract
Tendring DC,http://statistics.data.gov.uk/id/local-authority-district/22UN,Corporate Services,8150 - Office Cleaning,4080 - Materials & Consumables,03/04/2013,2107912-1,-17.77,2101624 - Bunzl,Bunzl
Tendring DC,http://statistics.data.gov.uk/id/local-authority-district/22UN,Corporate Services,9900 - General Fund Balance Sheet,B879 - Charges made by Merchant Acquirer,08/04/2013,1051516-1,177.48,2100202 - Capita Business Services Ltd,CAPITA MAR 13
Tendring DC,http://statistics.data.gov.uk/id/local-authority-district/22UN,Corporate Services,9900 - General Fund Balance Sheet,B879 - Charges made by Merchant Acquirer,08/04/2013,1051516-2,629.99,2100202 - Capita Business Services Ltd,CAPITA MAR 13
Tendring DC,http://statistics.data.gov.uk/id/local-authority-district/22UN,Corporate Services,9900 - General Fund Balance Sheet,B879 - Charges made by Merchant Acquirer,08/04/2013,1051516-3,37.62,2100202 - Capita Business Services Ltd,CAPITA MAR 13
Tendring DC,http://statistics.data.gov.uk/id/local-authority-district/22UN,Corporate Services,9900 - General Fund Balance Sheet,B879 - Charges made by Merchant Acquirer,08/04/2013,1051516-4,68.92,2100202 - Capita Business Services Ltd,CAPITA MAR 13
Tendring DC,http://statistics.data.gov.uk/id/local-authority-district/22UN,Corporate Services,9900 - General Fund Balance Sheet,B879 - Charges made by Merchant Acquirer,08/04/2013,1051516-5,175.86,2100202 - Capita Business Services Ltd,CAPITA MAR 13
Tendring DC,http://statistics.data.gov.uk/id/local-authority-district/22UN,Corporate Services,9900 - General Fund Balance Sheet,B879 - Charges made by Merchant Acquirer,08/04/2013,1051516-6,640.44,2100202 - Capita Business Services Ltd,CAPITA MAR 13
Tendring DC,http://statistics.data.gov.uk/id/local-authority-district/22UN,Corporate Services,9900 - General Fund Balance Sheet,B879 - Charges made by Merchant Acquirer,08/04/2013,1051516-7,165.6,2100202 - Capita Business Services Ltd,CAPITA MAR 13
Tendring DC,http://statistics.data.gov.uk/id/local-authority-district/22UN,Corporate Services,9900 - General Fund Balance Sheet,B879 - Charges made by Merchant Acquirer,08/04/2013,1051516-8,268.58,2100202 - Capita Business Services Ltd,CAPITA MAR 13
Tendring DC,http://statistics.data.gov.uk/id/local-authority-district/22UN,Corporate Services,1110 - Credit & Debit Card Payment System,4751 - Hardware & Service Maintenance,03/04/2013,7009216-1,782.73,2100202 - Capita Business Services Ltd,PMS 1/4/13-31/3/14
Tendring DC,http://statistics.data.gov.uk/id/local-authority-district/22UN,Corporate Services,1110 - Credit & Debit Card Payment System,4753 - Computer - Application Software,03/04/2013,7009216-2,14702.94,2100202 - Capita Business Services Ltd,PMS 1/4/13-31/3/14
Tendring DC,http://statistics.data.gov.uk/id/local-authority-district/22UN,Corporate Services,"1580 - Benefits, Revenues and Customer Contact SU",4753 - Computer - Application Software,03/04/2013,7009216-3,3514.18,2100202 - Capita Business Services Ltd,PMS 1/4/13-31/3/14
Tendring DC,http://statistics.data.gov.uk/id/local-authority-district/22UN,Corporate Services,6160 - Princes Theatre,4753 - Computer - Application Software,03/04/2013,7009216-4,622.2,2100202 - Capita Business Services Ltd,PMS 1/4/13-31/3/14
Tendring DC,http://statistics.data.gov.uk/id/local-authority-district/22UN,Corporate Services,1180 - Benefit Fraud Investigation Service Unit,5500 - Miscellaneous Expenses,16/04/2013,1051334-1,24,2100265 - Child Poverty Action Group,CPAG-POSTERS
Tendring DC,http://statistics.data.gov.uk/id/local-authority-district/22UN,Corporate Services,1120 - Accountancy Service Unit,4880 - Subscriptions Paid,16/04/2013,2108335-1,2420,REDACTED PERSONAL DATA,REDACTED PERSONAL DATA
Tendring DC,http://statistics.data.gov.uk/id/local-authority-district/22UN,Corporate Services,1140 - Audit Services Service Unit,4355 - Books & Periodicals,23/04/2013,2108341-1,253.75,2109394 - CIPFA Business Ltd,New Internal Audit Standards CD
Tendring DC,http://statistics.data.gov.uk/id/local-authority-district/22UN,Corporate Services,1220 - Finance and Procurement Manager Service Unit,1700 - Training - Courses,30/04/2013,2108731-1,295,2109394 - CIPFA Business Ltd,28/2/13 Social Value
Tendring DC,http://statistics.data.gov.uk/id/local-authority-district/22UN,Corporate Services,1760 - IT Direct Service Costs,4715 - Data Communication Charge,03/04/2013,2107845-1,2960.8,2111235 - CityFibre Networks Ltd,Annual Rental 13/14
Tendring DC,http://statistics.data.gov.uk/id/local-authority-district/22UN,Corporate Services,9900 - General Fund Balance Sheet,B382 - Rechargeable Works - Other,23/04/2013,1051585-1,390,REDACTED COMMERCIAL CONFIDENTIALITY,REDACTED COMMERCIAL CONFIDENTIALITY
Tendring DC,http://statistics.data.gov.uk/id/local-authority-district/22UN,Corporate Services,9900 - General Fund Balance Sheet,B382 - Rechargeable Works - Other,23/04/2013,1051585-2,-390,REDACTED COMMERCIAL CONFIDENTIALITY,REDACTED COMMERCIAL CONFIDENTIALITY
Tendring DC,http://statistics.data.gov.uk/id/local-authority-district/22UN,Corporate Services,6640 - Treasury Management,5192 - Brokerage,02/04/2013,1051513-1,63,2100269 - Co operative Bank plc,FD MAR 2013
Tendring DC,http://statistics.data.gov.uk/id/local-authority-district/22UN,Corporate Services,6620 - Corporate Management - General,5190 - Bank Commission Charges,02/04/2013,1051513-2,221,2100269 - Co operative Bank plc,FD MAR 2013
Tendring DC,http://statistics.data.gov.uk/id/local-authority-district/22UN,Corporate Services,1560 - Cashiers Service Unit,5186 - Paypoint/post office charges,02/04/2013,1051513-3,561.6,2100269 - Co operative Bank plc,FD MAR 2013
Tendring DC,http://statistics.data.gov.uk/id/local-authority-district/22UN,Corporate Services,1560 - Cashiers Service Unit,5186 - Paypoint/post office charges,02/04/2013,1051513-4,1605.12,2100269 - Co operative Bank plc,FD MAR 2013
Tendring DC,http://statistics.data.gov.uk/id/local-authority-district/22UN,Corporate Services,1815 - Personnel and Human Resources Issues,1720 - Training - Equality & Diversity,01/04/2013,1051514-1,8.09,2100269 - Co operative Bank plc,KLN VISA APR 13
Tendring DC,http://statistics.data.gov.uk/id/local-authority-district/22UN,Corporate Services,6620 - Corporate Management - General,5190 - Bank Commission Charges,01/04/2013,1051514-2,2,2100269 - Co operative Bank plc,KLN VISA APR 13
Tendring DC,http://statistics.data.gov.uk/id/local-authority-district/22UN,Corporate Services,9900 - General Fund Balance Sheet,B382 - Rechargeable Works - Other,10/04/2013,2108125-1,2050,2112228 - Colchester Borough Council,Colchester BC 3 Projects Funding
Tendring DC,http://statistics.data.gov.uk/id/local-authority-district/22UN,Corporate Services,1800 - Qualification and Other Training,1700 - Training - Courses,03/04/2013,1051179-1,2900,2101953 - Colchester Institute Enterprises Ltd,POST GRADUATE DIP MGMT
Tendring DC,http://statistics.data.gov.uk/id/local-authority-district/22UN,Corporate Services,1800 - Qualification and Other Training,1700 - Training - Courses,03/04/2013,1051180-1,2900,2101953 - Colchester Institute Enterprises Ltd,POST GRADUATE DIP MGMT
Tendring DC,http://statistics.data.gov.uk/id/local-authority-district/22UN,Corporate Services,6460 - Career Track,4688 - Career Track Exam Fees,03/04/2013,1051207-1,22,REDACTED PERSONAL DATA,REDACTED PERSONAL DATA
Tendring DC,http://statistics.data.gov.uk/id/local-authority-district/22UN,Corporate Services,6460 - Career Track,4688 - Career Track Exam Fees,23/04/2013,2108469-1,22,REDACTED PERSONAL DATA,REDACTED PERSONAL DATA
Tendring DC,http://statistics.data.gov.uk/id/local-authority-district/22UN,Corporate Services,6460 - Career Track,4688 - Career Track Exam Fees,23/04/2013,2108470-1,22,REDACTED PERSONAL DATA,REDACTED PERSONAL DATA
Tendring DC,http://statistics.data.gov.uk/id/local-authority-district/22UN,Corporate Services,6460 - Career Track,4688 - Career Track Exam Fees,03/04/2013,7009214-1,22,2103095 - Council for Administration,CFA CERTIFICATE
Tendring DC,http://statistics.data.gov.uk/id/local-authority-district/22UN,Corporate Services,6460 - Career Track,4688 - Career Track Exam Fees,03/04/2013,7009215-1,22,2103095 - Council for Administration,CFA CERTIFICATES
Tendring DC,http://statistics.data.gov.uk/id/local-authority-district/22UN,Corporate Services,1760 - IT Direct Service Costs,4715 - Data Communication Charge,23/04/2013,2108483-1,5830,2106704 - Daisy Communications Ltd,Daisy - Service Charges
Tendring DC,http://statistics.data.gov.uk/id/local-authority-district/22UN,Corporate Services,1880 - Office Accommodation Expenses,2100 - Building Repairs,03/04/2013,2107894-1,175.5,2108384 - DC Drains & Plumbing Services,DC Drains
Tendring DC,http://statistics.data.gov.uk/id/local-authority-district/22UN,Corporate Services,1880 - Office Accommodation Expenses,2100 - Building Repairs,03/04/2013,2107895-1,139.24,2108384 - DC Drains & Plumbing Services,DC Drains
Tendring DC,http://statistics.data.gov.uk/id/local-authority-district/22UN,Corporate Services,1880 - Office Accommodation Expenses,2100 - Building Repairs,03/04/2013,2107895-2,139.24,2108384 - DC Drains & Plumbing Services,DC Drains
Tendring DC,http://statistics.data.gov.uk/id/local-authority-district/22UN,Corporate Services,1880 - Office Accommodation Expenses,2100 - Building Repairs,03/04/2013,7009225-1,78,2108384 - DC Drains & Plumbing Services,DC DRAINS
Tendring DC,http://statistics.data.gov.uk/id/local-authority-district/22UN,Corporate Services,1880 - Office Accommodation Expenses,2100 - Building Repairs,03/04/2013,7009226-1,78,2108384 - DC Drains & Plumbing Services,dc drains
Tendring DC,http://statistics.data.gov.uk/id/local-authority-district/22UN,Corporate Services,1760 - IT Direct Service Costs,4753 - Computer - Application Software,23/04/2013,2108481-1,580.32,2102545 - Dell Corporation Ltd,DELL - Latitude 10
Tendring DC,http://statistics.data.gov.uk/id/local-authority-district/22UN,Corporate Services,7300 - Licencing,4080 - Materials & Consumables,10/04/2013,2108096-1,300,2112039 - Diamond People Ltd,Diamond System
Tendring DC,http://statistics.data.gov.uk/id/local-authority-district/22UN,Corporate Services,1760 - IT Direct Service Costs,4715 - Data Communication Charge,10/04/2013,2108138-1,530,2106376 - Dolphin Computer Access Ltd,Dolphin: Screen Reader Lic
Tendring DC,http://statistics.data.gov.uk/id/local-authority-district/22UN,Corporate Services,6460 - Career Track,4688 - Career Track Exam Fees,03/04/2013,1051208-1,14.5,REDACTED PERSONAL DATA,REDACTED PERSONAL DATA
Tendring DC,http://statistics.data.gov.uk/id/local-authority-district/22UN,Corporate Services,6460 - Career Track,4688 - Career Track Exam Fees,03/04/2013,2107965-1,85,2100425 - EDI,EDI Business Admin
Tendring DC,http://statistics.data.gov.uk/id/local-authority-district/22UN,Corporate Services,6460 - Career Track,4688 - Career Track Exam Fees,03/04/2013,2107966-1,14.5,2100425 - EDI,EDI Functional Skills
Tendring DC,http://statistics.data.gov.uk/id/local-authority-district/22UN,Corporate Services,6460 - Career Track,4688 - Career Track Exam Fees,23/04/2013,2108360-1,14.5,REDACTED PERSONAL DATA,REDACTED PERSONAL DATA
Tendring DC,http://statistics.data.gov.uk/id/local-authority-district/22UN,Corporate Services,1815 - Personnel and Human Resources Issues,4460 - Legal & Professional Expenses,03/04/2013,1051196-1,250,2100406 - Ellisons,COMPROMISE AGREEMENT
Tendring DC,http://statistics.data.gov.uk/id/local-authority-district/22UN,Corporate Services,1815 - Personnel and Human Resources Issues,4460 - Legal & Professional Expenses,16/04/2013,2108196-1,250,2100406 - Ellisons,Compromise Agreement
Tendring DC,http://statistics.data.gov.uk/id/local-authority-district/22UN,Corporate Services,8905 - Parish Precepts,6999 - Parish Precepts,03/04/2013,7104288-0,14994,2101558 - Elmstead Parish Council,Parish Council Precepts - First Instalment 2013/14
Tendring DC,http://statistics.data.gov.uk/id/local-authority-district/22UN,Corporate Services,1090 - Chief Executive and Support Service Unit,4355 - Books & Periodicals,03/04/2013,2107968-1,179,2111896 - Emap Ltd,LGC Renewal
Tendring DC,http://statistics.data.gov.uk/id/local-authority-district/22UN,Corporate Services,1300 - Legal Services Service Unit,4503 - Consultants Fees - Counsels Fees,23/04/2013,1051495-1,34,2100498 - Essex County Council,PLP WORK MARCH 13
Tendring DC,http://statistics.data.gov.uk/id/local-authority-district/22UN,Corporate Services,9900 - General Fund Balance Sheet,B382 - Rechargeable Works - Other,03/04/2013,2107891-1,8450,2100498 - Essex County Council,Safer Essex EDAP Alcohol Training
Tendring DC,http://statistics.data.gov.uk/id/local-authority-district/22UN,Corporate Services,8660 - Fit for Purpose,5500 - Miscellaneous Expenses,10/04/2013,2108051-1,968.61,2100419 - Essex County Council,Financial Strain Ian Wilkins
Tendring DC,http://statistics.data.gov.uk/id/local-authority-district/22UN,Corporate Services,8660 - Fit for Purpose,5500 - Miscellaneous Expenses,10/04/2013,2108118-1,846.14,REDACTED PERSONAL DATA,REDACTED PERSONAL DATA
Tendring DC,http://statistics.data.gov.uk/id/local-authority-district/22UN,Corporate Services,1800 - Qualification and Other Training,1700 - Training - Courses,23/04/2013,2108242-1,-550,2100498 - Essex County Council,Springboard Workshop
Tendring DC,http://statistics.data.gov.uk/id/local-authority-district/22UN,Corporate Services,1815 - Personnel and Human Resources Issues,1500 - Advertising - Recruitment,23/04/2013,2108243-1,-3000,2100498 - Essex County Council,Vine HR Subscription
Tendring DC,http://statistics.data.gov.uk/id/local-authority-district/22UN,Corporate Services,9900 - General Fund Balance Sheet,B382 - Rechargeable Works - Other,30/04/2013,2108732-1,5587,2100498 - Essex County Council,Unspent Allocation Safer Essex
Tendring DC,http://statistics.data.gov.uk/id/local-authority-district/22UN,Corporate Services,1300 - Legal Services Service Unit,1700 - Training - Courses,30/04/2013,2108811-1,100,REDACTED PERSONAL DATA,REDACTED PERSONAL DATA
Tendring DC,http://statistics.data.gov.uk/id/local-authority-district/22UN,Corporate Services,1660 - Other Apportionable Overheads,4609 - Child Care Vouchers Management Fee,03/04/2013,1051215-2,71.64,REDACTED PERSONAL DATA,REDACTED PERSONAL DATA
Tendring DC,http://statistics.data.gov.uk/id/local-authority-district/22UN,Corporate Services,8905 - Parish Precepts,6999 - Parish Precepts,03/04/2013,7104289-1,4250,2100544 - Frating Parish Council,Parish Council Precepts - First Instalment 2013/14
Tendring DC,http://statistics.data.gov.uk/id/local-authority-district/22UN,Corporate Services,8905 - Parish Precepts,6999 - Parish Precepts,03/04/2013,7104290-1,200772,2100584 - Frinton & Walton Town Council,Parish Council Precepts - First Instalment 2013/14
Tendring DC,http://statistics.data.gov.uk/id/local-authority-district/22UN,Corporate Services,9900 - General Fund Balance Sheet,B146 - Car Loans - Principal - Essential Users,10/04/2013,2108119-1,4495,REDACTED PERSONAL DATA,REDACTED PERSONAL DATA
Tendring DC,http://statistics.data.gov.uk/id/local-authority-district/22UN,Corporate Services,7025 - CDRP Support,4900 - Grants,03/04/2013,2107892-1,150,2100546 - GCS Alarms,Remove & Install CCTV
Tendring DC,http://statistics.data.gov.uk/id/local-authority-district/22UN,Corporate Services,1760 - IT Direct Service Costs,4597 - Hired Services - Payments to Contractors,23/04/2013,2108484-1,75,2100546 - GCS Alarms,GCS - Water Detection System
Tendring DC,http://statistics.data.gov.uk/id/local-authority-district/22UN,Corporate Services,1880 - Office Accommodation Expenses,4632 - Security,03/04/2013,7009227-1,55,2100546 - GCS Alarms,GCS
Tendring DC,http://statistics.data.gov.uk/id/local-authority-district/22UN,Corporate Services,1880 - Office Accommodation Expenses,4632 - Security,03/04/2013,7009228-1,68.5,2100546 - GCS Alarms,GCS
Tendring DC,http://statistics.data.gov.uk/id/local-authority-district/22UN,Corporate Services,1880 - Office Accommodation Expenses,4632 - Security,03/04/2013,7009229-1,137,2100546 - GCS Alarms,GCS
Tendring DC,http://statistics.data.gov.uk/id/local-authority-district/22UN,Corporate Services,1120 - Accountancy Service Unit,4596 - Hired Services - Mortgage Administration,16/04/2013,2108298-1,1500.18,2100576 - Gemini Consultants Ltd,LAMAC Annual Fee
Tendring DC,http://statistics.data.gov.uk/id/local-authority-district/22UN,Corporate Services,1120 - Accountancy Service Unit,4596 - Hired Services - Mortgage Administration,23/04/2013,2108408-1,38.76,2100576 - Gemini Consultants Ltd,Lamac Fee
Tendring DC,http://statistics.data.gov.uk/id/local-authority-district/22UN,Corporate Services,6980 - Essex Family Needs Project,4460 - Legal & Professional Expenses,30/04/2013,2108627-1,927.9,2111933 - Genoa Partnership,Essex Family Workshop
Tendring DC,http://statistics.data.gov.uk/id/local-authority-district/22UN,Corporate Services,8905 - Parish Precepts,6999 - Parish Precepts,03/04/2013,7104281-2,23295,2100559 - Great Bentley Parish Council,Parish Council Precepts - First Instalment 2013/14
Tendring DC,http://statistics.data.gov.uk/id/local-authority-district/22UN,Corporate Services,8905 - Parish Precepts,6999 - Parish Precepts,03/04/2013,7104295-1,9112,2100599 - Great Oakley Parish Council,Parish Council Precepts - First Instalment 2013/14
Tendring DC,http://statistics.data.gov.uk/id/local-authority-district/22UN,Corporate Services,8905 - Parish Precepts,6999 - Parish Precepts,03/04/2013,7104285-2,7950,2100690 - Gt Bromley Parish Council,Parish Council Precepts - First Instalment 2013/14
Tendring DC,http://statistics.data.gov.uk/id/local-authority-district/22UN,Corporate Services,1180 - Benefit Fraud Investigation Service Unit,4460 - Legal & Professional Expenses,03/04/2013,1051197-1,708.06,REDACTED PERSONAL DATA,REDACTED PERSONAL DATA
Tendring DC,http://statistics.data.gov.uk/id/local-authority-district/22UN,Corporate Services,1180 - Benefit Fraud Investigation Service Unit,4460 - Legal & Professional Expenses,03/04/2013,1051197-2,3.75,REDACTED PERSONAL DATA,REDACTED PERSONAL DATA
Tendring DC,http://statistics.data.gov.uk/id/local-authority-district/22UN,Corporate Services,1180 - Benefit Fraud Investigation Service Unit,4460 - Legal & Professional Expenses,16/04/2013,2108297-1,1982.52,REDACTED COMMERCIAL CONFIDENTIALITY,REDACTED COMMERCIAL CONFIDENTIALITY
Tendring DC,http://statistics.data.gov.uk/id/local-authority-district/22UN,Corporate Services,1180 - Benefit Fraud Investigation Service Unit,4460 - Legal & Professional Expenses,16/04/2013,2108297-2,6.25,REDACTED COMMERCIAL CONFIDENTIALITY,REDACTED COMMERCIAL CONFIDENTIALITY
Tendring DC,http://statistics.data.gov.uk/id/local-authority-district/22UN,Corporate Services,8905 - Parish Precepts,6999 - Parish Precepts,03/04/2013,7104291-1,94062,2100624 - Harwich Town Council,Parish Council Precepts - First Instalment 2013/14
Tendring DC,http://statistics.data.gov.uk/id/local-authority-district/22UN,Corporate Services,1880 - Office Accommodation Expenses,2100 - Building Repairs,03/04/2013,7009231-1,99.5,2112468 - Henry Ashe Projects Ltd,HENRY ASHE
Tendring DC,http://statistics.data.gov.uk/id/local-authority-district/22UN,Corporate Services,1300 - Legal Services Service Unit,4466 - Legal & Professional Expenses - Land Registry,29/04/2013,2108788-1,6,2100636 - HM Land Registry,Land Reg Enquiries
Tendring DC,http://statistics.data.gov.uk/id/local-authority-district/22UN,Corporate Services,4660 - Public Health,5500 - Miscellaneous Expenses,29/04/2013,2108788-2,28,2100636 - HM Land Registry,Land Reg Enquiries
Tendring DC,http://statistics.data.gov.uk/id/local-authority-district/22UN,Corporate Services,"1580 - Benefits, Revenues and Customer Contact SU",4466 - Legal & Professional Expenses - Land Registry,29/04/2013,2108788-3,24,2100636 - HM Land Registry,Land Reg Enquiries
Tendring DC,http://statistics.data.gov.uk/id/local-authority-district/22UN,Corporate Services,1520 - Head of Planning and Customer Services,4624 - Hired Services - Land Registry,29/04/2013,2108788-4,16,2100636 - HM Land Registry,Land Reg Enquiries
Tendring DC,http://statistics.data.gov.uk/id/local-authority-district/22UN,Corporate Services,1930 - Asset Management Service Unit,4460 - Legal & Professional Expenses,29/04/2013,2108788-5,6,2100636 - HM Land Registry,Land Reg Enquiries
Tendring DC,http://statistics.data.gov.uk/id/local-authority-district/22UN,Corporate Services,H920 - DFGs,C400 - Grant payments,29/04/2013,2108788-6,33,2100636 - HM Land Registry,Land Reg Enquiries
Tendring DC,http://statistics.data.gov.uk/id/local-authority-district/22UN,Corporate Services,4750 - Housing Disrepair,4080 - Materials & Consumables,29/04/2013,2108788-7,15,2100636 - HM Land Registry,Land Reg Enquiries
Tendring DC,http://statistics.data.gov.uk/id/local-authority-district/22UN,Corporate Services,5140 - Homelessness,4680 - Bed & Breakfast Accommodation,29/04/2013,2108788-8,3,2100636 - HM Land Registry,Land Reg Enquiries
Tendring DC,http://statistics.data.gov.uk/id/local-authority-district/22UN,Corporate Services,1300 - Legal Services Service Unit,4460 - Legal & Professional Expenses,10/04/2013,7104305-1,33,2100661 - HMCTS,
Tendring DC,http://statistics.data.gov.uk/id/local-authority-district/22UN,Corporate Services,9900 - General Fund Balance Sheet,B382 - Rechargeable Works - Other,16/04/2013,7104372-1,75,2100661 - HMCTS,Parkeston House
Tendring DC,http://statistics.data.gov.uk/id/local-authority-district/22UN,Corporate Services,7220 - Election Expenses,4486 - Election Expenses,23/04/2013,1051576-1,445.4,2113061 - HMRC,RE ISSUE
Tendring DC,http://statistics.data.gov.uk/id/local-authority-district/22UN,Corporate Services,1760 - IT Direct Service Costs,4751 - Hardware & Service Maintenance,03/04/2013,2107838-1,1736.9,2102228 - Incoms Systems PLC,Incoms CL5 Modules
Tendring DC,http://statistics.data.gov.uk/id/local-authority-district/22UN,Corporate Services,1760 - IT Direct Service Costs,4715 - Data Communication Charge,03/04/2013,2107839-1,2460,2102228 - Incoms Systems PLC,Cisco: Conference Phones
Tendring DC,http://statistics.data.gov.uk/id/local-authority-district/22UN,Corporate Services,7100 - Community Health/Safety,4300 - Printing & Stationery,16/04/2013,2108193-1,64.4,2100782 - Insight Direct (uk) Limited,Insight: Wireless Desktop
Tendring DC,http://statistics.data.gov.uk/id/local-authority-district/22UN,Corporate Services,1210 - Facilities Management Service Unit,3302 - Car Allowances - Officers,30/04/2013,1051586-1,50,REDACTED PERSONAL DATA,REDACTED PERSONAL DATA
Tendring DC,http://statistics.data.gov.uk/id/local-authority-district/22UN,Corporate Services,1210 - Facilities Management Service Unit,3302 - Car Allowances - Officers,03/04/2013,2107869-1,50,REDACTED PERSONAL DATA,REDACTED PERSONAL DATA
Tendring DC,http://statistics.data.gov.uk/id/local-authority-district/22UN,Corporate Services,6980 - Essex Family Needs Project,5500 - Miscellaneous Expenses,30/04/2013,2108853-1,120,REDACTED PERSONAL DATA,REDACTED PERSONAL DATA
Tendring DC,http://statistics.data.gov.uk/id/local-authority-district/22UN,Corporate Services,6640 - Treasury Management,5192 - Brokerage,08/04/2013,2108102-2,104.35,2107040 - King & Shaxson Limited,Fees re Treasury Management
Tendring DC,http://statistics.data.gov.uk/id/local-authority-district/22UN,Corporate Services,8915 - Interest & Investment Income,9600 - External Investment Interest Receivable,08/04/2013,2108102-3,-266.3,2107040 - King & Shaxson Limited,Fees re Treasury Management
Tendring DC,http://statistics.data.gov.uk/id/local-authority-district/22UN,Corporate Services,8905 - Parish Precepts,6999 - Parish Precepts,03/04/2013,7104292-1,36429,2100813 - Lawford Parish Council,Parish Council Precepts - First Instalment 2013/14
Tendring DC,http://statistics.data.gov.uk/id/local-authority-district/22UN,Corporate Services,1320 - Print Unit Service Unit,4080 - Materials & Consumables,03/04/2013,2107991-1,52.12,2100864 - Leston Stationery Ltd,Card
Tendring DC,http://statistics.data.gov.uk/id/local-authority-district/22UN,Corporate Services,1320 - Print Unit Service Unit,4080 - Materials & Consumables,03/04/2013,2107992-1,287.68,2100864 - Leston Stationery Ltd,100g Yellow Paper
Tendring DC,http://statistics.data.gov.uk/id/local-authority-district/22UN,Corporate Services,1760 - IT Direct Service Costs,6320 - IT Services Agreements Payment,03/04/2013,1051217-1,51622.01,2108077 - Liberata Financial Services Ltd,ICT CONTRACT APRIL 2013
Tendring DC,http://statistics.data.gov.uk/id/local-authority-district/22UN,Corporate Services,8905 - Parish Precepts,6999 - Parish Precepts,03/04/2013,7104287-2,33750,2100835 - Little Clacton Parish Council,Parish Council Precepts - First Instalment 2013/14
Tendring DC,http://statistics.data.gov.uk/id/local-authority-district/22UN,Corporate Services,8905 - Parish Precepts,6999 - Parish Precepts,03/04/2013,7104296-0,5250,2100865 - Little Oakley Parish Council,Parish Council Precepts - First Instalment 2013/14
Tendring DC,http://statistics.data.gov.uk/id/local-authority-district/22UN,Corporate Services,6561 - Other Democratic Costs,4880 - Subscriptions Paid,23/04/2013,2108409-1,11000,2107205 - Local Government Association,LGA Sub 13/14
Tendring DC,http://statistics.data.gov.uk/id/local-authority-district/22UN,Corporate Services,6561 - Other Democratic Costs,4880 - Subscriptions Paid,23/04/2013,2108409-2,-275,2107205 - Local Government Association,LGA Sub 13/14
Tendring DC,http://statistics.data.gov.uk/id/local-authority-district/22UN,Corporate Services,7025 - CDRP Support,4900 - Grants,30/04/2013,2108724-1,185,2111739 - Love To Eat,Catering for 40 People
Tendring DC,http://statistics.data.gov.uk/id/local-authority-district/22UN,Corporate Services,8905 - Parish Precepts,6999 - Parish Precepts,03/04/2013,7104282-0,500,2100886 - Lt Bentley Parish Council,Parish Council Precepts - First Instalment 2013/14
Tendring DC,http://statistics.data.gov.uk/id/local-authority-district/22UN,Corporate Services,8905 - Parish Precepts,6999 - Parish Precepts,03/04/2013,7104286-0,1810,2100896 - Lt Bromley Parish Council,Parish Council Precepts - First Instalment 2013/14
Tendring DC,http://statistics.data.gov.uk/id/local-authority-district/22UN,Corporate Services,8905 - Parish Precepts,6999 - Parish Precepts,03/04/2013,7104293-1,8355,2100888 - Manningtree Town Council,Parish Council Precepts - First Instalment 2013/14
Tendring DC,http://statistics.data.gov.uk/id/local-authority-district/22UN,Corporate Services,8905 - Parish Precepts,6999 - Parish Precepts,03/04/2013,7104294-1,29500,2100943 - Mistley Parish Council,Parish Council Precepts - First Instalment 2013/14
Tendring DC,http://statistics.data.gov.uk/id/local-authority-district/22UN,Corporate Services,6550 - Members - Other Costs,3302 - Car Allowances - Officers,30/04/2013,2108803-1,46.88,REDACTED PERSONAL DATA,REDACTED PERSONAL DATA
Tendring DC,http://statistics.data.gov.uk/id/local-authority-district/22UN,Corporate Services,7300 - Licencing,9087 - Licence Fees,03/04/2013,2107948-1,55,REDACTED COMMERCIAL CONFIDENTIALITY,REDACTED COMMERCIAL CONFIDENTIALITY
Tendring DC,http://statistics.data.gov.uk/id/local-authority-district/22UN,Corporate Services,1300 - Legal Services Service Unit,4503 - Consultants Fees - Counsels Fees,30/04/2013,2108831-1,3209,REDACTED PERSONAL DATA,REDACTED PERSONAL DATA
Tendring DC,http://statistics.data.gov.uk/id/local-authority-district/22UN,Corporate Services,1180 - Benefit Fraud Investigation Service Unit,5160 - Advertising,16/04/2013,2108178-1,395,REDACTED PERSONAL DATA,REDACTED PERSONAL DATA
Tendring DC,http://statistics.data.gov.uk/id/local-authority-district/22UN,Corporate Services,1320 - Print Unit Service Unit,4080 - Materials & Consumables,16/04/2013,1051337-1,111.95,2101051 - OCE (UK) Ltd,PAPER
Tendring DC,http://statistics.data.gov.uk/id/local-authority-district/22UN,Corporate Services,6460 - Career Track,4688 - Career Track Exam Fees,03/04/2013,2107069-1,78.4,2101071 - OCR,OCR Business Administration
Tendring DC,http://statistics.data.gov.uk/id/local-authority-district/22UN,Corporate Services,6460 - Career Track,4688 - Career Track Exam Fees,03/04/2013,7008943-1,-65.33,REDACTED PERSONAL DATA,REDACTED PERSONAL DATA
Tendring DC,http://statistics.data.gov.uk/id/local-authority-district/22UN,Corporate Services,6460 - Career Track,4688 - Career Track Exam Fees,03/04/2013,7009211-1,8.1,2101071 - OCR,OCR AON
Tendring DC,http://statistics.data.gov.uk/id/local-authority-district/22UN,Corporate Services,6460 - Career Track,4688 - Career Track Exam Fees,03/04/2013,7009212-1,78.4,2101071 - OCR,OCR CERTIFICATES BUSINESS ADMIN
Tendring DC,http://statistics.data.gov.uk/id/local-authority-district/22UN,Corporate Services,6460 - Career Track,4688 - Career Track Exam Fees,03/04/2013,7009213-1,78.4,2101071 - OCR,OCR CERTIFICATE
Tendring DC,http://statistics.data.gov.uk/id/local-authority-district/22UN,Corporate Services,6460 - Career Track,4688 - Career Track Exam Fees,30/04/2013,7700215-1,8.1,REDACTED PERSONAL DATA,REDACTED PERSONAL DATA
Tendring DC,http://statistics.data.gov.uk/id/local-authority-district/22UN,Corporate Services,6460 - Career Track,4688 - Career Track Exam Fees,30/04/2013,7700216-1,98.3,REDACTED PERSONAL DATA,REDACTED PERSONAL DATA
Tendring DC,http://statistics.data.gov.uk/id/local-authority-district/22UN,Corporate Services,6460 - Career Track,4688 - Career Track Exam Fees,30/04/2013,7700217-1,87.3,REDACTED PERSONAL DATA,REDACTED PERSONAL DATA
Tendring DC,http://statistics.data.gov.uk/id/local-authority-district/22UN,Corporate Services,6460 - Career Track,4688 - Career Track Exam Fees,30/04/2013,7700218-1,98.3,REDACTED PERSONAL DATA,REDACTED PERSONAL DATA
Tendring DC,http://statistics.data.gov.uk/id/local-authority-district/22UN,Corporate Services,1320 - Print Unit Service Unit,4302 - External Print Unit Expenses,16/04/2013,1051335-1,670,2111844 - Optimumprint,JOB 050
Tendring DC,http://statistics.data.gov.uk/id/local-authority-district/22UN,Corporate Services,1320 - Print Unit Service Unit,4302 - External Print Unit Expenses,16/04/2013,1051336-1,20,2111844 - Optimumprint,JOB 646-LO
Tendring DC,http://statistics.data.gov.uk/id/local-authority-district/22UN,Corporate Services,1320 - Print Unit Service Unit,4302 - External Print Unit Expenses,23/04/2013,1051484-1,630,2111844 - Optimumprint,JOB 652
Tendring DC,http://statistics.data.gov.uk/id/local-authority-district/22UN,Corporate Services,1320 - Print Unit Service Unit,4302 - External Print Unit Expenses,30/04/2013,2108719-1,140,REDACTED PERSONAL DATA,REDACTED PERSONAL DATA
Tendring DC,http://statistics.data.gov.uk/id/local-authority-district/22UN,Corporate Services,1300 - Legal Services Service Unit,1700 - Training - Courses,10/04/2013,2108107-1,1745,REDACTED PERSONAL DATA,REDACTED PERSONAL DATA
Tendring DC,http://statistics.data.gov.uk/id/local-authority-district/22UN,Corporate Services,1815 - Personnel and Human Resources Issues,1500 - Advertising - Recruitment,23/04/2013,2108529-1,7970,2113070 - Penna plc,Planning Magazine
Tendring DC,http://statistics.data.gov.uk/id/local-authority-district/22UN,Corporate Services,1140 - Audit Services Service Unit,4753 - Computer - Application Software,23/04/2013,2108399-1,1835,2107331 - Pentana Ltd,Annual Support for PAWS and Retain
Tendring DC,http://statistics.data.gov.uk/id/local-authority-district/22UN,Corporate Services,1815 - Personnel and Human Resources Issues,1500 - Advertising - Recruitment,03/04/2013,7009210-1,980.32,2101097 - Peter Lockyer Advertising Ltd,PRODUCTION CHARGE
Tendring DC,http://statistics.data.gov.uk/id/local-authority-district/22UN,Corporate Services,1760 - IT Direct Service Costs,4753 - Computer - Application Software,03/04/2013,2107846-1,249.91,2101038 - Phoenix Software Limited,Project 2013 Licence
Tendring DC,http://statistics.data.gov.uk/id/local-authority-district/22UN,Corporate Services,6980 - Essex Family Needs Project,5500 - Miscellaneous Expenses,30/04/2013,2108631-1,74.25,2101078 - Pier Avenue Baptist Church,Pier Avenue Church Hall Hire
Tendring DC,http://statistics.data.gov.uk/id/local-authority-district/22UN,Corporate Services,1661 - Other Apportionable Overheads - Corporate Support,4700 - Postage,23/04/2013,1051443-1,5050,2104077 - Pitney Bowes Ltd,RE-CREDIT FRANKING MACHINE-CLACTON-PBP A/C 10113561
Tendring DC,http://statistics.data.gov.uk/id/local-authority-district/22UN,Corporate Services,1661 - Other Apportionable Overheads - Corporate Support,4700 - Postage,16/04/2013,2108248-1,5050,2104077 - Pitney Bowes Ltd,Recredit Franking machine
Tendring DC,http://statistics.data.gov.uk/id/local-authority-district/22UN,Corporate Services,1661 - Other Apportionable Overheads - Corporate Support,4700 - Postage,29/04/2013,2108786-1,834,REDACTED COMMERCIAL CONFIDENTIALITY,REDACTED COMMERCIAL CONFIDENTIALITY
Tendring DC,http://statistics.data.gov.uk/id/local-authority-district/22UN,Corporate Services,1930 - Asset Management Service Unit,4660 - Microphotography,16/04/2013,2108195-1,1008,2105829 - Prettys Solicitors,Prettys: Valley Road
Tendring DC,http://statistics.data.gov.uk/id/local-authority-district/22UN,Corporate Services,1930 - Asset Management Service Unit,4660 - Microphotography,16/04/2013,2108195-2,6,2105829 - Prettys Solicitors,Prettys: Valley Road
Tendring DC,http://statistics.data.gov.uk/id/local-authority-district/22UN,Corporate Services,1930 - Asset Management Service Unit,4460 - Legal & Professional Expenses,23/04/2013,2108479-1,144,2105829 - Prettys Solicitors,Prettys - The Hangings
Tendring DC,http://statistics.data.gov.uk/id/local-authority-district/22UN,Corporate Services,1930 - Asset Management Service Unit,4460 - Legal & Professional Expenses,23/04/2013,2108479-2,6,2105829 - Prettys Solicitors,Prettys - The Hangings
Tendring DC,http://statistics.data.gov.uk/id/local-authority-district/22UN,Corporate Services,1930 - Asset Management Service Unit,4460 - Legal & Professional Expenses,23/04/2013,2108480-1,944,2105829 - Prettys Solicitors,Prettys - Lease Drafting
Tendring DC,http://statistics.data.gov.uk/id/local-authority-district/22UN,Corporate Services,1930 - Asset Management Service Unit,4460 - Legal & Professional Expenses,23/04/2013,2108480-2,6,2105829 - Prettys Solicitors,Prettys - Lease Drafting
Tendring DC,http://statistics.data.gov.uk/id/local-authority-district/22UN,Corporate Services,7220 - Election Expenses,4486 - Election Expenses,10/04/2013,2108049-1,922.9,2103246 - Print.uk.com,Harwich by Election
Tendring DC,http://statistics.data.gov.uk/id/local-authority-district/22UN,Corporate Services,7220 - Election Expenses,4486 - Election Expenses,10/04/2013,2108050-1,1355.9,2103246 - Print.uk.com,Harwich West by elections
Tendring DC,http://statistics.data.gov.uk/id/local-authority-district/22UN,Corporate Services,7220 - Election Expenses,4486 - Election Expenses,16/04/2013,2108186-1,25198.11,REDACTED PERSONAL DATA,REDACTED PERSONAL DATA
Tendring DC,http://statistics.data.gov.uk/id/local-authority-district/22UN,Corporate Services,7220 - Election Expenses,4486 - Election Expenses,16/04/2013,2108187-1,2420.32,REDACTED PERSONAL DATA,REDACTED PERSONAL DATA
Tendring DC,http://statistics.data.gov.uk/id/local-authority-district/22UN,Corporate Services,9930 - Loans Fund Balance Sheet,B551 - Loans Maturing Within One Year - HRA,11/04/2013,1051523-1,182983.33,2101162 - Public Works Loan Board,PRINCIPAL AND INTEREST PAYMENTS
Tendring DC,http://statistics.data.gov.uk/id/local-authority-district/22UN,Corporate Services,5760 - HRA - Capital & Interest Charges,9831 - Item 8 Interest Charge in HRA,11/04/2013,1051523-2,160787.46,2101162 - Public Works Loan Board,PRINCIPAL AND INTEREST PAYMENTS
Tendring DC,http://statistics.data.gov.uk/id/local-authority-district/22UN,Corporate Services,1815 - Personnel and Human Resources Issues,1500 - Advertising - Recruitment,03/04/2013,1051198-1,300,2111766 - publicservice.co.uk Ltd,PS JOB SEARCH
Tendring DC,http://statistics.data.gov.uk/id/local-authority-district/22UN,Corporate Services,8905 - Parish Precepts,6999 - Parish Precepts,03/04/2013,7104297-1,18639,2101125 - Ramsey & Parkeston Parish Council,Parish Council Precepts - First Instalment 2013/14
Tendring DC,http://statistics.data.gov.uk/id/local-authority-district/22UN,Corporate Services,9900 - General Fund Balance Sheet,B382 - Rechargeable Works - Other,30/04/2013,2108721-1,1500,REDACTED PERSONAL DATA,REDACTED PERSONAL DATA
Tendring DC,http://statistics.data.gov.uk/id/local-authority-district/22UN,Corporate Services,6580 - Member Support Cost,4350 - Photocopier Hire,10/04/2013,2108108-1,1260.02,REDACTED PERSONAL DATA,REDACTED PERSONAL DATA
Tendring DC,http://statistics.data.gov.uk/id/local-authority-district/22UN,Corporate Services,6580 - Member Support Cost,4350 - Photocopier Hire,10/04/2013,2108115-1,-1051.8,REDACTED PERSONAL DATA,REDACTED PERSONAL DATA
Tendring DC,http://statistics.data.gov.uk/id/local-authority-district/22UN,Corporate Services,1210 - Facilities Management Service Unit,4400 - Maintenance Under Service Agreements,10/04/2013,2108128-1,964.03,2101090 - Ricoh UK Ltd,Ricoh
Tendring DC,http://statistics.data.gov.uk/id/local-authority-district/22UN,Corporate Services,6580 - Member Support Cost,4350 - Photocopier Hire,03/04/2013,7009218-1,239.85,2101090 - Ricoh UK Ltd,PHOTOCOPIER USE
Tendring DC,http://statistics.data.gov.uk/id/local-authority-district/22UN,Corporate Services,7240 - Electoral Registration Expenses,4700 - Postage,23/04/2013,1051485-1,4.88,2101139 - Royal Mail,ELECTORAL POSTAGE
Tendring DC,http://statistics.data.gov.uk/id/local-authority-district/22UN,Corporate Services,7240 - Electoral Registration Expenses,4700 - Postage,10/04/2013,2108086-1,54.26,REDACTED PERSONAL DATA,REDACTED PERSONAL DATA
Tendring DC,http://statistics.data.gov.uk/id/local-authority-district/22UN,Corporate Services,6580 - Member Support Cost,4670 - Hire of Premises,10/04/2013,2108088-1,79,2112836 - S & C Entertainments Ltd,Microphones
Tendring DC,http://statistics.data.gov.uk/id/local-authority-district/22UN,Corporate Services,1760 - IT Direct Service Costs,6325 - Additional Services,16/04/2013,2108188-1,900,2103677 - SecureData Europe Ltd,SecureData: Remote Access
Tendring DC,http://statistics.data.gov.uk/id/local-authority-district/22UN,Corporate Services,1760 - IT Direct Service Costs,4753 - Computer - Application Software,16/04/2013,2108189-1,7649.5,2103677 - SecureData Europe Ltd,SecureData: Security Items
Tendring DC,http://statistics.data.gov.uk/id/local-authority-district/22UN,Corporate Services,1100 - Head of Corporate Services and Admin Service Unit,4300 - Printing & Stationery,16/04/2013,2108192-1,24.44,2101284 - Shaw & Sons Ltd,Legal Seals
Tendring DC,http://statistics.data.gov.uk/id/local-authority-district/22UN,Corporate Services,1100 - Head of Corporate Services and Admin Service Unit,4355 - Books & Periodicals,03/04/2013,2107878-1,90,REDACTED PERSONAL DATA,REDACTED PERSONAL DATA
Tendring DC,http://statistics.data.gov.uk/id/local-authority-district/22UN,Corporate Services,1100 - Head of Corporate Services and Admin Service Unit,4355 - Books & Periodicals,03/04/2013,2107878-2,4.5,REDACTED PERSONAL DATA,REDACTED PERSONAL DATA
Tendring DC,http://statistics.data.gov.uk/id/local-authority-district/22UN,Corporate Services,8905 - Parish Precepts,6999 - Parish Precepts,03/04/2013,7104298-1,59600,2101269 - St Osyth Parish Council,Parish Council Precepts - First Instalment 2013/14
Tendring DC,http://statistics.data.gov.uk/id/local-authority-district/22UN,Corporate Services,9900 - General Fund Balance Sheet,B382 - Rechargeable Works - Other,23/04/2013,1051450-1,7.5,2101314 - T V Licensing,TV LICENCE-VYNTONER HOUSE
Tendring DC,http://statistics.data.gov.uk/id/local-authority-district/22UN,Corporate Services,1180 - Benefit Fraud Investigation Service Unit,4880 - Subscriptions Paid,16/04/2013,2108177-1,2782,REDACTED PERSONAL DATA,REDACTED PERSONAL DATA
Tendring DC,http://statistics.data.gov.uk/id/local-authority-district/22UN,Corporate Services,7040 - Civic Ceremonial Expenses,4080 - Materials & Consumables,30/04/2013,1051591-1,6.63,2106628 - Tendring District Council,CIVIC
Tendring DC,http://statistics.data.gov.uk/id/local-authority-district/22UN,Corporate Services,7040 - Civic Ceremonial Expenses,4080 - Materials & Consumables,30/04/2013,1051591-10,16.74,2106628 - Tendring District Council,CIVIC
Tendring DC,http://statistics.data.gov.uk/id/local-authority-district/22UN,Corporate Services,7040 - Civic Ceremonial Expenses,4080 - Materials & Consumables,30/04/2013,1051591-11,29.17,2106628 - Tendring District Council,CIVIC
Tendring DC,http://statistics.data.gov.uk/id/local-authority-district/22UN,Corporate Services,7040 - Civic Ceremonial Expenses,4080 - Materials & Consumables,30/04/2013,1051591-2,23.75,2106628 - Tendring District Council,CIVIC
Tendring DC,http://statistics.data.gov.uk/id/local-authority-district/22UN,Corporate Services,7040 - Civic Ceremonial Expenses,4080 - Materials & Consumables,30/04/2013,1051591-3,16.64,2106628 - Tendring District Council,CIVIC
Tendring DC,http://statistics.data.gov.uk/id/local-authority-district/22UN,Corporate Services,7040 - Civic Ceremonial Expenses,4080 - Materials & Consumables,30/04/2013,1051591-4,9.58,2106628 - Tendring District Council,CIVIC
Tendring DC,http://statistics.data.gov.uk/id/local-authority-district/22UN,Corporate Services,7040 - Civic Ceremonial Expenses,4830 - Contribution to Chairman's Dinner Dance,30/04/2013,1051591-5,8.35,2106628 - Tendring District Council,CIVIC
Tendring DC,http://statistics.data.gov.uk/id/local-authority-district/22UN,Corporate Services,7040 - Civic Ceremonial Expenses,4830 - Contribution to Chairman's Dinner Dance,30/04/2013,1051591-6,4.12,2106628 - Tendring District Council,CIVIC
Tendring DC,http://statistics.data.gov.uk/id/local-authority-district/22UN,Corporate Services,7040 - Civic Ceremonial Expenses,4830 - Contribution to Chairman's Dinner Dance,30/04/2013,1051591-7,5.41,2106628 - Tendring District Council,CIVIC
Tendring DC,http://statistics.data.gov.uk/id/local-authority-district/22UN,Corporate Services,7040 - Civic Ceremonial Expenses,4300 - Printing & Stationery,30/04/2013,1051591-8,25.85,2106628 - Tendring District Council,CIVIC
Tendring DC,http://statistics.data.gov.uk/id/local-authority-district/22UN,Corporate Services,7040 - Civic Ceremonial Expenses,4080 - Materials & Consumables,30/04/2013,1051591-9,13,2106628 - Tendring District Council,CIVIC
Tendring DC,http://statistics.data.gov.uk/id/local-authority-district/22UN,Corporate Services,8905 - Parish Precepts,6999 - Parish Precepts,03/04/2013,7104299-1,3500,2101338 - Tendring Parish Council,Parish Council Precepts - First Instalment 2013/14
Tendring DC,http://statistics.data.gov.uk/id/local-authority-district/22UN,Corporate Services,7040 - Civic Ceremonial Expenses,4080 - Materials & Consumables,23/04/2013,2108396-1,952.51,2112989 - Thomas Fattorini Ltd,Past Chairmans Badge
Tendring DC,http://statistics.data.gov.uk/id/local-authority-district/22UN,Corporate Services,1100 - Head of Corporate Services and Admin Service Unit,4355 - Books & Periodicals,10/04/2013,2108090-1,145,2111580 - Thomson Reuters,Election Law R13
Tendring DC,http://statistics.data.gov.uk/id/local-authority-district/22UN,Corporate Services,1100 - Head of Corporate Services and Admin Service Unit,4355 - Books & Periodicals,10/04/2013,2108090-2,145,2111580 - Thomson Reuters,Election Law R13
Tendring DC,http://statistics.data.gov.uk/id/local-authority-district/22UN,Corporate Services,8905 - Parish Precepts,6999 - Parish Precepts,03/04/2013,7104300-1,14114,2101494 - Thorpe le Soken Parish Council,Parish Council Precepts - First Instalment 2013/14
Tendring DC,http://statistics.data.gov.uk/id/local-authority-district/22UN,Corporate Services,8905 - Parish Precepts,6999 - Parish Precepts,03/04/2013,7104301-1,8250,2101435 - Thorrington Parish Coucil,Parish Council Precepts - First Instalment 2013/14
Tendring DC,http://statistics.data.gov.uk/id/local-authority-district/22UN,Corporate Services,1120 - Accountancy Service Unit,4753 - Computer - Application Software,23/04/2013,2108397-1,12958.81,2100093 - Unit 4 Business Software Ltd,Agresso Main 1/4/13 - 31/3/14
Tendring DC,http://statistics.data.gov.uk/id/local-authority-district/22UN,Corporate Services,1925 - Central Purchasing,4753 - Computer - Application Software,23/04/2013,2108397-2,5183.52,2100093 - Unit 4 Business Software Ltd,Agresso Main 1/4/13 - 31/3/14
Tendring DC,http://statistics.data.gov.uk/id/local-authority-district/22UN,Corporate Services,1200 - Exchequer Service Unit,4753 - Computer - Application Software,23/04/2013,2108397-3,7775.28,2100093 - Unit 4 Business Software Ltd,Agresso Main 1/4/13 - 31/3/14
Tendring DC,http://statistics.data.gov.uk/id/local-authority-district/22UN,Corporate Services,1760 - IT Direct Service Costs,4751 - Hardware & Service Maintenance,30/04/2013,2108632-1,141.8,2101521 - Videk Limited,Multimedia Cable and Connection
Tendring DC,http://statistics.data.gov.uk/id/local-authority-district/22UN,Corporate Services,1815 - Personnel and Human Resources Issues,1500 - Advertising - Recruitment,30/04/2013,2108641-1,5808,2112451 - VineHR Ltd,Vine HR
Tendring DC,http://statistics.data.gov.uk/id/local-authority-district/22UN,Corporate Services,1815 - Personnel and Human Resources Issues,1500 - Advertising - Recruitment,30/04/2013,2108735-1,3000,2112451 - VineHR Ltd,Vine HR subscription
Tendring DC,http://statistics.data.gov.uk/id/local-authority-district/22UN,Corporate Services,6580 - Member Support Cost,4670 - Hire of Premises,10/04/2013,2108089-1,75,2112976 - Waveney Pub Company,Room Hire
Tendring DC,http://statistics.data.gov.uk/id/local-authority-district/22UN,Corporate Services,8905 - Parish Precepts,6999 - Parish Precepts,03/04/2013,7104302-1,14313,2101504 - Weeley Parish Council,Parish Council Precepts - First Instalment 2013/14
Tendring DC,http://statistics.data.gov.uk/id/local-authority-district/22UN,Corporate Services,8905 - Parish Precepts,6999 - Parish Precepts,03/04/2013,7104303-1,9348,2101595 - Wix Parish Council,Parish Council Precepts - First Instalment 2013/14
Tendring DC,http://statistics.data.gov.uk/id/local-authority-district/22UN,Corporate Services,8905 - Parish Precepts,6999 - Parish Precepts,03/04/2013,7104304-1,2774,2101576 - Wrabness Parish Council,Parish Council Precepts - First Instalment 2013/14
Tendring DC,http://statistics.data.gov.uk/id/local-authority-district/22UN,Corporate Services,1320 - Print Unit Service Unit,4350 - Photocopier Hire,03/04/2013,1051139-1,1546.28,2101517 - Xerox (UK) Ltd,252 BC + COPIES
Tendring DC,http://statistics.data.gov.uk/id/local-authority-district/22UN,Corporate Services,7100 - Community Health/Safety,4300 - Printing & Stationery,03/04/2013,2107893-1,121.56,2107546 - XMA Limited,XMA - HP Laser Toner Item No. Q5942XC
Tendring DC,http://statistics.data.gov.uk/id/local-authority-district/22UN,Corporate Services,7100 - Community Health/Safety,4300 - Printing & Stationery,03/04/2013,2107913-1,-91.56,2107546 - XMA Limited,XMA - Item code Q5942XC
Tendring DC,http://statistics.data.gov.uk/id/local-authority-district/22UN,Corporate Services,1100 - Head of Corporate Services and Admin Service Unit,4300 - Printing & Stationery,16/04/2013,2108191-1,42.65,2107546 - XMA Limited,XMA Stationery Order
Tendring DC,http://statistics.data.gov.uk/id/local-authority-district/22UN,Corporate Services,1100 - Head of Corporate Services and Admin Service Unit,4300 - Printing & Stationery,30/04/2013,2108629-1,22.33,2107546 - XMA Limited,XMA - Stationery Order Apr 2
Tendring DC,http://statistics.data.gov.uk/id/local-authority-district/22UN,Corporate Services,1100 - Head of Corporate Services and Admin Service Unit,4300 - Printing & Stationery,30/04/2013,2108630-1,162.18,2107546 - XMA Limited,XMA - Stationery Order - Apr
Tendring DC,http://statistics.data.gov.uk/id/local-authority-district/22UN,Corporate Services,7240 - Electoral Registration Expenses,4400 - Maintenance Under Service Agreements,10/04/2013,2108087-1,9390.6,2101547 - Xpress Software Solutions Ltd,Xpress Annual Fee
Tendring DC,http://statistics.data.gov.uk/id/local-authority-district/22UN,Corporate Services,9900 - General Fund Balance Sheet,B382 - Rechargeable Works - Other,23/04/2013,1051584-1,350,REDACTED COMMERCIAL CONFIDENTIALITY,REDACTED COMMERCIAL CONFIDENTIALITY
Tendring DC,http://statistics.data.gov.uk/id/local-authority-district/22UN,Corporate Services,1000 - Community Services Service Unit,1430 - Manpower Initiatives,28/05/2013,1052340-1,22895.19,REDACTED PERSONAL DATA,REDACTED PERSONAL DATA
Tendring DC,http://statistics.data.gov.uk/id/local-authority-district/22UN,Corporate Services,1950 - Transport,3062 - Running Costs - Petrol,21/05/2013,2109006-1,119.16,2101825 - Allstar Business Solutions Ltd,Courier Fuel
Tendring DC,http://statistics.data.gov.uk/id/local-authority-district/22UN,Corporate Services,1950 - Transport,3062 - Running Costs - Petrol,21/05/2013,2109007-1,57.91,2101825 - Allstar Business Solutions Ltd,Courier Fuel
Tendring DC,http://statistics.data.gov.uk/id/local-authority-district/22UN,Corporate Services,1815 - Personnel and Human Resources Issues,1500 - Advertising - Recruitment,07/05/2013,2108993-1,1250,2113036 - Aquabridge Law LLP,Legal Advise
Tendring DC,http://statistics.data.gov.uk/id/local-authority-district/22UN,Corporate Services,1320 - Print Unit Service Unit,4080 - Materials & Consumables,21/05/2013,1052000-1,28.02,2100111 - Banner Business Supplies Ltd,STATIONERY
Tendring DC,http://statistics.data.gov.uk/id/local-authority-district/22UN,Corporate Services,1100 - Head of Corporate Services and Admin Service Unit,4300 - Printing & Stationery,07/05/2013,2108951-1,17.62,2100111 - Banner Business Supplies Ltd,Stationery
Tendring DC,http://statistics.data.gov.uk/id/local-authority-district/22UN,Corporate Services,6580 - Member Support Cost,4300 - Printing & Stationery,07/05/2013,2108951-2,132.08,2100111 - Banner Business Supplies Ltd,Stationery
Tendring DC,http://statistics.data.gov.uk/id/local-authority-district/22UN,Corporate Services,1100 - Head of Corporate Services and Admin Service Unit,4300 - Printing & Stationery,21/05/2013,2108999-1,2.76,2100111 - Banner Business Supplies Ltd,Misc Items
Tendring DC,http://statistics.data.gov.uk/id/local-authority-district/22UN,Corporate Services,6560 - Other Democratic Costs,4110 - General Provisions,21/05/2013,2108999-2,7.09,2100111 - Banner Business Supplies Ltd,Misc Items
Tendring DC,http://statistics.data.gov.uk/id/local-authority-district/22UN,Corporate Services,6580 - Member Support Cost,4300 - Printing & Stationery,21/05/2013,2108999-3,81.68,2100111 - Banner Business Supplies Ltd,Misc Items
Tendring DC,http://statistics.data.gov.uk/id/local-authority-district/22UN,Corporate Services,1100 - Head of Corporate Services and Admin Service Unit,4300 - Printing & Stationery,21/05/2013,2109053-1,176.02,2100111 - Banner Business Supplies Ltd,Banner
Tendring DC,http://statistics.data.gov.uk/id/local-authority-district/22UN,Corporate Services,1180 - Benefit Fraud Investigation Service Unit,4880 - Subscriptions Paid,07/05/2013,2108995-1,643.68,2102227 - Brighton & Hove City Council,NAFN Charges
Tendring DC,http://statistics.data.gov.uk/id/local-authority-district/22UN,Corporate Services,1180 - Benefit Fraud Investigation Service Unit,4880 - Subscriptions Paid,07/05/2013,2108995-2,134,2102227 - Brighton & Hove City Council,NAFN Charges
Tendring DC,http://statistics.data.gov.uk/id/local-authority-district/22UN,Corporate Services,1760 - IT Direct Service Costs,4715 - Data Communication Charge,07/05/2013,2108996-1,225,2100168 - British Telecommunications plc,BT Internet
Tendring DC,http://statistics.data.gov.uk/id/local-authority-district/22UN,Corporate Services,9900 - General Fund Balance Sheet,B879 - Charges made by Merchant Acquirer,07/05/2013,1052267-1,28.08,2100202 - Capita Business Services Ltd,CAPITA APR 13
Tendring DC,http://statistics.data.gov.uk/id/local-authority-district/22UN,Corporate Services,9900 - General Fund Balance Sheet,B879 - Charges made by Merchant Acquirer,07/05/2013,1052267-2,36.85,2100202 - Capita Business Services Ltd,CAPITA APR 13
Tendring DC,http://statistics.data.gov.uk/id/local-authority-district/22UN,Corporate Services,9900 - General Fund Balance Sheet,B879 - Charges made by Merchant Acquirer,07/05/2013,1052267-3,231.84,2100202 - Capita Business Services Ltd,CAPITA APR 13
Tendring DC,http://statistics.data.gov.uk/id/local-authority-district/22UN,Corporate Services,9900 - General Fund Balance Sheet,B879 - Charges made by Merchant Acquirer,07/05/2013,1052267-4,410.05,2100202 - Capita Business Services Ltd,CAPITA APR 13
Tendring DC,http://statistics.data.gov.uk/id/local-authority-district/22UN,Corporate Services,9900 - General Fund Balance Sheet,B879 - Charges made by Merchant Acquirer,07/05/2013,1052267-5,383.76,2100202 - Capita Business Services Ltd,CAPITA APR 13
Tendring DC,http://statistics.data.gov.uk/id/local-authority-district/22UN,Corporate Services,9900 - General Fund Balance Sheet,B879 - Charges made by Merchant Acquirer,07/05/2013,1052267-6,403.03,2100202 - Capita Business Services Ltd,CAPITA APR 13
Tendring DC,http://statistics.data.gov.uk/id/local-authority-district/22UN,Corporate Services,9900 - General Fund Balance Sheet,B879 - Charges made by Merchant Acquirer,07/05/2013,1052267-7,378.54,2100202 - Capita Business Services Ltd,CAPITA APR 13
Tendring DC,http://statistics.data.gov.uk/id/local-authority-district/22UN,Corporate Services,9900 - General Fund Balance Sheet,B879 - Charges made by Merchant Acquirer,07/05/2013,1052267-8,662.39,2100202 - Capita Business Services Ltd,CAPITA APR 13
Tendring DC,http://statistics.data.gov.uk/id/local-authority-district/22UN,Corporate Services,7080 - Chairman Charity Account,8450 - Donations - Outgoing Chairman,21/05/2013,1052141-1,1400,2113038 - Chicks,
Tendring DC,http://statistics.data.gov.uk/id/local-authority-district/22UN,Corporate Services,4660 - Public Health,4080 - Materials & Consumables,01/05/2013,1052265-1,48.68,2100269 - Co operative Bank plc,KLN VISA APR 13
Tendring DC,http://statistics.data.gov.uk/id/local-authority-district/22UN,Corporate Services,1815 - Personnel and Human Resources Issues,1720 - Training - Equality & Diversity,01/05/2013,1052265-2,16.99,2100269 - Co operative Bank plc,KLN VISA APR 13
Tendring DC,http://statistics.data.gov.uk/id/local-authority-district/22UN,Corporate Services,7040 - Civic Ceremonial Expenses,4080 - Materials & Consumables,01/05/2013,1052265-3,43.95,2100269 - Co operative Bank plc,KLN VISA APR 13
Tendring DC,http://statistics.data.gov.uk/id/local-authority-district/22UN,Corporate Services,6620 - Corporate Management - General,5190 - Bank Commission Charges,01/05/2013,1052265-4,2,2100269 - Co operative Bank plc,KLN VISA APR 13
Tendring DC,http://statistics.data.gov.uk/id/local-authority-district/22UN,Corporate Services,6640 - Treasury Management,5192 - Brokerage,01/05/2013,1052266-1,98,2100269 - Co operative Bank plc,FD APR 2013
Tendring DC,http://statistics.data.gov.uk/id/local-authority-district/22UN,Corporate Services,6620 - Corporate Management - General,5190 - Bank Commission Charges,01/05/2013,1052266-2,230,2100269 - Co operative Bank plc,FD APR 2013
Tendring DC,http://statistics.data.gov.uk/id/local-authority-district/22UN,Corporate Services,1560 - Cashiers Service Unit,5186 - Paypoint/post office charges,01/05/2013,1052266-3,1357.81,2100269 - Co operative Bank plc,FD APR 2013
Tendring DC,http://statistics.data.gov.uk/id/local-authority-district/22UN,Corporate Services,1560 - Cashiers Service Unit,5186 - Paypoint/post office charges,01/05/2013,1052266-4,3289.42,2100269 - Co operative Bank plc,FD APR 2013
Tendring DC,http://statistics.data.gov.uk/id/local-authority-district/22UN,Corporate Services,1815 - Personnel and Human Resources Issues,1600 - Medical Expenses,28/05/2013,1052308-1,415.68,2107768 - Colchester Hospital University NHS FT,OCCUPATIONAL HEALTH
Tendring DC,http://statistics.data.gov.uk/id/local-authority-district/22UN,Corporate Services,7300 - Licencing,5500 - Miscellaneous Expenses,28/05/2013,1052308-2,86.4,2107768 - Colchester Hospital University NHS FT,OCCUPATIONAL HEALTH
Tendring DC,http://statistics.data.gov.uk/id/local-authority-district/22UN,Corporate Services,1300 - Legal Services Service Unit,4460 - Legal & Professional Expenses,07/05/2013,1051734-1,35,2113056 - Corgi,
Tendring DC,http://statistics.data.gov.uk/id/local-authority-district/22UN,Corporate Services,6460 - Career Track,4688 - Career Track Exam Fees,28/05/2013,2109139-1,22,REDACTED PERSONAL DATA,REDACTED PERSONAL DATA
Tendring DC,http://statistics.data.gov.uk/id/local-authority-district/22UN,Corporate Services,6980 - Essex Family Needs Project,5500 - Miscellaneous Expenses,21/05/2013,2109054-1,87.5,2102038 - Crispins Sandwich Bar Ltd,RM900351
Tendring DC,http://statistics.data.gov.uk/id/local-authority-district/22UN,Corporate Services,9890 - Collection Fund - NNDR,R125 - NNDR - Payments to DCLG,03/05/2013,1052271-1,1270299,2100432 - DCLG,NNDR AND RSG
Tendring DC,http://statistics.data.gov.uk/id/local-authority-district/22UN,Corporate Services,8984 - Business Rates Tariff and Levy,6990 - Business Rate Tariff and Levy,03/05/2013,1052271-2,534551,2100432 - DCLG,NNDR AND RSG
Tendring DC,http://statistics.data.gov.uk/id/local-authority-district/22UN,Corporate Services,9890 - Collection Fund - NNDR,R135 - NNDR - Transitional Relief Settlement,03/05/2013,1052271-3,-12499,2100432 - DCLG,NNDR AND RSG
Tendring DC,http://statistics.data.gov.uk/id/local-authority-district/22UN,Corporate Services,1300 - Legal Services Service Unit,4360 - DX Payments,14/05/2013,1051792-1,801.75,2100684 - DX Network Services Ltd,DX SERVICE
Tendring DC,http://statistics.data.gov.uk/id/local-authority-district/22UN,Corporate Services,1090 - Chief Executive and Support Service Unit,4400 - Maintenance Under Service Agreements,28/05/2013,1052318-1,20.08,2102826 - Eden Springs UK Ltd,BOTTLED WATER SUPPLIES
Tendring DC,http://statistics.data.gov.uk/id/local-authority-district/22UN,Corporate Services,6460 - Career Track,4688 - Career Track Exam Fees,07/05/2013,1051660-1,14.5,2100425 - EDI,EDI-CANDIDATE REG
Tendring DC,http://statistics.data.gov.uk/id/local-authority-district/22UN,Corporate Services,6460 - Career Track,4688 - Career Track Exam Fees,07/05/2013,1051661-1,47.5,2100425 - EDI,EDI-CANDIDATE REG
Tendring DC,http://statistics.data.gov.uk/id/local-authority-district/22UN,Corporate Services,6460 - Career Track,4688 - Career Track Exam Fees,07/05/2013,1051662-1,42.5,REDACTED PERSONAL DATA,REDACTED PERSONAL DATA
Tendring DC,http://statistics.data.gov.uk/id/local-authority-district/22UN,Corporate Services,6460 - Career Track,4688 - Career Track Exam Fees,07/05/2013,1051663-1,76.5,REDACTED PERSONAL DATA,REDACTED PERSONAL DATA
Tendring DC,http://statistics.data.gov.uk/id/local-authority-district/22UN,Corporate Services,6460 - Career Track,4688 - Career Track Exam Fees,28/05/2013,2109140-1,14.5,2100425 - EDI,EDI Functional Skill Reg
Tendring DC,http://statistics.data.gov.uk/id/local-authority-district/22UN,Corporate Services,1925 - Central Purchasing,4753 - Computer - Application Software,14/05/2013,1051781-1,17000,2100455 - E-Government Solutions Ltd,MARKETPLACE SLA
Tendring DC,http://statistics.data.gov.uk/id/local-authority-district/22UN,Corporate Services,1815 - Personnel and Human Resources Issues,4460 - Legal & Professional Expenses,28/05/2013,1052403-1,250,2100406 - Ellisons,COMPROMISE AGREEMENT
Tendring DC,http://statistics.data.gov.uk/id/local-authority-district/22UN,Corporate Services,1760 - IT Direct Service Costs,4715 - Data Communication Charge,07/05/2013,1051657-1,6457.23,2100498 - Essex County Council,ECC-GCSX RECHARGE
Tendring DC,http://statistics.data.gov.uk/id/local-authority-district/22UN,Corporate Services,8971 - MIRS - Contributions Payable to the Pension Scheme,1822 - Superannuation - Port Health Pensions etc.,07/05/2013,1051722-1,795.22,2100419 - Essex County Council,PORT HEALTH AUTHORITY
Tendring DC,http://statistics.data.gov.uk/id/local-authority-district/22UN,Corporate Services,8971 - MIRS - Contributions Payable to the Pension Scheme,1816 - Superannuation Deficiency Contribution,07/05/2013,1051731-4,137750,2100419 - Essex County Council,PENSION 00013
Tendring DC,http://statistics.data.gov.uk/id/local-authority-district/22UN,Corporate Services,8971 - MIRS - Contributions Payable to the Pension Scheme,1810 - Superannuation - Financial Strain/Added Years,07/05/2013,1051731-5,17401.1,2100419 - Essex County Council,PENSION 00013
Tendring DC,http://statistics.data.gov.uk/id/local-authority-district/22UN,Corporate Services,8660 - Fit for Purpose,5500 - Miscellaneous Expenses,14/05/2013,1051930-1,22827.53,REDACTED PERSONAL DATA,REDACTED PERSONAL DATA
Tendring DC,http://statistics.data.gov.uk/id/local-authority-district/22UN,Corporate Services,9900 - General Fund Balance Sheet,B382 - Rechargeable Works - Other,28/05/2013,1052317-1,1400,2100498 - Essex County Council,SAFER ESSEX FUNDING EDAP
Tendring DC,http://statistics.data.gov.uk/id/local-authority-district/22UN,Corporate Services,1180 - Benefit Fraud Investigation Service Unit,5500 - Miscellaneous Expenses,28/05/2013,1052381-1,10,2100429 - Essex County Council,BIRTH CERTIFICATE FOR FRAUD INVESTIGATION
Tendring DC,http://statistics.data.gov.uk/id/local-authority-district/22UN,Corporate Services,1660 - Other Apportionable Overheads,4609 - Child Care Vouchers Management Fee,07/05/2013,1051740-2,71.66,2104459 - Fideliti Ltd,MAY 13 VOUCHERS
Tendring DC,http://statistics.data.gov.uk/id/local-authority-district/22UN,Corporate Services,H880 - New Build Initiatives and Acquisitions,C200 - Main Contractor,14/05/2013,1051939-1,99.43,2113057 - Geodesys,
Tendring DC,http://statistics.data.gov.uk/id/local-authority-district/22UN,Corporate Services,1815 - Personnel and Human Resources Issues,1610 - Counselling,07/05/2013,2108994-1,680,2100517 - Geraldine Craig,Counselling
Tendring DC,http://statistics.data.gov.uk/id/local-authority-district/22UN,Corporate Services,1180 - Benefit Fraud Investigation Service Unit,4460 - Legal & Professional Expenses,07/05/2013,2108997-1,4078.5,2100672 - Harris Cuffaro & Nichols Solicitors,Solicitor Costs
Tendring DC,http://statistics.data.gov.uk/id/local-authority-district/22UN,Corporate Services,1180 - Benefit Fraud Investigation Service Unit,4460 - Legal & Professional Expenses,07/05/2013,2108997-2,24,2100672 - Harris Cuffaro & Nichols Solicitors,Solicitor Costs
Tendring DC,http://statistics.data.gov.uk/id/local-authority-district/22UN,Corporate Services,1180 - Benefit Fraud Investigation Service Unit,4460 - Legal & Professional Expenses,21/05/2013,2109048-1,24650.7,2100672 - Harris Cuffaro & Nichols Solicitors,Solicitors Costs
Tendring DC,http://statistics.data.gov.uk/id/local-authority-district/22UN,Corporate Services,1180 - Benefit Fraud Investigation Service Unit,4460 - Legal & Professional Expenses,21/05/2013,2109048-2,44.2,2100672 - Harris Cuffaro & Nichols Solicitors,Solicitors Costs
Tendring DC,http://statistics.data.gov.uk/id/local-authority-district/22UN,Corporate Services,6980 - Essex Family Needs Project,5500 - Miscellaneous Expenses,28/05/2013,1052296-1,12,2100604 - Harwich Taxis,TAXI
Tendring DC,http://statistics.data.gov.uk/id/local-authority-district/22UN,Corporate Services,1660 - Other Apportionable Overheads,5222 - General Write Offs/Adjustments,07/05/2013,1051733-2,0.31,REDACTED PERSONAL DATA,REDACTED PERSONAL DATA
Tendring DC,http://statistics.data.gov.uk/id/local-authority-district/22UN,Corporate Services,1210 - Facilities Management Service Unit,3302 - Car Allowances - Officers,28/05/2013,1052233-1,50,REDACTED PERSONAL DATA,REDACTED PERSONAL DATA
Tendring DC,http://statistics.data.gov.uk/id/local-authority-district/22UN,Corporate Services,1320 - Print Unit Service Unit,4080 - Materials & Consumables,07/05/2013,2108886-1,71.84,2100864 - Leston Stationery Ltd,Autofill Envelopes
Tendring DC,http://statistics.data.gov.uk/id/local-authority-district/22UN,Corporate Services,1320 - Print Unit Service Unit,4080 - Materials & Consumables,07/05/2013,2108887-1,93.6,2100864 - Leston Stationery Ltd,A3 White
Tendring DC,http://statistics.data.gov.uk/id/local-authority-district/22UN,Corporate Services,1320 - Print Unit Service Unit,4080 - Materials & Consumables,28/05/2013,2109135-1,30,2100864 - Leston Stationery Ltd,Flash Drives
Tendring DC,http://statistics.data.gov.uk/id/local-authority-district/22UN,Corporate Services,1320 - Print Unit Service Unit,4080 - Materials & Consumables,28/05/2013,2109136-1,188.8,2100864 - Leston Stationery Ltd,100g Paper & 250g Card
Tendring DC,http://statistics.data.gov.uk/id/local-authority-district/22UN,Corporate Services,1320 - Print Unit Service Unit,4080 - Materials & Consumables,28/05/2013,2109137-1,19.6,2100864 - Leston Stationery Ltd,Envelopes
Tendring DC,http://statistics.data.gov.uk/id/local-authority-district/22UN,Corporate Services,1320 - Print Unit Service Unit,4080 - Materials & Consumables,28/05/2013,2109138-1,59.8,2100864 - Leston Stationery Ltd,A4 Cream Paper
Tendring DC,http://statistics.data.gov.uk/id/local-authority-district/22UN,Corporate Services,1150 - Other Corporate Services Mgt & Central Admin Service Unit,3311 - Travelling Career Track,07/05/2013,1051737-1,60.4,REDACTED PERSONAL DATA,REDACTED PERSONAL DATA
Tendring DC,http://statistics.data.gov.uk/id/local-authority-district/22UN,Corporate Services,1760 - IT Direct Service Costs,6320 - IT Services Agreements Payment,21/05/2013,1052194-1,51622.01,2108077 - Liberata Financial Services Ltd,ICT CONTRACT-MAY 13
Tendring DC,http://statistics.data.gov.uk/id/local-authority-district/22UN,Corporate Services,6980 - Essex Family Needs Project,5500 - Miscellaneous Expenses,14/05/2013,1051794-1,120,2111855 - Little Pals Childrens Centre Nursery Ltd,CRECHE SERVICES
Tendring DC,http://statistics.data.gov.uk/id/local-authority-district/22UN,Corporate Services,1300 - Legal Services Service Unit,4460 - Legal & Professional Expenses,28/05/2013,1052261-1,209.3,2113100 - Merrill Legal Solutions,TRANSCRIPTION SERVICES
Tendring DC,http://statistics.data.gov.uk/id/local-authority-district/22UN,Corporate Services,1320 - Print Unit Service Unit,4302 - External Print Unit Expenses,07/05/2013,2108884-1,25,2111479 - Neil Goss Litho Printing,Job 654
Tendring DC,http://statistics.data.gov.uk/id/local-authority-district/22UN,Corporate Services,1320 - Print Unit Service Unit,4302 - External Print Unit Expenses,07/05/2013,2108885-1,65,2111479 - Neil Goss Litho Printing,Jobs 054/060
Tendring DC,http://statistics.data.gov.uk/id/local-authority-district/22UN,Corporate Services,6460 - Career Track,4688 - Career Track Exam Fees,07/05/2013,1051659-1,87.3,2101071 - OCR,OCR-CANDIDATE REG
Tendring DC,http://statistics.data.gov.uk/id/local-authority-district/22UN,Corporate Services,6460 - Career Track,4688 - Career Track Exam Fees,21/05/2013,1052164-1,-98.3,REDACTED PERSONAL DATA,REDACTED PERSONAL DATA
Tendring DC,http://statistics.data.gov.uk/id/local-authority-district/22UN,Corporate Services,6460 - Career Track,4688 - Career Track Exam Fees,21/05/2013,7009270-1,145.7,REDACTED PERSONAL DATA,REDACTED PERSONAL DATA
Tendring DC,http://statistics.data.gov.uk/id/local-authority-district/22UN,Corporate Services,1320 - Print Unit Service Unit,4302 - External Print Unit Expenses,21/05/2013,1052001-1,10,2111844 - Optimumprint,JOB 086
Tendring DC,http://statistics.data.gov.uk/id/local-authority-district/22UN,Corporate Services,1320 - Print Unit Service Unit,4302 - External Print Unit Expenses,28/05/2013,2109133-1,25,2111844 - Optimumprint,Job 086
Tendring DC,http://statistics.data.gov.uk/id/local-authority-district/22UN,Corporate Services,1815 - Personnel and Human Resources Issues,1500 - Advertising - Recruitment,28/05/2013,1052404-1,4196.14,2101097 - Peter Lockyer Advertising Ltd,PRODUCTION CHARGE
Tendring DC,http://statistics.data.gov.uk/id/local-authority-district/22UN,Corporate Services,1815 - Personnel and Human Resources Issues,1500 - Advertising - Recruitment,07/05/2013,2108992-1,1029.43,2101097 - Peter Lockyer Advertising Ltd,Daily Times Adverts
Tendring DC,http://statistics.data.gov.uk/id/local-authority-district/22UN,Corporate Services,1661 - Other Apportionable Overheads - Corporate Support,4700 - Postage,21/05/2013,2109069-1,1199.53,2104077 - Pitney Bowes Ltd,Franking Consumables
Tendring DC,http://statistics.data.gov.uk/id/local-authority-district/22UN,Corporate Services,1815 - Personnel and Human Resources Issues,1500 - Advertising - Recruitment,28/05/2013,1052402-1,55,2113111 - Portcullis Wealth Management,PRE-RETIREMENT COURSE
Tendring DC,http://statistics.data.gov.uk/id/local-authority-district/22UN,Corporate Services,1930 - Asset Management Service Unit,4460 - Legal & Professional Expenses,28/05/2013,2109158-1,1000.4,2105829 - Prettys Solicitors,Lease of Market at High St
Tendring DC,http://statistics.data.gov.uk/id/local-authority-district/22UN,Corporate Services,1930 - Asset Management Service Unit,4460 - Legal & Professional Expenses,28/05/2013,2109158-2,10,2105829 - Prettys Solicitors,Lease of Market at High St
Tendring DC,http://statistics.data.gov.uk/id/local-authority-district/22UN,Corporate Services,1930 - Asset Management Service Unit,4460 - Legal & Professional Expenses,28/05/2013,2109159-1,1024,2105829 - Prettys Solicitors,Prettys - Legal Advice & Services
Tendring DC,http://statistics.data.gov.uk/id/local-authority-district/22UN,Corporate Services,1930 - Asset Management Service Unit,4460 - Legal & Professional Expenses,28/05/2013,2109159-2,12,2105829 - Prettys Solicitors,Prettys - Legal Advice & Services
Tendring DC,http://statistics.data.gov.uk/id/local-authority-district/22UN,Corporate Services,1930 - Asset Management Service Unit,4460 - Legal & Professional Expenses,28/05/2013,2109160-1,1000.4,2105829 - Prettys Solicitors,Lease of 61 Church St
Tendring DC,http://statistics.data.gov.uk/id/local-authority-district/22UN,Corporate Services,1930 - Asset Management Service Unit,4460 - Legal & Professional Expenses,28/05/2013,2109160-2,10,2105829 - Prettys Solicitors,Lease of 61 Church St
Tendring DC,http://statistics.data.gov.uk/id/local-authority-district/22UN,Corporate Services,1930 - Asset Management Service Unit,4460 - Legal & Professional Expenses,28/05/2013,2109161-1,920,2105829 - Prettys Solicitors,Variation of lease to Frinton & Walton Scouts
Tendring DC,http://statistics.data.gov.uk/id/local-authority-district/22UN,Corporate Services,1930 - Asset Management Service Unit,4460 - Legal & Professional Expenses,28/05/2013,2109161-2,16.4,2105829 - Prettys Solicitors,Variation of lease to Frinton & Walton Scouts
Tendring DC,http://statistics.data.gov.uk/id/local-authority-district/22UN,Corporate Services,1930 - Asset Management Service Unit,4460 - Legal & Professional Expenses,28/05/2013,2109162-1,884.4,2105829 - Prettys Solicitors,Lease of Dovercourt Rugby Club
Tendring DC,http://statistics.data.gov.uk/id/local-authority-district/22UN,Corporate Services,1930 - Asset Management Service Unit,4460 - Legal & Professional Expenses,28/05/2013,2109162-2,33,2105829 - Prettys Solicitors,Lease of Dovercourt Rugby Club
Tendring DC,http://statistics.data.gov.uk/id/local-authority-district/22UN,Corporate Services,1930 - Asset Management Service Unit,4460 - Legal & Professional Expenses,28/05/2013,2109163-1,1000.4,2105829 - Prettys Solicitors,Lease Clacton Rugby Union Club
Tendring DC,http://statistics.data.gov.uk/id/local-authority-district/22UN,Corporate Services,1930 - Asset Management Service Unit,4460 - Legal & Professional Expenses,28/05/2013,2109163-2,16,2105829 - Prettys Solicitors,Lease Clacton Rugby Union Club
Tendring DC,http://statistics.data.gov.uk/id/local-authority-district/22UN,Corporate Services,1930 - Asset Management Service Unit,4460 - Legal & Professional Expenses,28/05/2013,2109164-1,1000.4,2105829 - Prettys Solicitors,Lease of happy Valley bowls Club
Tendring DC,http://statistics.data.gov.uk/id/local-authority-district/22UN,Corporate Services,1930 - Asset Management Service Unit,4460 - Legal & Professional Expenses,28/05/2013,2109164-2,10,2105829 - Prettys Solicitors,Lease of happy Valley bowls Club
Tendring DC,http://statistics.data.gov.uk/id/local-authority-district/22UN,Corporate Services,9930 - Loans Fund Balance Sheet,B551 - Loans Maturing Within One Year - HRA,22/05/2013,1052275-1,170000,2101162 - Public Works Loan Board,PRINCIPAL AND INTEREST PAYMENTS
Tendring DC,http://statistics.data.gov.uk/id/local-authority-district/22UN,Corporate Services,5760 - HRA - Capital & Interest Charges,9831 - HRA Interest (formerly Item 8),22/05/2013,1052275-2,113832,2101162 - Public Works Loan Board,PRINCIPAL AND INTEREST PAYMENTS
Tendring DC,http://statistics.data.gov.uk/id/local-authority-district/22UN,Corporate Services,6540 - Members Allowance,4841 - Members Allowances - Subsistence,14/05/2013,1051876-1,7,2113027 - Regen Offices Limited,NMDG MEETING
Tendring DC,http://statistics.data.gov.uk/id/local-authority-district/22UN,Corporate Services,1180 - Benefit Fraud Investigation Service Unit,5500 - Miscellaneous Expenses,07/05/2013,2108983-1,10,REDACTED PERSONAL DATA,REDACTED PERSONAL DATA
Tendring DC,http://statistics.data.gov.uk/id/local-authority-district/22UN,Corporate Services,1100 - Head of Corporate Services and Admin Service Unit,4400 - Maintenance Under Service Agreements,14/05/2013,1051810-1,83.52,2101090 - Ricoh UK Ltd,B/W COLOUR COPIES
Tendring DC,http://statistics.data.gov.uk/id/local-authority-district/22UN,Corporate Services,1100 - Head of Corporate Services and Admin Service Unit,4400 - Maintenance Under Service Agreements,14/05/2013,1051811-1,520.33,2101090 - Ricoh UK Ltd,B/W COLOUR COPIES
Tendring DC,http://statistics.data.gov.uk/id/local-authority-district/22UN,Corporate Services,6580 - Member Support Cost,4350 - Photocopier Hire,28/05/2013,1052418-1,108.52,2101090 - Ricoh UK Ltd,MEMBERS PHOTOCOPIER
Tendring DC,http://statistics.data.gov.uk/id/local-authority-district/22UN,Corporate Services,7220 - Election Expenses,4486 - Election Expenses,21/05/2013,2109067-1,212.73,2101139 - Royal Mail,Electoral Postage
Tendring DC,http://statistics.data.gov.uk/id/local-authority-district/22UN,Corporate Services,7240 - Electoral Registration Expenses,4700 - Postage,21/05/2013,2109067-2,137.77,2101139 - Royal Mail,Electoral Postage
Tendring DC,http://statistics.data.gov.uk/id/local-authority-district/22UN,Corporate Services,7220 - Election Expenses,4486 - Election Expenses,21/05/2013,2109068-1,313.07,2101139 - Royal Mail,Electoral Postage
Tendring DC,http://statistics.data.gov.uk/id/local-authority-district/22UN,Corporate Services,1760 - IT Direct Service Costs,4753 - Computer - Application Software,21/05/2013,2109055-1,1262.27,2109993 - Sec-1 Ltd,RM900384
Tendring DC,http://statistics.data.gov.uk/id/local-authority-district/22UN,Corporate Services,1760 - IT Direct Service Costs,4751 - Hardware & Service Maintenance,14/05/2013,1051793-1,76.95,2101214 - Seton Ltd,STEPS
Tendring DC,http://statistics.data.gov.uk/id/local-authority-district/22UN,Corporate Services,1815 - Personnel and Human Resources Issues,1500 - Advertising - Recruitment,21/05/2013,2109041-1,11750,2105423 - SHL Group Ltd,SHL On Demand
Tendring DC,http://statistics.data.gov.uk/id/local-authority-district/22UN,Corporate Services,1100 - Head of Corporate Services and Admin Service Unit,1700 - Training - Courses,21/05/2013,2109066-1,472,2104780 - The Association of Electoral Administrators,AEA Course MBK/ACR/CS
Tendring DC,http://statistics.data.gov.uk/id/local-authority-district/22UN,Corporate Services,7025 - CDRP Support,4900 - Grants,28/05/2013,2109132-1,1500,2113099 - The Resource Bank,TD Crucial Crew Booklets
Tendring DC,http://statistics.data.gov.uk/id/local-authority-district/22UN,Corporate Services,1300 - Legal Services Service Unit,4355 - Books & Periodicals,14/05/2013,1051805-1,7600.01,2111580 - Thomson Reuters,WESTLAW SERVICES
Tendring DC,http://statistics.data.gov.uk/id/local-authority-district/22UN,Corporate Services,1300 - Legal Services Service Unit,4355 - Books & Periodicals,07/05/2013,2108925-1,245,2111580 - Thomson Reuters,Rosson licensing
Tendring DC,http://statistics.data.gov.uk/id/local-authority-district/22UN,Corporate Services,1300 - Legal Services Service Unit,4355 - Books & Periodicals,07/05/2013,2108926-1,239,2111580 - Thomson Reuters,Cross on L Government
Tendring DC,http://statistics.data.gov.uk/id/local-authority-district/22UN,Corporate Services,6580 - Member Support Cost,4670 - Hire of Premises,07/05/2013,1051658-1,54,2103335 - Venture Centre,TRAVELLING CABINET LAWFORD
Tendring DC,http://statistics.data.gov.uk/id/local-authority-district/22UN,Corporate Services,1760 - IT Direct Service Costs,4751 - Hardware & Service Maintenance,21/05/2013,1051960-1,34.9,2101521 - Videk Limited,
Tendring DC,http://statistics.data.gov.uk/id/local-authority-district/22UN,Corporate Services,1925 - Central Purchasing,4710 - Telephones - Charges,07/05/2013,1051063-1,-175,2101522 - Vodafone Corporate,
Tendring DC,http://statistics.data.gov.uk/id/local-authority-district/22UN,Corporate Services,"1580 - Benefits, Revenues and Customer Contact SU",4716 - Mobile Telephone Costs,28/05/2013,1052294-1,0.66,2101522 - Vodafone Corporate,VODAFONE APRIL 13 RM
Tendring DC,http://statistics.data.gov.uk/id/local-authority-district/22UN,Corporate Services,"1580 - Benefits, Revenues and Customer Contact SU",4716 - Mobile Telephone Costs,28/05/2013,1052294-2,184.08,2101522 - Vodafone Corporate,VODAFONE APRIL 13 RM
Tendring DC,http://statistics.data.gov.uk/id/local-authority-district/22UN,Corporate Services,1180 - Benefit Fraud Investigation Service Unit,4716 - Mobile Telephone Costs,28/05/2013,1052294-3,23.52,2101522 - Vodafone Corporate,VODAFONE APRIL 13 RM
Tendring DC,http://statistics.data.gov.uk/id/local-authority-district/22UN,Corporate Services,6460 - Career Track,4716 - Mobile Telephone Costs,28/05/2013,1052294-4,279.58,2101522 - Vodafone Corporate,VODAFONE APRIL 13 RM
Tendring DC,http://statistics.data.gov.uk/id/local-authority-district/22UN,Corporate Services,1300 - Legal Services Service Unit,4716 - Mobile Telephone Costs,28/05/2013,1052294-5,11.25,2101522 - Vodafone Corporate,VODAFONE APRIL 13 RM
Tendring DC,http://statistics.data.gov.uk/id/local-authority-district/22UN,Corporate Services,1330 - Human Resources Service Unit,4716 - Mobile Telephone Costs,28/05/2013,1052294-6,206.6,2101522 - Vodafone Corporate,VODAFONE APRIL 13 RM
Tendring DC,http://statistics.data.gov.uk/id/local-authority-district/22UN,Corporate Services,1620 - Corporate Performance - IT Section Service Unit,4716 - Mobile Telephone Costs,28/05/2013,1052294-7,324.46,2101522 - Vodafone Corporate,VODAFONE APRIL 13 RM
Tendring DC,http://statistics.data.gov.uk/id/local-authority-district/22UN,Corporate Services,1100 - Head of Corporate Services and Admin Service Unit,4716 - Mobile Telephone Costs,28/05/2013,1052295-1,24.9,2101522 - Vodafone Corporate,VODAFONE APRIL 13 MB
Tendring DC,http://statistics.data.gov.uk/id/local-authority-district/22UN,Corporate Services,1100 - Head of Corporate Services and Admin Service Unit,4716 - Mobile Telephone Costs,28/05/2013,1052295-2,135.69,2101522 - Vodafone Corporate,VODAFONE APRIL 13 MB
Tendring DC,http://statistics.data.gov.uk/id/local-authority-district/22UN,Corporate Services,6580 - Member Support Cost,4716 - Mobile Telephone Costs,28/05/2013,1052295-3,354.32,2101522 - Vodafone Corporate,VODAFONE APRIL 13 MB
Tendring DC,http://statistics.data.gov.uk/id/local-authority-district/22UN,Corporate Services,1210 - Facilities Management Service Unit,4716 - Mobile Telephone Costs,28/05/2013,1052295-4,354.66,2101522 - Vodafone Corporate,VODAFONE APRIL 13 MB
Tendring DC,http://statistics.data.gov.uk/id/local-authority-district/22UN,Corporate Services,7025 - CDRP Support,4900 - Grants,28/05/2013,1052295-5,11.31,2101522 - Vodafone Corporate,VODAFONE APRIL 13 MB
Tendring DC,http://statistics.data.gov.uk/id/local-authority-district/22UN,Corporate Services,7716 - Jaywick Team,4716 - Mobile Telephone Costs,28/05/2013,1052295-6,97.27,2101522 - Vodafone Corporate,VODAFONE APRIL 13 MB
Tendring DC,http://statistics.data.gov.uk/id/local-authority-district/22UN,Corporate Services,1040 - Regeneration Service Unit,4716 - Mobile Telephone Costs,28/05/2013,1052295-7,145.86,2101522 - Vodafone Corporate,VODAFONE APRIL 13 MB
Tendring DC,http://statistics.data.gov.uk/id/local-authority-district/22UN,Corporate Services,1090 - Chief Executive and Support Service Unit,4716 - Mobile Telephone Costs,28/05/2013,1052295-8,235.62,2101522 - Vodafone Corporate,VODAFONE APRIL 13 MB
Tendring DC,http://statistics.data.gov.uk/id/local-authority-district/22UN,Corporate Services,1925 - Central Purchasing,4710 - Telephones - Charges,07/05/2013,2107659-1,175,2101522 - Vodafone Corporate,
Tendring DC,http://statistics.data.gov.uk/id/local-authority-district/22UN,Corporate Services,1100 - Head of Corporate Services and Admin Service Unit,4716 - Mobile Telephone Costs,07/05/2013,7008938-1,-42.68,2101522 - Vodafone Corporate,VODAFONE 670087200
Tendring DC,http://statistics.data.gov.uk/id/local-authority-district/22UN,Corporate Services,1320 - Print Unit Service Unit,4350 - Photocopier Hire,28/05/2013,2109134-1,1869.9,2101527 - Xerox Finance Ltd,4127 Rental
Tendring DC,http://statistics.data.gov.uk/id/local-authority-district/22UN,Corporate Services,1100 - Head of Corporate Services and Admin Service Unit,4300 - Printing & Stationery,14/05/2013,1051795-1,53.68,2107546 - XMA Limited,LONGBOW 4200 TONERS
Tendring DC,http://statistics.data.gov.uk/id/local-authority-district/22UN,Corporate Services,1100 - Head of Corporate Services and Admin Service Unit,4300 - Printing & Stationery,21/05/2013,2109070-1,148.4,2107546 - XMA Limited,Electoral Ink Cartridge
Tendring DC,http://statistics.data.gov.uk/id/local-authority-district/22UN,Corporate Services,1760 - IT Direct Service Costs,4751 - Hardware & Service Maintenance,11/06/2013,2109266-1,25,REDACTED PERSONAL DATA,REDACTED PERSONAL DATA
Tendring DC,http://statistics.data.gov.uk/id/local-authority-district/22UN,Corporate Services,1100 - Head of Corporate Services and Admin Service Unit,1700 - Training - Courses,18/06/2013,7009393-1,125,2113125 - ADSO,ADSO CONFERENCE
Tendring DC,http://statistics.data.gov.uk/id/local-authority-district/22UN,Corporate Services,6980 - Essex Family Needs Project,4469 - Other Non - Legal Professional Services,11/06/2013,1052741-1,5712,2103923 - Anglia Ruskin University,JOANNE ROPER
Tendring DC,http://statistics.data.gov.uk/id/local-authority-district/22UN,Corporate Services,1180 - Benefit Fraud Investigation Service Unit,4880 - Subscriptions Paid,11/06/2013,1052588-1,1150,2102829 - Audit Commission,NFI FEE-INSTAL
Tendring DC,http://statistics.data.gov.uk/id/local-authority-district/22UN,Corporate Services,1320 - Print Unit Service Unit,4302 - External Print Unit Expenses,11/06/2013,1052743-1,199,2100069 - Autoprint,JKOB 106/118
Tendring DC,http://statistics.data.gov.uk/id/local-authority-district/22UN,Corporate Services,1320 - Print Unit Service Unit,4302 - External Print Unit Expenses,11/06/2013,1052744-1,65,2100069 - Autoprint,JOB 126
Tendring DC,http://statistics.data.gov.uk/id/local-authority-district/22UN,Corporate Services,1320 - Print Unit Service Unit,4302 - External Print Unit Expenses,11/06/2013,1052745-1,129,2100069 - Autoprint,JOB 121
Tendring DC,http://statistics.data.gov.uk/id/local-authority-district/22UN,Corporate Services,1100 - Head of Corporate Services and Admin Service Unit,4300 - Printing & Stationery,04/06/2013,1052426-1,94.01,2100111 - Banner Business Supplies Ltd,STATIONERY ORDER-BANNER
Tendring DC,http://statistics.data.gov.uk/id/local-authority-district/22UN,Corporate Services,1100 - Head of Corporate Services and Admin Service Unit,4300 - Printing & Stationery,04/06/2013,1052427-1,72.05,2100111 - Banner Business Supplies Ltd,STATIONERY ORDER
Tendring DC,http://statistics.data.gov.uk/id/local-authority-district/22UN,Corporate Services,1100 - Head of Corporate Services and Admin Service Unit,4300 - Printing & Stationery,04/06/2013,1052428-1,1.47,2100111 - Banner Business Supplies Ltd,WASTE BIN
Tendring DC,http://statistics.data.gov.uk/id/local-authority-district/22UN,Corporate Services,6580 - Member Support Cost,4300 - Printing & Stationery,25/06/2013,1053100-1,18.72,2100111 - Banner Business Supplies Ltd,MISC STATIONERY
Tendring DC,http://statistics.data.gov.uk/id/local-authority-district/22UN,Corporate Services,1320 - Print Unit Service Unit,4080 - Materials & Consumables,25/06/2013,1053100-2,2.09,2100111 - Banner Business Supplies Ltd,MISC STATIONERY
Tendring DC,http://statistics.data.gov.uk/id/local-authority-district/22UN,Corporate Services,1100 - Head of Corporate Services and Admin Service Unit,4300 - Printing & Stationery,25/06/2013,1053100-3,52.7,2100111 - Banner Business Supplies Ltd,MISC STATIONERY
Tendring DC,http://statistics.data.gov.uk/id/local-authority-district/22UN,Corporate Services,1090 - Chief Executive and Support Service Unit,4300 - Printing & Stationery,18/06/2013,2109327-1,125.44,2100111 - Banner Business Supplies Ltd,General Stationery
Tendring DC,http://statistics.data.gov.uk/id/local-authority-district/22UN,Corporate Services,1100 - Head of Corporate Services and Admin Service Unit,4300 - Printing & Stationery,18/06/2013,7009372-1,122.08,2100111 - Banner Business Supplies Ltd,STATIONERY
Tendring DC,http://statistics.data.gov.uk/id/local-authority-district/22UN,Corporate Services,1100 - Head of Corporate Services and Admin Service Unit,4300 - Printing & Stationery,25/06/2013,7009413-1,21.28,2100111 - Banner Business Supplies Ltd,STATIONERY ENVELOPES FILES
Tendring DC,http://statistics.data.gov.uk/id/local-authority-district/22UN,Corporate Services,C276 - Clacton Regeneration,C200 - Main Contractor,11/06/2013,2109270-1,3000,2112662 - Bidwells,Bidwells Alanta Cafe
Tendring DC,http://statistics.data.gov.uk/id/local-authority-district/22UN,Corporate Services,1760 - IT Direct Service Costs,4715 - Data Communication Charge,25/06/2013,1053089-1,188.95,2100168 - British Telecommunications plc,34512194 JUNE 13
Tendring DC,http://statistics.data.gov.uk/id/local-authority-district/22UN,Corporate Services,1760 - IT Direct Service Costs,4715 - Data Communication Charge,25/06/2013,1053090-1,45.36,2100168 - British Telecommunications plc,3527 3347 JUNE 13
Tendring DC,http://statistics.data.gov.uk/id/local-authority-district/22UN,Corporate Services,1760 - IT Direct Service Costs,4715 - Data Communication Charge,25/06/2013,1053091-1,45.36,2100168 - British Telecommunications plc,3518 8878 JUNE 13
Tendring DC,http://statistics.data.gov.uk/id/local-authority-district/22UN,Corporate Services,1760 - IT Direct Service Costs,4715 - Data Communication Charge,25/06/2013,1053092-1,45.36,2100168 - British Telecommunications plc,3960 7839 JUNE 13
Tendring DC,http://statistics.data.gov.uk/id/local-authority-district/22UN,Corporate Services,1760 - IT Direct Service Costs,4715 - Data Communication Charge,25/06/2013,1053093-1,45.36,2100168 - British Telecommunications plc,39728266 JUNE 13
Tendring DC,http://statistics.data.gov.uk/id/local-authority-district/22UN,Corporate Services,1760 - IT Direct Service Costs,4715 - Data Communication Charge,25/06/2013,1053094-1,46.87,2100168 - British Telecommunications plc,3440 1625 JUN 13
Tendring DC,http://statistics.data.gov.uk/id/local-authority-district/22UN,Corporate Services,1760 - IT Direct Service Costs,4715 - Data Communication Charge,25/06/2013,1053095-1,113.25,2100168 - British Telecommunications plc,3679 1327 JUNE 13
Tendring DC,http://statistics.data.gov.uk/id/local-authority-district/22UN,Corporate Services,1760 - IT Direct Service Costs,4715 - Data Communication Charge,04/06/2013,1052474-1,21135.38,2100119 - BT Global Services,BT GLOBAL 04/13-03/14
Tendring DC,http://statistics.data.gov.uk/id/local-authority-district/22UN,Corporate Services,9900 - General Fund Balance Sheet,B879 - Charges made by Merchant Acquirer,06/06/2013,1052915-1,29.34,2100202 - Capita Business Services Ltd,CAPITA MAY 2013
Tendring DC,http://statistics.data.gov.uk/id/local-authority-district/22UN,Corporate Services,9900 - General Fund Balance Sheet,B879 - Charges made by Merchant Acquirer,06/06/2013,1052915-2,70.06,2100202 - Capita Business Services Ltd,CAPITA MAY 2013
Tendring DC,http://statistics.data.gov.uk/id/local-authority-district/22UN,Corporate Services,9900 - General Fund Balance Sheet,B879 - Charges made by Merchant Acquirer,06/06/2013,1052915-3,266.22,2100202 - Capita Business Services Ltd,CAPITA MAY 2013
Tendring DC,http://statistics.data.gov.uk/id/local-authority-district/22UN,Corporate Services,9900 - General Fund Balance Sheet,B879 - Charges made by Merchant Acquirer,06/06/2013,1052915-4,615.02,2100202 - Capita Business Services Ltd,CAPITA MAY 2013
Tendring DC,http://statistics.data.gov.uk/id/local-authority-district/22UN,Corporate Services,9900 - General Fund Balance Sheet,B879 - Charges made by Merchant Acquirer,06/06/2013,1052915-5,373.86,2100202 - Capita Business Services Ltd,CAPITA MAY 2013
Tendring DC,http://statistics.data.gov.uk/id/local-authority-district/22UN,Corporate Services,9900 - General Fund Balance Sheet,B879 - Charges made by Merchant Acquirer,06/06/2013,1052915-6,467.47,2100202 - Capita Business Services Ltd,CAPITA MAY 2013
Tendring DC,http://statistics.data.gov.uk/id/local-authority-district/22UN,Corporate Services,9900 - General Fund Balance Sheet,B879 - Charges made by Merchant Acquirer,06/06/2013,1052915-7,385.74,2100202 - Capita Business Services Ltd,CAPITA MAY 2013
Tendring DC,http://statistics.data.gov.uk/id/local-authority-district/22UN,Corporate Services,9900 - General Fund Balance Sheet,B879 - Charges made by Merchant Acquirer,06/06/2013,1052915-8,624.43,2100202 - Capita Business Services Ltd,CAPITA MAY 2013
Tendring DC,http://statistics.data.gov.uk/id/local-authority-district/22UN,Corporate Services,9900 - General Fund Balance Sheet,B879 - Charges made by Merchant Acquirer,06/06/2013,1052915-9,0.18,2100202 - Capita Business Services Ltd,CAPITA MAY 2013
Tendring DC,http://statistics.data.gov.uk/id/local-authority-district/22UN,Corporate Services,7025 - CDRP Support,4900 - Grants,18/06/2013,7009371-1,642,2100205 - Chelmsford Safety Supplies Ltd,LED SIGN
Tendring DC,http://statistics.data.gov.uk/id/local-authority-district/22UN,Corporate Services,1120 - Accountancy Service Unit,4355 - Books & Periodicals,25/06/2013,1053153-1,515,2109394 - CIPFA Business Ltd,CIPFA PUBLICATIONS
Tendring DC,http://statistics.data.gov.uk/id/local-authority-district/22UN,Corporate Services,1120 - Accountancy Service Unit,4355 - Books & Periodicals,25/06/2013,1053153-2,3.75,2109394 - CIPFA Business Ltd,CIPFA PUBLICATIONS
Tendring DC,http://statistics.data.gov.uk/id/local-authority-district/22UN,Corporate Services,1220 - Finance and Procurement Manager Service Unit,4355 - Books & Periodicals,25/06/2013,1053153-3,100,2109394 - CIPFA Business Ltd,CIPFA PUBLICATIONS
Tendring DC,http://statistics.data.gov.uk/id/local-authority-district/22UN,Corporate Services,6640 - Treasury Management,5192 - Brokerage,03/06/2013,1052914-1,77,2100269 - Co operative Bank plc,FD MAY 2013
Tendring DC,http://statistics.data.gov.uk/id/local-authority-district/22UN,Corporate Services,6620 - Corporate Management - General,5190 - Bank Commission Charges,03/06/2013,1052914-2,244,2100269 - Co operative Bank plc,FD MAY 2013
Tendring DC,http://statistics.data.gov.uk/id/local-authority-district/22UN,Corporate Services,1560 - Cashiers Service Unit,5186 - Paypoint/post office charges,03/06/2013,1052914-3,1353.41,2100269 - Co operative Bank plc,FD MAY 2013
Tendring DC,http://statistics.data.gov.uk/id/local-authority-district/22UN,Corporate Services,1560 - Cashiers Service Unit,5186 - Paypoint/post office charges,03/06/2013,1052914-4,3025.75,2100269 - Co operative Bank plc,FD MAY 2013
Tendring DC,http://statistics.data.gov.uk/id/local-authority-district/22UN,Corporate Services,1760 - IT Direct Service Costs,4715 - Data Communication Charge,03/06/2013,1053225-1,10,2100269 - Co operative Bank plc,4988234503000204-VISA CARD
Tendring DC,http://statistics.data.gov.uk/id/local-authority-district/22UN,Corporate Services,5800 - Brightlingsea Sports Centre,4710 - Telephones - Charges,03/06/2013,1053225-2,30,2100269 - Co operative Bank plc,4988234503000204-VISA CARD
Tendring DC,http://statistics.data.gov.uk/id/local-authority-district/22UN,Corporate Services,6620 - Corporate Management - General,5190 - Bank Commission Charges,03/06/2013,1053225-3,2,2100269 - Co operative Bank plc,4988234503000204-VISA CARD
Tendring DC,http://statistics.data.gov.uk/id/local-authority-district/22UN,Corporate Services,1760 - IT Direct Service Costs,4715 - Data Communication Charge,20/06/2013,1053226-1,10,2100269 - Co operative Bank plc,
Tendring DC,http://statistics.data.gov.uk/id/local-authority-district/22UN,Corporate Services,8520 - Frinton & Walton Swimming Pool,4880 - Subscriptions Paid,20/06/2013,1053226-2,30,2100269 - Co operative Bank plc,
Tendring DC,http://statistics.data.gov.uk/id/local-authority-district/22UN,Corporate Services,8510 - Dovercourt Swimming Pool & All Weather Facilities,4880 - Subscriptions Paid,20/06/2013,1053226-3,30,2100269 - Co operative Bank plc,
Tendring DC,http://statistics.data.gov.uk/id/local-authority-district/22UN,Corporate Services,6620 - Corporate Management - General,5190 - Bank Commission Charges,20/06/2013,1053226-4,2,2100269 - Co operative Bank plc,
Tendring DC,http://statistics.data.gov.uk/id/local-authority-district/22UN,Corporate Services,6620 - Corporate Management - General,5190 - Bank Commission Charges,03/06/2013,1053248-1,81.66,2100269 - Co operative Bank plc,0212 03 JUN 13
Tendring DC,http://statistics.data.gov.uk/id/local-authority-district/22UN,Corporate Services,6620 - Corporate Management - General,5190 - Bank Commission Charges,03/06/2013,1053248-2,2,2100269 - Co operative Bank plc,0212 03 JUN 13
Tendring DC,http://statistics.data.gov.uk/id/local-authority-district/22UN,Corporate Services,6620 - Corporate Management - General,5190 - Bank Commission Charges,03/06/2013,1053251-1,2,2100269 - Co operative Bank plc,KLN VISA JUN 13
Tendring DC,http://statistics.data.gov.uk/id/local-authority-district/22UN,Corporate Services,1100 - Head of Corporate Services and Admin Service Unit,1700 - Training - Courses,11/06/2013,1052740-1,66.12,2101953 - Colchester Institute Enterprises Ltd,PUBLIC SPEAKING
Tendring DC,http://statistics.data.gov.uk/id/local-authority-district/22UN,Corporate Services,1100 - Head of Corporate Services and Admin Service Unit,1700 - Training - Courses,11/06/2013,1052740-2,66.11,2101953 - Colchester Institute Enterprises Ltd,PUBLIC SPEAKING
Tendring DC,http://statistics.data.gov.uk/id/local-authority-district/22UN,Corporate Services,1240 - Housing Services Service Unit,1700 - Training - Courses,11/06/2013,1052740-3,66.11,2101953 - Colchester Institute Enterprises Ltd,PUBLIC SPEAKING
Tendring DC,http://statistics.data.gov.uk/id/local-authority-district/22UN,Corporate Services,1330 - Human Resources Service Unit,1700 - Training - Courses,11/06/2013,1052740-4,66.11,2101953 - Colchester Institute Enterprises Ltd,PUBLIC SPEAKING
Tendring DC,http://statistics.data.gov.uk/id/local-authority-district/22UN,Corporate Services,1620 - Corporate Performance - IT Section Service Unit,1700 - Training - Courses,11/06/2013,1052740-5,66.11,2101953 - Colchester Institute Enterprises Ltd,PUBLIC SPEAKING
Tendring DC,http://statistics.data.gov.uk/id/local-authority-district/22UN,Corporate Services,1620 - Corporate Performance - IT Section Service Unit,1700 - Training - Courses,11/06/2013,1052740-6,66.11,2101953 - Colchester Institute Enterprises Ltd,PUBLIC SPEAKING
Tendring DC,http://statistics.data.gov.uk/id/local-authority-district/22UN,Corporate Services,6460 - Career Track,1700 - Training - Courses,11/06/2013,1052740-7,66.11,2101953 - Colchester Institute Enterprises Ltd,PUBLIC SPEAKING
Tendring DC,http://statistics.data.gov.uk/id/local-authority-district/22UN,Corporate Services,6740 - Careline,1700 - Training - Courses,11/06/2013,1052740-8,66.11,2101953 - Colchester Institute Enterprises Ltd,PUBLIC SPEAKING
Tendring DC,http://statistics.data.gov.uk/id/local-authority-district/22UN,Corporate Services,1090 - Chief Executive and Support Service Unit,1700 - Training - Courses,11/06/2013,1052740-9,66.11,2101953 - Colchester Institute Enterprises Ltd,PUBLIC SPEAKING
Tendring DC,http://statistics.data.gov.uk/id/local-authority-district/22UN,Corporate Services,6460 - Career Track,4688 - Career Track Exam Fees,11/06/2013,2109275-1,22,REDACTED PERSONAL DATA,REDACTED PERSONAL DATA
Tendring DC,http://statistics.data.gov.uk/id/local-authority-district/22UN,Corporate Services,6460 - Career Track,4688 - Career Track Exam Fees,18/06/2013,7700344-1,44,REDACTED PERSONAL DATA,REDACTED PERSONAL DATA
Tendring DC,http://statistics.data.gov.uk/id/local-authority-district/22UN,Corporate Services,6460 - Career Track,4688 - Career Track Exam Fees,18/06/2013,7700345-1,22,REDACTED PERSONAL DATA,REDACTED PERSONAL DATA
Tendring DC,http://statistics.data.gov.uk/id/local-authority-district/22UN,Corporate Services,9890 - Collection Fund - NNDR,R125 - NNDR - Payments to DCLG,19/06/2013,1053227-1,1270299,2100432 - DCLG,NNDE AND RSG
Tendring DC,http://statistics.data.gov.uk/id/local-authority-district/22UN,Corporate Services,8984 - Business Rates Tariff and Levy,6990 - Business Rate Tariff and Levy,19/06/2013,1053227-2,534552,2100432 - DCLG,NNDE AND RSG
Tendring DC,http://statistics.data.gov.uk/id/local-authority-district/22UN,Corporate Services,9890 - Collection Fund - NNDR,R135 - NNDR - Transitional Relief Settlement,19/06/2013,1053227-3,-12499,2100432 - DCLG,NNDE AND RSG
Tendring DC,http://statistics.data.gov.uk/id/local-authority-district/22UN,Corporate Services,9890 - Collection Fund - NNDR,R125 - NNDR - Payments to DCLG,04/06/2013,1053257-1,1270299,2100432 - DCLG,NNDR AND RSG
Tendring DC,http://statistics.data.gov.uk/id/local-authority-district/22UN,Corporate Services,8984 - Business Rates Tariff and Levy,6990 - Business Rate Tariff and Levy,04/06/2013,1053257-2,534552,2100432 - DCLG,NNDR AND RSG
Tendring DC,http://statistics.data.gov.uk/id/local-authority-district/22UN,Corporate Services,9890 - Collection Fund - NNDR,R135 - NNDR - Transitional Relief Settlement,04/06/2013,1053257-3,-12499,2100432 - DCLG,NNDR AND RSG
Tendring DC,http://statistics.data.gov.uk/id/local-authority-district/22UN,Corporate Services,4820 - Public Conveniences,2100 - Building Repairs,04/06/2013,7009303-1,365,2110229 - East Coast Electrical Contractors Ltd,POWER SUPPLY MARKET
Tendring DC,http://statistics.data.gov.uk/id/local-authority-district/22UN,Corporate Services,1815 - Personnel and Human Resources Issues,4460 - Legal & Professional Expenses,18/06/2013,2109371-1,250,2109294 - Ellisons Solicitors,Compromise Agreement
Tendring DC,http://statistics.data.gov.uk/id/local-authority-district/22UN,Corporate Services,6620 - Corporate Management - General,5180 - External Audit Fees,11/06/2013,2109304-1,25469.3,2112514 - Ernst & Young,Instalment 4
Tendring DC,http://statistics.data.gov.uk/id/local-authority-district/22UN,Corporate Services,8660 - Fit for Purpose,5500 - Miscellaneous Expenses,18/06/2013,1052898-1,17933.22,REDACTED PERSONAL DATA,REDACTED PERSONAL DATA
Tendring DC,http://statistics.data.gov.uk/id/local-authority-district/22UN,Corporate Services,7025 - CDRP Support,4900 - Grants,11/06/2013,2109320-1,187.5,2100498 - Essex County Council,Mersea - Outdoor Day
Tendring DC,http://statistics.data.gov.uk/id/local-authority-district/22UN,Corporate Services,8971 - MIRS - Contributions Payable to the Pension Scheme,1816 - Superannuation Deficiency Contribution,04/06/2013,7009341-3,137750,2100419 - Essex County Council,Pension 00013
Tendring DC,http://statistics.data.gov.uk/id/local-authority-district/22UN,Corporate Services,8971 - MIRS - Contributions Payable to the Pension Scheme,1810 - Superannuation - Financial Strain/Added Years,04/06/2013,7009341-4,17371.81,2100419 - Essex County Council,Pension 00013
Tendring DC,http://statistics.data.gov.uk/id/local-authority-district/22UN,Corporate Services,8971 - MIRS - Contributions Payable to the Pension Scheme,1822 - Superannuation - Port Health Pensions etc.,04/06/2013,7009342-2,800.05,2100419 - Essex County Council,Port Health Authority
Tendring DC,http://statistics.data.gov.uk/id/local-authority-district/22UN,Corporate Services,1660 - Other Apportionable Overheads,4609 - Child Care Vouchers Management Fee,04/06/2013,1052574-2,79.71,REDACTED PERSONAL DATA,REDACTED PERSONAL DATA
Tendring DC,http://statistics.data.gov.uk/id/local-authority-district/22UN,Corporate Services,H880 - New Build Initiatives and Acquisitions,C200 - Main Contractor,04/06/2013,1052460-1,124.07,2113057 - Geodesys,SEARCHES
Tendring DC,http://statistics.data.gov.uk/id/local-authority-district/22UN,Corporate Services,7220 - Election Expenses,4486 - Election Expenses,18/06/2013,7009388-1,70.99,2104438 - Gopak Ltd,ARDLEIGH TABLE
Tendring DC,http://statistics.data.gov.uk/id/local-authority-district/22UN,Corporate Services,1180 - Benefit Fraud Investigation Service Unit,4460 - Legal & Professional Expenses,11/06/2013,1052587-1,752.1,2100672 - Harris Cuffaro & Nichols Solicitors,SOLICITOR COSTS
Tendring DC,http://statistics.data.gov.uk/id/local-authority-district/22UN,Corporate Services,1180 - Benefit Fraud Investigation Service Unit,4459 - External Legal Advice,25/06/2013,1053182-1,741.96,2100672 - Harris Cuffaro & Nichols Solicitors,SOLICITOR COSTS
Tendring DC,http://statistics.data.gov.uk/id/local-authority-district/22UN,Corporate Services,1180 - Benefit Fraud Investigation Service Unit,4459 - External Legal Advice,25/06/2013,1053182-2,4,2100672 - Harris Cuffaro & Nichols Solicitors,SOLICITOR COSTS
Tendring DC,http://statistics.data.gov.uk/id/local-authority-district/22UN,Corporate Services,1180 - Benefit Fraud Investigation Service Unit,4459 - External Legal Advice,18/06/2013,7009353-1,782.64,2100672 - Harris Cuffaro & Nichols Solicitors,SOLICITOR COSTS
Tendring DC,http://statistics.data.gov.uk/id/local-authority-district/22UN,Corporate Services,1760 - IT Direct Service Costs,4751 - Hardware & Service Maintenance,25/06/2013,1053086-1,1034.56,2102228 - Incoms Systems PLC,CS100649
Tendring DC,http://statistics.data.gov.uk/id/local-authority-district/22UN,Corporate Services,1220 - Finance and Procurement Manager Service Unit,4000 - Furniture,11/06/2013,2109267-1,522,2102228 - Incoms Systems PLC,
Tendring DC,http://statistics.data.gov.uk/id/local-authority-district/22UN,Corporate Services,6620 - Corporate Management - General,4355 - Books & Periodicals,11/06/2013,1052758-1,112.75,2105862 - Indicator - F L Memo Ltd,VAT MEMO 2013-14
Tendring DC,http://statistics.data.gov.uk/id/local-authority-district/22UN,Corporate Services,6620 - Corporate Management - General,4355 - Books & Periodicals,11/06/2013,1052758-2,10.2,2105862 - Indicator - F L Memo Ltd,VAT MEMO 2013-14
Tendring DC,http://statistics.data.gov.uk/id/local-authority-district/22UN,Corporate Services,6460 - Career Track,4753 - Computer - Application Software,25/06/2013,1053085-1,87.89,2100782 - Insight Direct (uk) Limited,CS100650
Tendring DC,http://statistics.data.gov.uk/id/local-authority-district/22UN,Corporate Services,7040 - Civic Ceremonial Expenses,4080 - Materials & Consumables,25/06/2013,1053058-1,35,2100728 - Just Flowers,FLOWERS FOR ANNUAL COUNCIL
Tendring DC,http://statistics.data.gov.uk/id/local-authority-district/22UN,Corporate Services,1320 - Print Unit Service Unit,4080 - Materials & Consumables,11/06/2013,1052742-1,100.24,2100864 - Leston Stationery Ltd,PAPER
Tendring DC,http://statistics.data.gov.uk/id/local-authority-district/22UN,Corporate Services,1320 - Print Unit Service Unit,4080 - Materials & Consumables,25/06/2013,7700359-1,143.84,2100864 - Leston Stationery Ltd,100G PAPER R & B
Tendring DC,http://statistics.data.gov.uk/id/local-authority-district/22UN,Corporate Services,1100 - Head of Corporate Services and Admin Service Unit,4355 - Books & Periodicals,18/06/2013,1052839-1,590,2100874 - Lexis Nexis UK,PARKER LAW ISSUE 42
Tendring DC,http://statistics.data.gov.uk/id/local-authority-district/22UN,Corporate Services,1760 - IT Direct Service Costs,6325 - Additional Services,04/06/2013,1052577-1,117.64,2108077 - Liberata Financial Services Ltd,NETWORKS PORTS
Tendring DC,http://statistics.data.gov.uk/id/local-authority-district/22UN,Corporate Services,1760 - IT Direct Service Costs,4715 - Data Communication Charge,04/06/2013,1052577-2,458.82,2108077 - Liberata Financial Services Ltd,NETWORKS PORTS
Tendring DC,http://statistics.data.gov.uk/id/local-authority-district/22UN,Corporate Services,1760 - IT Direct Service Costs,6320 - IT Services Agreements Payment,04/06/2013,1052577-3,5658.7,2108077 - Liberata Financial Services Ltd,NETWORKS PORTS
Tendring DC,http://statistics.data.gov.uk/id/local-authority-district/22UN,Corporate Services,8540 - Leisure Centre Clacton,1700 - Training - Courses,04/06/2013,1052577-4,60,2108077 - Liberata Financial Services Ltd,NETWORKS PORTS
Tendring DC,http://statistics.data.gov.uk/id/local-authority-district/22UN,Corporate Services,1760 - IT Direct Service Costs,6320 - IT Services Agreements Payment,25/06/2013,1053221-1,51622.01,2108077 - Liberata Financial Services Ltd,ICT CONTRACT JUNE 13
Tendring DC,http://statistics.data.gov.uk/id/local-authority-district/22UN,Corporate Services,1760 - IT Direct Service Costs,4597 - Hired Services - Payments to Contractors,03/06/2013,1053083-1,548,2100967 - N Rudelhoff,NR ELECTRICAL
Tendring DC,http://statistics.data.gov.uk/id/local-authority-district/22UN,Corporate Services,1760 - IT Direct Service Costs,4597 - Hired Services - Payments to Contractors,25/06/2013,1053084-1,548,2100967 - N Rudelhoff,CS100635
Tendring DC,http://statistics.data.gov.uk/id/local-authority-district/22UN,Corporate Services,1930 - Asset Management Service Unit,4460 - Legal & Professional Expenses,04/06/2013,1052556-1,3777.75,2111951 - NPS Property Consultants Ltd,NPS SERVICES
Tendring DC,http://statistics.data.gov.uk/id/local-authority-district/22UN,Corporate Services,C373 - Communications,C275 - Hardware,25/06/2013,1053078-1,800,2109563 - NTA Monitor Ltd,
Tendring DC,http://statistics.data.gov.uk/id/local-authority-district/22UN,Corporate Services,6460 - Career Track,4688 - Career Track Exam Fees,18/06/2013,7700348-1,78.4,REDACTED PERSONAL DATA,REDACTED PERSONAL DATA
Tendring DC,http://statistics.data.gov.uk/id/local-authority-district/22UN,Corporate Services,6460 - Career Track,4688 - Career Track Exam Fees,18/06/2013,7700349-1,78.4,REDACTED PERSONAL DATA,REDACTED PERSONAL DATA
Tendring DC,http://statistics.data.gov.uk/id/local-authority-district/22UN,Corporate Services,1760 - IT Direct Service Costs,4751 - Hardware & Service Maintenance,04/06/2013,1052564-1,39.6,2103323 - Octopus Cabling Limited,
Tendring DC,http://statistics.data.gov.uk/id/local-authority-district/22UN,Corporate Services,1760 - IT Direct Service Costs,6325 - Additional Services,11/06/2013,2109265-1,445,REDACTED PERSONAL DATA,REDACTED PERSONAL DATA
Tendring DC,http://statistics.data.gov.uk/id/local-authority-district/22UN,Corporate Services,6460 - Career Track,4688 - Career Track Exam Fees,25/06/2013,1053114-1,14.5,REDACTED PERSONAL DATA,REDACTED PERSONAL DATA
Tendring DC,http://statistics.data.gov.uk/id/local-authority-district/22UN,Corporate Services,6460 - Career Track,4688 - Career Track Exam Fees,25/06/2013,1053115-1,29,REDACTED PERSONAL DATA,REDACTED PERSONAL DATA
Tendring DC,http://statistics.data.gov.uk/id/local-authority-district/22UN,Corporate Services,6460 - Career Track,4688 - Career Track Exam Fees,25/06/2013,1053116-1,85,REDACTED PERSONAL DATA,REDACTED PERSONAL DATA
Tendring DC,http://statistics.data.gov.uk/id/local-authority-district/22UN,Corporate Services,6460 - Career Track,4688 - Career Track Exam Fees,25/06/2013,1053154-1,72.5,REDACTED PERSONAL DATA,REDACTED PERSONAL DATA
Tendring DC,http://statistics.data.gov.uk/id/local-authority-district/22UN,Corporate Services,6460 - Career Track,4688 - Career Track Exam Fees,11/06/2013,2109276-1,64,REDACTED PERSONAL DATA,REDACTED PERSONAL DATA
Tendring DC,http://statistics.data.gov.uk/id/local-authority-district/22UN,Corporate Services,6460 - Career Track,4688 - Career Track Exam Fees,11/06/2013,2109277-1,49.5,REDACTED PERSONAL DATA,REDACTED PERSONAL DATA
Tendring DC,http://statistics.data.gov.uk/id/local-authority-district/22UN,Corporate Services,6460 - Career Track,4688 - Career Track Exam Fees,18/06/2013,7700346-1,43.5,2100425 - Pearson,EDI FUNCTIONAL SKILLS  MATHS
Tendring DC,http://statistics.data.gov.uk/id/local-authority-district/22UN,Corporate Services,6460 - Career Track,4688 - Career Track Exam Fees,18/06/2013,7700347-1,101.5,REDACTED PERSONAL DATA,REDACTED PERSONAL DATA
Tendring DC,http://statistics.data.gov.uk/id/local-authority-district/22UN,Corporate Services,1815 - Personnel and Human Resources Issues,1500 - Advertising - Recruitment,04/06/2013,7009304-1,6304,2113070 - Penna plc,RECRUITMENT
Tendring DC,http://statistics.data.gov.uk/id/local-authority-district/22UN,Corporate Services,1815 - Personnel and Human Resources Issues,1500 - Advertising - Recruitment,04/06/2013,1052472-1,1025,2101097 - Peter Lockyer Advertising Ltd,PRODUCTION CHARGE
Tendring DC,http://statistics.data.gov.uk/id/local-authority-district/22UN,Corporate Services,1815 - Personnel and Human Resources Issues,1500 - Advertising - Recruitment,04/06/2013,1052473-1,1025,2101097 - Peter Lockyer Advertising Ltd,PRODUCTION CHARGE
Tendring DC,http://statistics.data.gov.uk/id/local-authority-district/22UN,Corporate Services,1815 - Personnel and Human Resources Issues,1500 - Advertising - Recruitment,11/06/2013,2109321-1,925,2101097 - Peter Lockyer Advertising Ltd,Senior Finance Manager
Tendring DC,http://statistics.data.gov.uk/id/local-authority-district/22UN,Corporate Services,5220 - HRA - Policy & Management,5930 - Business Planning Expenses,04/06/2013,7009305-1,720,2101097 - Peter Lockyer Advertising Ltd,PRODUCTION CHARGE
Tendring DC,http://statistics.data.gov.uk/id/local-authority-district/22UN,Corporate Services,7720 - Regeneration Projects,5500 - Miscellaneous Expenses,18/06/2013,7009377-1,4213,2101097 - Peter Lockyer Advertising Ltd,PROJECTS DELIVERY MANAG
Tendring DC,http://statistics.data.gov.uk/id/local-authority-district/22UN,Corporate Services,7560 - Tourism Publications,4307 - Attractions Leaflet Printing,25/06/2013,1053080-1,25,2101038 - Phoenix Software Limited,CS100629
Tendring DC,http://statistics.data.gov.uk/id/local-authority-district/22UN,Corporate Services,7560 - Tourism Publications,4307 - Attractions Leaflet Printing,25/06/2013,1053081-1,292.8,2101038 - Phoenix Software Limited,CS100629
Tendring DC,http://statistics.data.gov.uk/id/local-authority-district/22UN,Corporate Services,1040 - Regeneration Service Unit,4300 - Printing & Stationery,25/06/2013,1053082-1,250.8,2101038 - Phoenix Software Limited,CS100641
Tendring DC,http://statistics.data.gov.uk/id/local-authority-district/22UN,Corporate Services,1930 - Asset Management Service Unit,4460 - Legal & Professional Expenses,25/06/2013,7700361-1,500,2105829 - Prettys Solicitors,PRETTYS - WEELEY MAST
Tendring DC,http://statistics.data.gov.uk/id/local-authority-district/22UN,Corporate Services,"1580 - Benefits, Revenues and Customer Contact SU",4718 - Fixed Communication Lines,25/06/2013,1053087-1,12.54,2106860 - ProcessFlows UK Ltd,TMS TEXT MESS MAR 13
Tendring DC,http://statistics.data.gov.uk/id/local-authority-district/22UN,Corporate Services,"1580 - Benefits, Revenues and Customer Contact SU",4718 - Fixed Communication Lines,25/06/2013,1053088-1,13.92,2106860 - ProcessFlows UK Ltd,TMS TEXT MESS APR 13
Tendring DC,http://statistics.data.gov.uk/id/local-authority-district/22UN,Corporate Services,9930 - Loans Fund Balance Sheet,B551 - Loans Maturing Within One Year - HRA,24/06/2013,1053252-1,187500,2101162 - Public Works Loan Board,PRINCIPAL AND INTEREST PAYMENTS
Tendring DC,http://statistics.data.gov.uk/id/local-authority-district/22UN,Corporate Services,5760 - HRA - Capital & Interest Charges,9831 - HRA Interest (formerly Item 8),24/06/2013,1053252-2,86925,2101162 - Public Works Loan Board,PRINCIPAL AND INTEREST PAYMENTS
Tendring DC,http://statistics.data.gov.uk/id/local-authority-district/22UN,Corporate Services,1815 - Personnel and Human Resources Issues,1500 - Advertising - Recruitment,04/06/2013,7700316-1,350,2111766 - publicservice.co.uk Ltd,PROJECTS DELIVERY MANAGE
Tendring DC,http://statistics.data.gov.uk/id/local-authority-district/22UN,Corporate Services,9900 - General Fund Balance Sheet,B886 - Rail Warrants Allocation Holding Account,21/06/2013,1053229-1,1093,2101174 - R S P Ltd,RAIL WARRANTS
Tendring DC,http://statistics.data.gov.uk/id/local-authority-district/22UN,Corporate Services,9900 - General Fund Balance Sheet,B382 - Rechargeable Works - Other,25/06/2013,1053222-1,1103.15,2103109 - Richard Jackson PLC,FP11-05 WEST ST FIRE
Tendring DC,http://statistics.data.gov.uk/id/local-authority-district/22UN,Corporate Services,1100 - Head of Corporate Services and Admin Service Unit,4300 - Printing & Stationery,04/06/2013,1052557-1,273.78,2101090 - Ricoh UK Ltd,PHOTOCOPIER 30.4.13
Tendring DC,http://statistics.data.gov.uk/id/local-authority-district/22UN,Corporate Services,1090 - Chief Executive and Support Service Unit,4400 - Maintenance Under Service Agreements,11/06/2013,2109223-1,180.76,REDACTED PERSONAL DATA,REDACTED PERSONAL DATA
Tendring DC,http://statistics.data.gov.uk/id/local-authority-district/22UN,Corporate Services,7240 - Electoral Registration Expenses,4700 - Postage,11/06/2013,2109268-1,3.98,2101139 - Royal Mail,Electoral Postage
Tendring DC,http://statistics.data.gov.uk/id/local-authority-district/22UN,Corporate Services,7220 - Election Expenses,4486 - Election Expenses,11/06/2013,2109269-1,3862.42,2101139 - Royal Mail,Electoral Postage
Tendring DC,http://statistics.data.gov.uk/id/local-authority-district/22UN,Corporate Services,9900 - General Fund Balance Sheet,B150 - Car Loans - Principal - Casual/HMRC Users,04/06/2013,1052582-1,5495,REDACTED PERSONAL DATA,REDACTED PERSONAL DATA
Tendring DC,http://statistics.data.gov.uk/id/local-authority-district/22UN,Corporate Services,1100 - Head of Corporate Services and Admin Service Unit,1000 - Salaries,11/06/2013,1052759-1,360,REDACTED PERSONAL DATA,REDACTED PERSONAL DATA
Tendring DC,http://statistics.data.gov.uk/id/local-authority-district/22UN,Corporate Services,7220 - Election Expenses,4486 - Election Expenses,25/06/2013,1053079-1,326.95,2101214 - Seton Ltd,RM900375
Tendring DC,http://statistics.data.gov.uk/id/local-authority-district/22UN,Corporate Services,7025 - CDRP Support,4900 - Grants,18/06/2013,7009370-1,54,2102088 - Tendring Community Transport,TCT TRANSPORTB FOR BORDERLINE
Tendring DC,http://statistics.data.gov.uk/id/local-authority-district/22UN,Corporate Services,7100 - Community Health/Safety,4300 - Printing & Stationery,18/06/2013,1052903-1,11.86,2106628 - Tendring District Council,PETTY CASH
Tendring DC,http://statistics.data.gov.uk/id/local-authority-district/22UN,Corporate Services,6980 - Essex Family Needs Project,5500 - Miscellaneous Expenses,18/06/2013,1052903-10,30,2106628 - Tendring District Council,PETTY CASH
Tendring DC,http://statistics.data.gov.uk/id/local-authority-district/22UN,Corporate Services,6980 - Essex Family Needs Project,5500 - Miscellaneous Expenses,18/06/2013,1052903-11,4.5,2106628 - Tendring District Council,PETTY CASH
Tendring DC,http://statistics.data.gov.uk/id/local-authority-district/22UN,Corporate Services,6980 - Essex Family Needs Project,5500 - Miscellaneous Expenses,18/06/2013,1052903-12,3.18,2106628 - Tendring District Council,PETTY CASH
Tendring DC,http://statistics.data.gov.uk/id/local-authority-district/22UN,Corporate Services,6980 - Essex Family Needs Project,5500 - Miscellaneous Expenses,18/06/2013,1052903-13,2.88,2106628 - Tendring District Council,PETTY CASH
Tendring DC,http://statistics.data.gov.uk/id/local-authority-district/22UN,Corporate Services,1100 - Head of Corporate Services and Admin Service Unit,3300 - Public Transport - Officers,18/06/2013,1052903-14,3.75,2106628 - Tendring District Council,PETTY CASH
Tendring DC,http://statistics.data.gov.uk/id/local-authority-district/22UN,Corporate Services,1100 - Head of Corporate Services and Admin Service Unit,3302 - Car Allowances - Officers,18/06/2013,1052903-15,2.6,2106628 - Tendring District Council,PETTY CASH
Tendring DC,http://statistics.data.gov.uk/id/local-authority-district/22UN,Corporate Services,6980 - Essex Family Needs Project,5500 - Miscellaneous Expenses,18/06/2013,1052903-16,15.43,2106628 - Tendring District Council,PETTY CASH
Tendring DC,http://statistics.data.gov.uk/id/local-authority-district/22UN,Corporate Services,7025 - CDRP Support,4900 - Grants,18/06/2013,1052903-2,6.5,2106628 - Tendring District Council,PETTY CASH
Tendring DC,http://statistics.data.gov.uk/id/local-authority-district/22UN,Corporate Services,7025 - CDRP Support,4900 - Grants,18/06/2013,1052903-3,3.3,2106628 - Tendring District Council,PETTY CASH
Tendring DC,http://statistics.data.gov.uk/id/local-authority-district/22UN,Corporate Services,1760 - IT Direct Service Costs,5500 - Miscellaneous Expenses,18/06/2013,1052903-4,7.23,2106628 - Tendring District Council,PETTY CASH
Tendring DC,http://statistics.data.gov.uk/id/local-authority-district/22UN,Corporate Services,6460 - Career Track,4716 - Mobile Telephone Costs,18/06/2013,1052903-5,3.48,2106628 - Tendring District Council,PETTY CASH
Tendring DC,http://statistics.data.gov.uk/id/local-authority-district/22UN,Corporate Services,7100 - Community Health/Safety,5500 - Miscellaneous Expenses,18/06/2013,1052903-6,1.84,2106628 - Tendring District Council,PETTY CASH
Tendring DC,http://statistics.data.gov.uk/id/local-authority-district/22UN,Corporate Services,7100 - Community Health/Safety,5500 - Miscellaneous Expenses,18/06/2013,1052903-7,7.45,2106628 - Tendring District Council,PETTY CASH
Tendring DC,http://statistics.data.gov.uk/id/local-authority-district/22UN,Corporate Services,7025 - CDRP Support,4900 - Grants,18/06/2013,1052903-8,1.65,2106628 - Tendring District Council,PETTY CASH
Tendring DC,http://statistics.data.gov.uk/id/local-authority-district/22UN,Corporate Services,6980 - Essex Family Needs Project,5500 - Miscellaneous Expenses,18/06/2013,1052903-9,16.53,2106628 - Tendring District Council,PETTY CASH
Tendring DC,http://statistics.data.gov.uk/id/local-authority-district/22UN,Corporate Services,9900 - General Fund Balance Sheet,B658 - Cash Floats,25/06/2013,1053214-1,850,REDACTED PERSONAL DATA,REDACTED PERSONAL DATA
Tendring DC,http://statistics.data.gov.uk/id/local-authority-district/22UN,Corporate Services,6460 - Career Track,5160 - Advertising,25/06/2013,1053044-1,150,2112305 - Thurstable School,THURSTABLE SCHOOL
Tendring DC,http://statistics.data.gov.uk/id/local-authority-district/22UN,Corporate Services,1815 - Personnel and Human Resources Issues,4460 - Legal & Professional Expenses,11/06/2013,1052757-1,250,2113133 - Wholley Goodings Solicitors,COMPROMISE AGREEMENT
Tendring DC,http://statistics.data.gov.uk/id/local-authority-district/22UN,Corporate Services,1100 - Head of Corporate Services and Admin Service Unit,4300 - Printing & Stationery,11/06/2013,1052739-1,17.29,2107546 - XMA Limited,CYAN INK-XMA-951XL
Tendring DC,http://statistics.data.gov.uk/id/local-authority-district/22UN,Corporate Services,1100 - Head of Corporate Services and Admin Service Unit,4300 - Printing & Stationery,25/06/2013,7009408-1,21.28,2107546 - XMA Limited,CANON INK
Tendring DC,http://statistics.data.gov.uk/id/local-authority-district/22UN,Corporate Services,1100 - Head of Corporate Services and Admin Service Unit,4300 - Printing & Stationery,25/06/2013,7009409-1,26.58,2107546 - XMA Limited,OFFICEJET PRO INK
Tendring DC,http://statistics.data.gov.uk/id/local-authority-district/22UN,Corporate Services,1100 - Head of Corporate Services and Admin Service Unit,4300 - Printing & Stationery,25/06/2013,7009410-1,16.62,2107546 - XMA Limited,HP INK
Tendring DC,http://statistics.data.gov.uk/id/local-authority-district/22UN,Corporate Services,1100 - Head of Corporate Services and Admin Service Unit,4300 - Printing & Stationery,25/06/2013,7009411-1,12.96,2107546 - XMA Limited,HP INK
Tendring DC,http://statistics.data.gov.uk/id/local-authority-district/22UN,Corporate Services,1100 - Head of Corporate Services and Admin Service Unit,4300 - Printing & Stationery,25/06/2013,7009412-1,43.82,2107546 - XMA Limited,STAIONERY CANON INK
Tendring DC,http://statistics.data.gov.uk/id/local-authority-district/22UN,Corporate Services,1950 - Transport,3062 - Running Costs - Petrol,02/07/2013,2109451-1,120.84,2101825 - Allstar Business Solutions Ltd,Courier Fuel
Tendring DC,http://statistics.data.gov.uk/id/local-authority-district/22UN,Corporate Services,6460 - Career Track,1700 - Training - Courses,23/07/2013,2110088-1,95,REDACTED PERSONAL DATA,REDACTED PERSONAL DATA
Tendring DC,http://statistics.data.gov.uk/id/local-authority-district/22UN,Corporate Services,6460 - Career Track,1700 - Training - Courses,23/07/2013,2110089-1,95,REDACTED PERSONAL DATA,REDACTED PERSONAL DATA
Tendring DC,http://statistics.data.gov.uk/id/local-authority-district/22UN,Corporate Services,6460 - Career Track,1700 - Training - Courses,23/07/2013,2110090-1,95,REDACTED PERSONAL DATA,REDACTED PERSONAL DATA
Tendring DC,http://statistics.data.gov.uk/id/local-authority-district/22UN,Corporate Services,6560 - Other Democratic Costs,4110 - General Provisions,23/07/2013,2110115-1,84.82,2112129 - Autobar Vending Services Ltd,Coffee & Filters
Tendring DC,http://statistics.data.gov.uk/id/local-authority-district/22UN,Corporate Services,6560 - Other Democratic Costs,4110 - General Provisions,23/07/2013,2110115-2,1.02,2112129 - Autobar Vending Services Ltd,Coffee & Filters
Tendring DC,http://statistics.data.gov.uk/id/local-authority-district/22UN,Corporate Services,1320 - Print Unit Service Unit,4302 - External Print Unit Expenses,02/07/2013,7700399-1,329.5,2100069 - Autoprint,JOBS 159-147-160
Tendring DC,http://statistics.data.gov.uk/id/local-authority-district/22UN,Corporate Services,6580 - Member Support Cost,4300 - Printing & Stationery,09/07/2013,1053433-1,5.97,2100111 - Banner Business Supplies Ltd,STATIONERY
Tendring DC,http://statistics.data.gov.uk/id/local-authority-district/22UN,Corporate Services,1100 - Head of Corporate Services and Admin Service Unit,4300 - Printing & Stationery,09/07/2013,1053433-2,54.72,2100111 - Banner Business Supplies Ltd,STATIONERY
Tendring DC,http://statistics.data.gov.uk/id/local-authority-district/22UN,Corporate Services,1100 - Head of Corporate Services and Admin Service Unit,4300 - Printing & Stationery,30/07/2013,1053778-1,0.76,2100111 - Banner Business Supplies Ltd,MISC STATIONERY PART ORDER
Tendring DC,http://statistics.data.gov.uk/id/local-authority-district/22UN,Corporate Services,1100 - Head of Corporate Services and Admin Service Unit,4300 - Printing & Stationery,30/07/2013,1053779-1,21.79,2100111 - Banner Business Supplies Ltd,STATIONERY
Tendring DC,http://statistics.data.gov.uk/id/local-authority-district/22UN,Corporate Services,6580 - Member Support Cost,4300 - Printing & Stationery,30/07/2013,1053779-2,61.84,2100111 - Banner Business Supplies Ltd,STATIONERY
Tendring DC,http://statistics.data.gov.uk/id/local-authority-district/22UN,Corporate Services,6580 - Member Support Cost,4300 - Printing & Stationery,30/07/2013,1053780-1,30.92,2100111 - Banner Business Supplies Ltd,ENVELOPES
Tendring DC,http://statistics.data.gov.uk/id/local-authority-district/22UN,Corporate Services,1100 - Head of Corporate Services and Admin Service Unit,4300 - Printing & Stationery,30/07/2013,1053814-1,30.64,2100111 - Banner Business Supplies Ltd,STORAGE BOXES
Tendring DC,http://statistics.data.gov.uk/id/local-authority-district/22UN,Corporate Services,1100 - Head of Corporate Services and Admin Service Unit,4300 - Printing & Stationery,30/07/2013,1053815-1,51.48,2100111 - Banner Business Supplies Ltd,BANNER
Tendring DC,http://statistics.data.gov.uk/id/local-authority-district/22UN,Corporate Services,1100 - Head of Corporate Services and Admin Service Unit,4300 - Printing & Stationery,02/07/2013,2109445-1,6.81,2100111 - Banner Business Supplies Ltd,Misc Stationery
Tendring DC,http://statistics.data.gov.uk/id/local-authority-district/22UN,Corporate Services,6580 - Member Support Cost,4300 - Printing & Stationery,02/07/2013,2109445-2,43.88,2100111 - Banner Business Supplies Ltd,Misc Stationery
Tendring DC,http://statistics.data.gov.uk/id/local-authority-district/22UN,Corporate Services,1100 - Head of Corporate Services and Admin Service Unit,4300 - Printing & Stationery,02/07/2013,2109446-1,52.58,2100111 - Banner Business Supplies Ltd,Stationery
Tendring DC,http://statistics.data.gov.uk/id/local-authority-district/22UN,Corporate Services,1100 - Head of Corporate Services and Admin Service Unit,4300 - Printing & Stationery,09/07/2013,2109558-1,73.8,REDACTED PERSONAL DATA,REDACTED PERSONAL DATA
Tendring DC,http://statistics.data.gov.uk/id/local-authority-district/22UN,Corporate Services,7025 - CDRP Support,4900 - Grants,09/07/2013,2109587-1,24.12,2100111 - Banner Business Supplies Ltd,Flip Chart & Pens - Event
Tendring DC,http://statistics.data.gov.uk/id/local-authority-district/22UN,Corporate Services,6580 - Member Support Cost,4300 - Printing & Stationery,16/07/2013,2109665-1,21.94,2100111 - Banner Business Supplies Ltd,Misc Stationery
Tendring DC,http://statistics.data.gov.uk/id/local-authority-district/22UN,Corporate Services,6560 - Other Democratic Costs,4110 - General Provisions,16/07/2013,2109665-2,7.22,2100111 - Banner Business Supplies Ltd,Misc Stationery
Tendring DC,http://statistics.data.gov.uk/id/local-authority-district/22UN,Corporate Services,1100 - Head of Corporate Services and Admin Service Unit,4300 - Printing & Stationery,16/07/2013,2109665-3,19.81,2100111 - Banner Business Supplies Ltd,Misc Stationery
Tendring DC,http://statistics.data.gov.uk/id/local-authority-district/22UN,Corporate Services,1100 - Head of Corporate Services and Admin Service Unit,4300 - Printing & Stationery,23/07/2013,2110121-1,27.67,2100111 - Banner Business Supplies Ltd,Stationery
Tendring DC,http://statistics.data.gov.uk/id/local-authority-district/22UN,Corporate Services,6580 - Member Support Cost,4300 - Printing & Stationery,23/07/2013,2110121-2,12.1,2100111 - Banner Business Supplies Ltd,Stationery
Tendring DC,http://statistics.data.gov.uk/id/local-authority-district/22UN,Corporate Services,6980 - Essex Family Needs Project,4469 - Other Non - Legal Professional Services,16/07/2013,2109714-1,20000,REDACTED PERSONAL DATA,REDACTED PERSONAL DATA
Tendring DC,http://statistics.data.gov.uk/id/local-authority-district/22UN,Corporate Services,7040 - Civic Ceremonial Expenses,4100 - Contract Catering,02/07/2013,1053312-1,79.9,2100114 - Bespoke Caterers,
Tendring DC,http://statistics.data.gov.uk/id/local-authority-district/22UN,Corporate Services,1760 - IT Direct Service Costs,4715 - Data Communication Charge,02/07/2013,2109438-1,45.36,2100168 - British Telecommunications plc,
Tendring DC,http://statistics.data.gov.uk/id/local-authority-district/22UN,Corporate Services,1760 - IT Direct Service Costs,4715 - Data Communication Charge,02/07/2013,2109440-1,36.36,2100168 - British Telecommunications plc,
Tendring DC,http://statistics.data.gov.uk/id/local-authority-district/22UN,Corporate Services,1760 - IT Direct Service Costs,4715 - Data Communication Charge,02/07/2013,2109441-1,36.36,2100168 - British Telecommunications plc,
Tendring DC,http://statistics.data.gov.uk/id/local-authority-district/22UN,Corporate Services,1760 - IT Direct Service Costs,4715 - Data Communication Charge,09/07/2013,2109595-1,46.87,2100168 - British Telecommunications plc,33770166 June 13
Tendring DC,http://statistics.data.gov.uk/id/local-authority-district/22UN,Corporate Services,1760 - IT Direct Service Costs,4715 - Data Communication Charge,09/07/2013,2109596-1,46.87,2106306 - British Telecommunications plc,36988418 June 13
Tendring DC,http://statistics.data.gov.uk/id/local-authority-district/22UN,Corporate Services,1760 - IT Direct Service Costs,4715 - Data Communication Charge,09/07/2013,2109597-1,51.55,2100168 - British Telecommunications plc,30297234 June 13
Tendring DC,http://statistics.data.gov.uk/id/local-authority-district/22UN,Corporate Services,1760 - IT Direct Service Costs,4715 - Data Communication Charge,09/07/2013,2109598-1,210,2100168 - British Telecommunications plc,36259059 June 13
Tendring DC,http://statistics.data.gov.uk/id/local-authority-district/22UN,Corporate Services,1760 - IT Direct Service Costs,4715 - Data Communication Charge,16/07/2013,2109882-1,91.5,2100168 - British Telecommunications plc,38923144 Jul 13
Tendring DC,http://statistics.data.gov.uk/id/local-authority-district/22UN,Corporate Services,1320 - Print Unit Service Unit,4080 - Materials & Consumables,30/07/2013,1053858-1,169.42,2100291 - Canon (UK) Ltd,PAPER SRA3
Tendring DC,http://statistics.data.gov.uk/id/local-authority-district/22UN,Corporate Services,9900 - General Fund Balance Sheet,B879 - Charges made by Merchant Acquirer,03/07/2013,1053541-1,21.6,2100202 - Capita Business Services Ltd,CAPITA JUNE 2013
Tendring DC,http://statistics.data.gov.uk/id/local-authority-district/22UN,Corporate Services,9900 - General Fund Balance Sheet,B879 - Charges made by Merchant Acquirer,03/07/2013,1053541-2,45.26,2100202 - Capita Business Services Ltd,CAPITA JUNE 2013
Tendring DC,http://statistics.data.gov.uk/id/local-authority-district/22UN,Corporate Services,9900 - General Fund Balance Sheet,B879 - Charges made by Merchant Acquirer,03/07/2013,1053541-3,206.46,2100202 - Capita Business Services Ltd,CAPITA JUNE 2013
Tendring DC,http://statistics.data.gov.uk/id/local-authority-district/22UN,Corporate Services,9900 - General Fund Balance Sheet,B879 - Charges made by Merchant Acquirer,03/07/2013,1053541-4,345.64,2100202 - Capita Business Services Ltd,CAPITA JUNE 2013
Tendring DC,http://statistics.data.gov.uk/id/local-authority-district/22UN,Corporate Services,9900 - General Fund Balance Sheet,B879 - Charges made by Merchant Acquirer,03/07/2013,1053541-5,315.72,2100202 - Capita Business Services Ltd,CAPITA JUNE 2013
Tendring DC,http://statistics.data.gov.uk/id/local-authority-district/22UN,Corporate Services,9900 - General Fund Balance Sheet,B879 - Charges made by Merchant Acquirer,03/07/2013,1053541-6,256.1,2100202 - Capita Business Services Ltd,CAPITA JUNE 2013
Tendring DC,http://statistics.data.gov.uk/id/local-authority-district/22UN,Corporate Services,9900 - General Fund Balance Sheet,B879 - Charges made by Merchant Acquirer,03/07/2013,1053541-7,331.56,2100202 - Capita Business Services Ltd,CAPITA JUNE 2013
Tendring DC,http://statistics.data.gov.uk/id/local-authority-district/22UN,Corporate Services,9900 - General Fund Balance Sheet,B879 - Charges made by Merchant Acquirer,03/07/2013,1053541-8,254.76,2100202 - Capita Business Services Ltd,CAPITA JUNE 2013
Tendring DC,http://statistics.data.gov.uk/id/local-authority-district/22UN,Corporate Services,9900 - General Fund Balance Sheet,B879 - Charges made by Merchant Acquirer,03/07/2013,1053541-9,0.25,2100202 - Capita Business Services Ltd,CAPITA JUNE 2013
Tendring DC,http://statistics.data.gov.uk/id/local-authority-district/22UN,Corporate Services,7025 - CDRP Support,4900 - Grants,30/07/2013,1053887-1,600,2113221 - Chameleons Web Theatre Company,CHAMELEONS WEB THEATRE GROUP
Tendring DC,http://statistics.data.gov.uk/id/local-authority-district/22UN,Corporate Services,1200 - Exchequer Service Unit,4753 - Computer - Application Software,30/07/2013,1053897-1,1786.32,2104014 - Cheque Write (UK) Ltd,PRINTER SUPPORT 13/14
Tendring DC,http://statistics.data.gov.uk/id/local-authority-district/22UN,Corporate Services,1200 - Exchequer Service Unit,4753 - Computer - Application Software,09/07/2013,2109641-1,369,REDACTED PERSONAL DATA,REDACTED PERSONAL DATA
Tendring DC,http://statistics.data.gov.uk/id/local-authority-district/22UN,Corporate Services,1815 - Personnel and Human Resources Issues,1708 - Training - New Programme Development Courses,09/07/2013,2109554-1,18.5,REDACTED PERSONAL DATA,REDACTED PERSONAL DATA
Tendring DC,http://statistics.data.gov.uk/id/local-authority-district/22UN,Corporate Services,6160 - Princes Theatre,4000 - Furniture,01/07/2013,1053539-1,89.48,2100269 - Co operative Bank plc,KLN VISA JLY 13
Tendring DC,http://statistics.data.gov.uk/id/local-authority-district/22UN,Corporate Services,6620 - Corporate Management - General,5190 - Bank Commission Charges,01/07/2013,1053539-2,2,2100269 - Co operative Bank plc,KLN VISA JLY 13
Tendring DC,http://statistics.data.gov.uk/id/local-authority-district/22UN,Corporate Services,6640 - Treasury Management,5192 - Brokerage,01/07/2013,1053540-1,77,REDACTED PERSONAL DATA,REDACTED PERSONAL DATA
Tendring DC,http://statistics.data.gov.uk/id/local-authority-district/22UN,Corporate Services,6620 - Corporate Management - General,5190 - Bank Commission Charges,01/07/2013,1053540-2,259,REDACTED PERSONAL DATA,REDACTED PERSONAL DATA
Tendring DC,http://statistics.data.gov.uk/id/local-authority-district/22UN,Corporate Services,"1580 - Benefits, Revenues and Customer Contact SU",5186 - Paypoint/post office charges,01/07/2013,1053540-3,1190.23,REDACTED PERSONAL DATA,REDACTED PERSONAL DATA
Tendring DC,http://statistics.data.gov.uk/id/local-authority-district/22UN,Corporate Services,"1580 - Benefits, Revenues and Customer Contact SU",5186 - Paypoint/post office charges,01/07/2013,1053540-4,2679.81,REDACTED PERSONAL DATA,REDACTED PERSONAL DATA
Tendring DC,http://statistics.data.gov.uk/id/local-authority-district/22UN,Corporate Services,"1580 - Benefits, Revenues and Customer Contact SU",5190 - Bank Commission Charges,12/07/2013,2109681-1,1974.79,2100269 - Co operative Bank plc,Quarterly Commission and Interest
Tendring DC,http://statistics.data.gov.uk/id/local-authority-district/22UN,Corporate Services,6740 - Careline,5190 - Bank Commission Charges,12/07/2013,2109681-2,154.8,2100269 - Co operative Bank plc,Quarterly Commission and Interest
Tendring DC,http://statistics.data.gov.uk/id/local-authority-district/22UN,Corporate Services,6620 - Corporate Management - General,5190 - Bank Commission Charges,12/07/2013,2109681-3,3803.07,2100269 - Co operative Bank plc,Quarterly Commission and Interest
Tendring DC,http://statistics.data.gov.uk/id/local-authority-district/22UN,Corporate Services,8901 - Interest Payable and similar charges,7570 - Interest Payments,12/07/2013,2109681-4,57.03,2100269 - Co operative Bank plc,Quarterly Commission and Interest
Tendring DC,http://statistics.data.gov.uk/id/local-authority-district/22UN,Corporate Services,5260 - HRA - Rent Collection And Accounting,5190 - Bank Commission Charges,12/07/2013,2109681-5,96.77,2100269 - Co operative Bank plc,Quarterly Commission and Interest
Tendring DC,http://statistics.data.gov.uk/id/local-authority-district/22UN,Corporate Services,"1580 - Benefits, Revenues and Customer Contact SU",5190 - Bank Commission Charges,12/07/2013,2109681-6,850.75,2100269 - Co operative Bank plc,Quarterly Commission and Interest
Tendring DC,http://statistics.data.gov.uk/id/local-authority-district/22UN,Corporate Services,5880 - Management Of Sport & Leisure Facilities,5190 - Bank Commission Charges,12/07/2013,2109681-7,189.26,2100269 - Co operative Bank plc,Quarterly Commission and Interest
Tendring DC,http://statistics.data.gov.uk/id/local-authority-district/22UN,Corporate Services,6640 - Treasury Management,5192 - Brokerage,12/07/2013,2109681-8,100,2100269 - Co operative Bank plc,Quarterly Commission and Interest
Tendring DC,http://statistics.data.gov.uk/id/local-authority-district/22UN,Corporate Services,1320 - Print Unit Service Unit,4400 - Maintenance Under Service Agreements,02/07/2013,1053347-1,60,2100353 - Consensus Guillotine Engineering Ltd,GUILOTINE BLADE S/M
Tendring DC,http://statistics.data.gov.uk/id/local-authority-district/22UN,Corporate Services,1320 - Print Unit Service Unit,4400 - Maintenance Under Service Agreements,02/07/2013,2109422-1,195,2100353 - Consensus Guillotine Engineering Ltd,Guillotine Safety Check
Tendring DC,http://statistics.data.gov.uk/id/local-authority-district/22UN,Corporate Services,6460 - Career Track,4688 - Career Track Exam Fees,30/07/2013,1053794-1,22,REDACTED PERSONAL DATA,REDACTED PERSONAL DATA
Tendring DC,http://statistics.data.gov.uk/id/local-authority-district/22UN,Corporate Services,6460 - Career Track,4688 - Career Track Exam Fees,09/07/2013,2109553-1,22,REDACTED PERSONAL DATA,REDACTED PERSONAL DATA
Tendring DC,http://statistics.data.gov.uk/id/local-authority-district/22UN,Corporate Services,9890 - Collection Fund - NNDR,R125 - NNDR - Payments to DCLG,09/07/2013,2109644-1,-1270299,2100432 - DCLG,NNDR and RSG
Tendring DC,http://statistics.data.gov.uk/id/local-authority-district/22UN,Corporate Services,8984 - Business Rates Tariff and Levy,6990 - Business Rate Tariff and Levy,09/07/2013,2109644-2,-534552,2100432 - DCLG,NNDR and RSG
Tendring DC,http://statistics.data.gov.uk/id/local-authority-district/22UN,Corporate Services,9890 - Collection Fund - NNDR,R135 - NNDR - Transitional Relief Settlement,09/07/2013,2109644-3,12499,2100432 - DCLG,NNDR and RSG
Tendring DC,http://statistics.data.gov.uk/id/local-authority-district/22UN,Corporate Services,1760 - IT Direct Service Costs,4751 - Hardware & Service Maintenance,16/07/2013,2109883-1,1372.8,2102545 - Dell Corporation Ltd,
Tendring DC,http://statistics.data.gov.uk/id/local-authority-district/22UN,Corporate Services,1090 - Chief Executive and Support Service Unit,4400 - Maintenance Under Service Agreements,16/07/2013,2109869-1,15.44,2102826 - Eden Springs UK Ltd,
Tendring DC,http://statistics.data.gov.uk/id/local-authority-district/22UN,Corporate Services,9880 - Collection Fund - Council Tax,R100 - Precept - ECC,15/07/2013,1053548-1,4616471,2100409 - Essex County Council,PRECEPT
Tendring DC,http://statistics.data.gov.uk/id/local-authority-district/22UN,Corporate Services,9880 - Collection Fund - Council Tax,R110 - Council Tax Balance - ECC,15/07/2013,1053548-2,92582,2100409 - Essex County Council,PRECEPT
Tendring DC,http://statistics.data.gov.uk/id/local-authority-district/22UN,Corporate Services,9890 - Collection Fund - NNDR,R127 - NNDR - Essex County Retention,15/07/2013,1053548-3,217766,2100409 - Essex County Council,PRECEPT
Tendring DC,http://statistics.data.gov.uk/id/local-authority-district/22UN,Corporate Services,6683 - Second Homes Discount Scheme,8109 - Second Homes Discount Scheme - ECC Contribution,15/07/2013,1053548-4,-37770,2100409 - Essex County Council,PRECEPT
Tendring DC,http://statistics.data.gov.uk/id/local-authority-district/22UN,Corporate Services,8971 - MIRS - Contributions Payable to the Pension Scheme,1816 - Superannuation Deficiency Contribution,09/07/2013,7009414-3,137750,2100419 - Essex County Council,Pension 00013
Tendring DC,http://statistics.data.gov.uk/id/local-authority-district/22UN,Corporate Services,8971 - MIRS - Contributions Payable to the Pension Scheme,1810 - Superannuation - Financial Strain/Added Years,09/07/2013,7009414-4,17319.33,2100419 - Essex County Council,Pension 00013
Tendring DC,http://statistics.data.gov.uk/id/local-authority-district/22UN,Corporate Services,8971 - MIRS - Contributions Payable to the Pension Scheme,1822 - Superannuation - Port Health Pensions etc.,09/07/2013,7009415-2,800.05,2100419 - Essex County Council,Port Health Authority
Tendring DC,http://statistics.data.gov.uk/id/local-authority-district/22UN,Corporate Services,9880 - Collection Fund - Council Tax,R101 - Precept - Essex Fire,15/07/2013,1053550-1,282150,2100469 - Essex Fire Authority,PRECEPT
Tendring DC,http://statistics.data.gov.uk/id/local-authority-district/22UN,Corporate Services,9880 - Collection Fund - Council Tax,R111 - Council Tax Balance - Essex Fire,15/07/2013,1053550-2,5658,2100469 - Essex Fire Authority,PRECEPT
Tendring DC,http://statistics.data.gov.uk/id/local-authority-district/22UN,Corporate Services,9890 - Collection Fund - NNDR,R128 - NNDR - Fire Retention,15/07/2013,1053550-3,24196,2100469 - Essex Fire Authority,PRECEPT
Tendring DC,http://statistics.data.gov.uk/id/local-authority-district/22UN,Corporate Services,6420 - Cost Of Council Tax Collection,8124 - Contribution - Collection Investment/Hardship Admin.,15/07/2013,1053550-4,-2106,2100469 - Essex Fire Authority,PRECEPT
Tendring DC,http://statistics.data.gov.uk/id/local-authority-district/22UN,Corporate Services,9880 - Collection Fund - Council Tax,R102 - Precept - Essex Police,15/07/2013,1053549-1,601001,2100500 - Essex Police Authority,PRECEPT
Tendring DC,http://statistics.data.gov.uk/id/local-authority-district/22UN,Corporate Services,9880 - Collection Fund - Council Tax,R112 - Council Tax Balance - Essex Police,15/07/2013,1053549-2,11647,2100500 - Essex Police Authority,PRECEPT
Tendring DC,http://statistics.data.gov.uk/id/local-authority-district/22UN,Corporate Services,1660 - Other Apportionable Overheads,4609 - Child Care Vouchers Management Fee,09/07/2013,2109642-2,71.18,REDACTED PERSONAL DATA,REDACTED PERSONAL DATA
Tendring DC,http://statistics.data.gov.uk/id/local-authority-district/22UN,Corporate Services,1815 - Personnel and Human Resources Issues,1610 - Counselling,09/07/2013,1053430-1,560,2100517 - Geraldine Craig,
Tendring DC,http://statistics.data.gov.uk/id/local-authority-district/22UN,Corporate Services,1180 - Benefit Fraud Investigation Service Unit,4459 - External Legal Advice,30/07/2013,1053863-1,2677.9,2100672 - Harris Cuffaro & Nichols Solicitors,SOLICITOR COSTS
Tendring DC,http://statistics.data.gov.uk/id/local-authority-district/22UN,Corporate Services,1180 - Benefit Fraud Investigation Service Unit,4459 - External Legal Advice,30/07/2013,1053863-2,11.5,2100672 - Harris Cuffaro & Nichols Solicitors,SOLICITOR COSTS
Tendring DC,http://statistics.data.gov.uk/id/local-authority-district/22UN,Corporate Services,1180 - Benefit Fraud Investigation Service Unit,4459 - External Legal Advice,02/07/2013,2109480-1,1274,2100672 - Harris Cuffaro & Nichols Solicitors,Solicitor Fees
Tendring DC,http://statistics.data.gov.uk/id/local-authority-district/22UN,Corporate Services,6980 - Essex Family Needs Project,5500 - Miscellaneous Expenses,23/07/2013,2109989-1,12,2100604 - Harwich Taxis,Harwich Taxis
Tendring DC,http://statistics.data.gov.uk/id/local-authority-district/22UN,Corporate Services,1930 - Asset Management Service Unit,1350 - Agency Staff,16/07/2013,2109929-1,1789.75,2112289 - Hays Specialist Recruitment Ltd,Asset Surveyor
Tendring DC,http://statistics.data.gov.uk/id/local-authority-district/22UN,Corporate Services,6560 - Other Democratic Costs,4670 - Hire of Premises,02/07/2013,1053359-1,270,2112510 - High House Enterprises Ltd,SE LEP MEETING 22/5/13
Tendring DC,http://statistics.data.gov.uk/id/local-authority-district/22UN,Corporate Services,1300 - Legal Services Service Unit,4469 - Other Non - Legal Professional Services,23/07/2013,1053700-1,465,2100661 - HMCTS,
Tendring DC,http://statistics.data.gov.uk/id/local-authority-district/22UN,Corporate Services,9900 - General Fund Balance Sheet,B494 - Commissioners Of I.R. - Car Leasing NI,02/07/2013,1053363-1,12.83,2104845 - HMRC,CLASS 1A 2012/13
Tendring DC,http://statistics.data.gov.uk/id/local-authority-district/22UN,Corporate Services,7040 - Civic Ceremonial Expenses,4300 - Printing & Stationery,09/07/2013,1053473-1,157.5,2106604 - House of Logo's Ltd,HOUSE OF LOGOS-PENS
Tendring DC,http://statistics.data.gov.uk/id/local-authority-district/22UN,Corporate Services,1100 - Head of Corporate Services and Admin Service Unit,4300 - Printing & Stationery,02/07/2013,2109436-1,9.29,2100782 - Insight Direct (uk) Limited,Mouse
Tendring DC,http://statistics.data.gov.uk/id/local-authority-district/22UN,Corporate Services,1760 - IT Direct Service Costs,4751 - Hardware & Service Maintenance,09/07/2013,2109590-1,24.62,2100782 - Insight Direct (uk) Limited,
Tendring DC,http://statistics.data.gov.uk/id/local-authority-district/22UN,Corporate Services,1760 - IT Direct Service Costs,4751 - Hardware & Service Maintenance,16/07/2013,2109884-1,73.97,2100782 - Insight Direct (uk) Limited,
Tendring DC,http://statistics.data.gov.uk/id/local-authority-district/22UN,Corporate Services,1210 - Facilities Management Service Unit,3302 - Car Allowances - Officers,09/07/2013,1053493-1,50,REDACTED PERSONAL DATA,REDACTED PERSONAL DATA
Tendring DC,http://statistics.data.gov.uk/id/local-authority-district/22UN,Corporate Services,1210 - Facilities Management Service Unit,3302 - Car Allowances - Officers,30/07/2013,1053715-1,50,REDACTED PERSONAL DATA,REDACTED PERSONAL DATA
Tendring DC,http://statistics.data.gov.uk/id/local-authority-district/22UN,Corporate Services,6640 - Treasury Management,5192 - Brokerage,12/07/2013,2109678-2,92.5,2107040 - King & Shaxson Limited,Fees re Treasury Management
Tendring DC,http://statistics.data.gov.uk/id/local-authority-district/22UN,Corporate Services,8915 - Interest & Investment Income,9600 - External Investment Interest Receivable,12/07/2013,2109678-3,-759.45,2107040 - King & Shaxson Limited,Fees re Treasury Management
Tendring DC,http://statistics.data.gov.uk/id/local-authority-district/22UN,Corporate Services,1320 - Print Unit Service Unit,4080 - Materials & Consumables,23/07/2013,1053634-1,168.35,2100864 - Leston Stationery Ltd,PAPER & CARD
Tendring DC,http://statistics.data.gov.uk/id/local-authority-district/22UN,Corporate Services,1320 - Print Unit Service Unit,4080 - Materials & Consumables,30/07/2013,1053859-1,179.8,2100864 - Leston Stationery Ltd,PAPER
Tendring DC,http://statistics.data.gov.uk/id/local-authority-district/22UN,Corporate Services,1320 - Print Unit Service Unit,4080 - Materials & Consumables,30/07/2013,1053860-1,34.12,2100864 - Leston Stationery Ltd,CARD
Tendring DC,http://statistics.data.gov.uk/id/local-authority-district/22UN,Corporate Services,1320 - Print Unit Service Unit,4080 - Materials & Consumables,09/07/2013,2109589-1,22,2100864 - Leston Stationery Ltd,Labels
Tendring DC,http://statistics.data.gov.uk/id/local-authority-district/22UN,Corporate Services,1815 - Personnel and Human Resources Issues,1708 - Training - New Programme Development Courses,16/07/2013,2109867-1,245,2113179 - Management Learning Resources Ltd,MLR - Lunch & Learn
Tendring DC,http://statistics.data.gov.uk/id/local-authority-district/22UN,Corporate Services,1815 - Personnel and Human Resources Issues,1708 - Training - New Programme Development Courses,16/07/2013,2109867-2,25,2113179 - Management Learning Resources Ltd,MLR - Lunch & Learn
Tendring DC,http://statistics.data.gov.uk/id/local-authority-district/22UN,Corporate Services,1815 - Personnel and Human Resources Issues,1708 - Training - New Programme Development Courses,16/07/2013,2109867-3,95,2113179 - Management Learning Resources Ltd,MLR - Lunch & Learn
Tendring DC,http://statistics.data.gov.uk/id/local-authority-district/22UN,Corporate Services,1300 - Legal Services Service Unit,4460 - Legal & Professional Expenses,02/07/2013,1053309-1,402.5,2113100 - Merrill Legal Solutions,
Tendring DC,http://statistics.data.gov.uk/id/local-authority-district/22UN,Corporate Services,1300 - Legal Services Service Unit,4503 - Counsels Fees,16/07/2013,2109865-1,4930,2110726 - Mrs Harriet Townsend,TDC v Kinsley
Tendring DC,http://statistics.data.gov.uk/id/local-authority-district/22UN,Corporate Services,7100 - Community Health/Safety,1700 - Training - Courses,23/07/2013,2109987-1,299,2111906 - NCSN Trading Ltd,NCSN - NM - Conf 2013
Tendring DC,http://statistics.data.gov.uk/id/local-authority-district/22UN,Corporate Services,8025 - Car Parks - Off St,4469 - Other Non - Legal Professional Services,23/07/2013,2110097-1,3778,REDACTED PERSONAL DATA,REDACTED PERSONAL DATA
Tendring DC,http://statistics.data.gov.uk/id/local-authority-district/22UN,Corporate Services,6460 - Career Track,4688 - Career Track Exam Fees,30/07/2013,1053795-1,78.4,REDACTED PERSONAL DATA,REDACTED PERSONAL DATA
Tendring DC,http://statistics.data.gov.uk/id/local-authority-district/22UN,Corporate Services,6460 - Career Track,4688 - Career Track Exam Fees,30/07/2013,1053796-1,78.4,REDACTED PERSONAL DATA,REDACTED PERSONAL DATA
Tendring DC,http://statistics.data.gov.uk/id/local-authority-district/22UN,Corporate Services,6460 - Career Track,4688 - Career Track Exam Fees,16/07/2013,2109868-1,78.4,2101071 - OCR,OCR Registrations
Tendring DC,http://statistics.data.gov.uk/id/local-authority-district/22UN,Corporate Services,1320 - Print Unit Service Unit,4302 - External Print Unit Expenses,23/07/2013,1053635-1,20,2111844 - Optimumprint,JOB 217
Tendring DC,http://statistics.data.gov.uk/id/local-authority-district/22UN,Corporate Services,1320 - Print Unit Service Unit,4302 - External Print Unit Expenses,23/07/2013,1053636-1,325,2111844 - Optimumprint,JOB 228
Tendring DC,http://statistics.data.gov.uk/id/local-authority-district/22UN,Corporate Services,1320 - Print Unit Service Unit,4302 - External Print Unit Expenses,30/07/2013,1053861-1,1250,2111844 - Optimumprint,JOB 206
Tendring DC,http://statistics.data.gov.uk/id/local-authority-district/22UN,Corporate Services,1320 - Print Unit Service Unit,4302 - External Print Unit Expenses,02/07/2013,2109419-1,521,2111844 - Optimumprint,Job 165
Tendring DC,http://statistics.data.gov.uk/id/local-authority-district/22UN,Corporate Services,1320 - Print Unit Service Unit,4302 - External Print Unit Expenses,02/07/2013,2109420-1,20,2111844 - Optimumprint,Job 165
Tendring DC,http://statistics.data.gov.uk/id/local-authority-district/22UN,Corporate Services,1320 - Print Unit Service Unit,4302 - External Print Unit Expenses,02/07/2013,2109421-1,30,2111844 - Optimumprint,Job 177
Tendring DC,http://statistics.data.gov.uk/id/local-authority-district/22UN,Corporate Services,6460 - Career Track,4688 - Career Track Exam Fees,30/07/2013,1053790-1,29,REDACTED PERSONAL DATA,REDACTED PERSONAL DATA
Tendring DC,http://statistics.data.gov.uk/id/local-authority-district/22UN,Corporate Services,6460 - Career Track,4688 - Career Track Exam Fees,30/07/2013,1053791-1,85,2100425 - Pearson,PEARSON REGISTRATION
Tendring DC,http://statistics.data.gov.uk/id/local-authority-district/22UN,Corporate Services,6460 - Career Track,4688 - Career Track Exam Fees,30/07/2013,1053792-1,58,REDACTED PERSONAL DATA,REDACTED PERSONAL DATA
Tendring DC,http://statistics.data.gov.uk/id/local-authority-district/22UN,Corporate Services,6460 - Career Track,4688 - Career Track Exam Fees,30/07/2013,1053793-1,42.5,REDACTED PERSONAL DATA,REDACTED PERSONAL DATA
Tendring DC,http://statistics.data.gov.uk/id/local-authority-district/22UN,Corporate Services,6460 - Career Track,4688 - Career Track Exam Fees,09/07/2013,2109551-1,14.5,2100425 - Pearson,EDI FS ICT L2
Tendring DC,http://statistics.data.gov.uk/id/local-authority-district/22UN,Corporate Services,6460 - Career Track,4688 - Career Track Exam Fees,09/07/2013,2109552-1,14.5,REDACTED PERSONAL DATA,REDACTED PERSONAL DATA
Tendring DC,http://statistics.data.gov.uk/id/local-authority-district/22UN,Corporate Services,6460 - Career Track,4753 - Computer - Application Software,09/07/2013,2109555-1,1830,REDACTED PERSONAL DATA,REDACTED PERSONAL DATA
Tendring DC,http://statistics.data.gov.uk/id/local-authority-district/22UN,Corporate Services,1661 - Other Apportionable Overheads - Corporate Support,4700 - Postage,02/07/2013,1053236-1,5050,2104077 - Pitney Bowes Ltd,RE-CREDIT FRANKING MACHINE CLACTON PBP A/C 10113561
Tendring DC,http://statistics.data.gov.uk/id/local-authority-district/22UN,Corporate Services,1661 - Other Apportionable Overheads - Corporate Support,4700 - Postage,23/07/2013,2110062-1,249.75,2104077 - Pitney Bowes Ltd,Franking Consumables
Tendring DC,http://statistics.data.gov.uk/id/local-authority-district/22UN,Corporate Services,9900 - General Fund Balance Sheet,B146 - Car Loans - Principal - Essential Users,23/07/2013,1053694-1,10500,REDACTED PERSONAL DATA,REDACTED PERSONAL DATA
Tendring DC,http://statistics.data.gov.uk/id/local-authority-district/22UN,Corporate Services,7220 - Election Expenses,4486 - Election Expenses,30/07/2013,1053816-1,839.75,2103246 - Print.uk.com,WEST WARD HARWICH BY ELECTION
Tendring DC,http://statistics.data.gov.uk/id/local-authority-district/22UN,Corporate Services,7220 - Election Expenses,4486 - Election Expenses,30/07/2013,1053817-1,836.1,2103246 - Print.uk.com,WEST CENTRAL HARWICH BY ELECTION
Tendring DC,http://statistics.data.gov.uk/id/local-authority-district/22UN,Corporate Services,7220 - Election Expenses,4486 - Election Expenses,30/07/2013,1053818-1,279.62,2103246 - Print.uk.com,WEST WARD HARWICH BY ELECTION
Tendring DC,http://statistics.data.gov.uk/id/local-authority-district/22UN,Corporate Services,7220 - Election Expenses,4486 - Election Expenses,30/07/2013,1053819-1,252.77,2103246 - Print.uk.com,WEST CENTRAL HARWICH BY ELECTION
Tendring DC,http://statistics.data.gov.uk/id/local-authority-district/22UN,Corporate Services,7220 - Election Expenses,4486 - Election Expenses,30/07/2013,1053820-1,49.35,2103246 - Print.uk.com,LT BROMLEY BY ELECTION
Tendring DC,http://statistics.data.gov.uk/id/local-authority-district/22UN,Corporate Services,7200 - LSP/Community Strategy,4486 - Election Expenses,23/07/2013,2110063-1,194.8,2103246 - Print.uk.com,Lt Bromley by Election
Tendring DC,http://statistics.data.gov.uk/id/local-authority-district/22UN,Corporate Services,7220 - Election Expenses,4486 - Election Expenses,23/07/2013,2110064-1,426.4,2103246 - Print.uk.com,Lt Bromley by Election
Tendring DC,http://statistics.data.gov.uk/id/local-authority-district/22UN,Corporate Services,7220 - Election Expenses,4486 - Election Expenses,23/07/2013,2110065-1,935.76,2103246 - Print.uk.com,Parish of Harwich - West Central
Tendring DC,http://statistics.data.gov.uk/id/local-authority-district/22UN,Corporate Services,7220 - Election Expenses,4486 - Election Expenses,23/07/2013,2110066-1,252.2,2103246 - Print.uk.com,Parish of Harwich - West Central
Tendring DC,http://statistics.data.gov.uk/id/local-authority-district/22UN,Corporate Services,7220 - Election Expenses,4486 - Election Expenses,23/07/2013,2110067-1,251.9,2103246 - Print.uk.com,Harwich West Road
Tendring DC,http://statistics.data.gov.uk/id/local-authority-district/22UN,Corporate Services,7220 - Election Expenses,4486 - Election Expenses,23/07/2013,2110068-1,932.16,2103246 - Print.uk.com,Harwicj West Ward
Tendring DC,http://statistics.data.gov.uk/id/local-authority-district/22UN,Corporate Services,"1580 - Benefits, Revenues and Customer Contact SU",4718 - Fixed Communication Lines,16/07/2013,2109885-1,16.74,2106860 - ProcessFlows UK Ltd,Process Flows May 13
Tendring DC,http://statistics.data.gov.uk/id/local-authority-district/22UN,Corporate Services,"1580 - Benefits, Revenues and Customer Contact SU",4718 - Fixed Communication Lines,16/07/2013,2109886-1,14.04,2106860 - ProcessFlows UK Ltd,Process Flows Jun 13
Tendring DC,http://statistics.data.gov.uk/id/local-authority-district/22UN,Corporate Services,8901 - Interest Payable and similar charges,7570 - Interest Payments,15/07/2013,1053546-2,5779.85,2101162 - Public Works Loan Board,PRINCIPAL AND INTEREST PAYMENTS
Tendring DC,http://statistics.data.gov.uk/id/local-authority-district/22UN,Corporate Services,9930 - Loans Fund Balance Sheet,B551 - Loans Maturing Within One Year - HRA,15/07/2013,1053546-3,166666.67,2101162 - Public Works Loan Board,PRINCIPAL AND INTEREST PAYMENTS
Tendring DC,http://statistics.data.gov.uk/id/local-authority-district/22UN,Corporate Services,5760 - HRA - Capital & Interest Charges,9831 - HRA Interest (formerly Item 8),15/07/2013,1053546-4,147766.67,2101162 - Public Works Loan Board,PRINCIPAL AND INTEREST PAYMENTS
Tendring DC,http://statistics.data.gov.uk/id/local-authority-district/22UN,Corporate Services,9900 - General Fund Balance Sheet,B886 - Rail Warrants Allocation Holding Account,19/07/2013,1053922-1,1587.1,2101174 - R S P Ltd,RAIL WARRANTS
Tendring DC,http://statistics.data.gov.uk/id/local-authority-district/22UN,Corporate Services,6460 - Career Track,1700 - Training - Courses,02/07/2013,1053314-1,1500,REDACTED PERSONAL DATA,REDACTED PERSONAL DATA
Tendring DC,http://statistics.data.gov.uk/id/local-authority-district/22UN,Corporate Services,7025 - CDRP Support,4900 - Grants,09/07/2013,2109586-1,520,2113168 - Remote Medic UK Ltd,Workshop - Alcohol Awareness Event
Tendring DC,http://statistics.data.gov.uk/id/local-authority-district/22UN,Corporate Services,1090 - Chief Executive and Support Service Unit,4400 - Maintenance Under Service Agreements,30/07/2013,1053894-1,275.52,2101090 - Ricoh UK Ltd,PHOTOCOPIER RENT & COPY CHARGES
Tendring DC,http://statistics.data.gov.uk/id/local-authority-district/22UN,Corporate Services,7240 - Electoral Registration Expenses,4700 - Postage,30/07/2013,1053828-1,53.96,2101139 - Royal Mail,ELECTORAL POSTAGE
Tendring DC,http://statistics.data.gov.uk/id/local-authority-district/22UN,Corporate Services,7240 - Electoral Registration Expenses,4700 - Postage,23/07/2013,2110069-1,10.27,2101139 - Royal Mail,Electoral Postage
Tendring DC,http://statistics.data.gov.uk/id/local-authority-district/22UN,Corporate Services,1815 - Personnel and Human Resources Issues,1600 - Medical Expenses,02/07/2013,1053356-1,580,2110675 - RPS Consultants Ltd,OCCUPATIONAL HEALTH
Tendring DC,http://statistics.data.gov.uk/id/local-authority-district/22UN,Corporate Services,1815 - Personnel and Human Resources Issues,1600 - Medical Expenses,02/07/2013,1053357-1,773.33,2110675 - RPS Consultants Ltd,OCCUPATIONAL HEALTH
Tendring DC,http://statistics.data.gov.uk/id/local-authority-district/22UN,Corporate Services,7220 - Election Expenses,4486 - Election Expenses,30/07/2013,1053821-1,14.35,2101284 - Shaw & Sons Ltd,COUNTING SHEETS
Tendring DC,http://statistics.data.gov.uk/id/local-authority-district/22UN,Corporate Services,1330 - Human Resources Service Unit,1700 - Training - Courses,23/07/2013,1053647-1,125,2101898 - Southend-On-Sea Borough Council,SOLUTION FOCUSED THINKING
Tendring DC,http://statistics.data.gov.uk/id/local-authority-district/22UN,Corporate Services,6980 - Essex Family Needs Project,5500 - Miscellaneous Expenses,09/07/2013,1053445-1,31.5,2107338 - Swan Taxis,SWAN TAXIS
Tendring DC,http://statistics.data.gov.uk/id/local-authority-district/22UN,Corporate Services,7040 - Civic Ceremonial Expenses,4080 - Materials & Consumables,23/07/2013,2109986-1,630.28,2112989 - Thomas Fattorini Ltd,Repair to Civic Hall
Tendring DC,http://statistics.data.gov.uk/id/local-authority-district/22UN,Corporate Services,1140 - Audit Services Service Unit,4500 - Consultancy Fees,02/07/2013,1053346-1,2961,2111185 - TIAA Ltd,COMPUTER AUDIT-DISASTER RECOVERY
Tendring DC,http://statistics.data.gov.uk/id/local-authority-district/22UN,Corporate Services,1140 - Audit Services Service Unit,4500 - Consultancy Fees,23/07/2013,2109988-1,658,2111185 - TIAA Ltd,TDC13 Follow Up Audit
Tendring DC,http://statistics.data.gov.uk/id/local-authority-district/22UN,Corporate Services,1320 - Print Unit Service Unit,4350 - Photocopier Hire,02/07/2013,2109423-1,830.37,2101517 - Xerox (UK) Ltd,4127 Copies
Tendring DC,http://statistics.data.gov.uk/id/local-authority-district/22UN,Corporate Services,1320 - Print Unit Service Unit,4350 - Photocopier Hire,09/07/2013,2109588-1,2173.92,2101517 - Xerox (UK) Ltd,252 Copies
Tendring DC,http://statistics.data.gov.uk/id/local-authority-district/22UN,Corporate Services,1320 - Print Unit Service Unit,4350 - Photocopier Hire,09/07/2013,1053446-1,1964.1,2101527 - Xerox Finance Ltd,252 RENTAL
Tendring DC,http://statistics.data.gov.uk/id/local-authority-district/22UN,Corporate Services,6580 - Member Support Cost,4300 - Printing & Stationery,02/07/2013,2109437-1,114.41,2107546 - XMA Limited,ink Cartridges Members Office
Tendring DC,http://statistics.data.gov.uk/id/local-authority-district/22UN,Corporate Services,5240 - HRA - Managing Tenancies,4312 - Tenancy Stationery,09/07/2013,2109487-1,2.11,REDACTED COMMERCIAL CONFIDENTIALITY,REDACTED COMMERCIAL CONFIDENTIALITY
Tendring DC,http://statistics.data.gov.uk/id/local-authority-district/22UN,Corporate Services,6580 - Member Support Cost,4300 - Printing & Stationery,16/07/2013,2109757-1,34.76,2107546 - XMA Limited,Toner Cartridge Member Office
Tendring DC,http://statistics.data.gov.uk/id/local-authority-district/22UN,Corporate Services,1320 - Print Unit Service Unit,4302 - External Print Unit Expenses,16/07/2013,2109959-1,795,2101635 - Xpressions.com,Diary Artwork & Setting
Tendring DC,http://statistics.data.gov.uk/id/local-authority-district/22UN,Corporate Services,1700 - Insurance Recharge Account,3440 - Marine,30/07/2013,1053896-1,2279.3,2107672 - Zurich Municipal Insurance,MARINE INSURANCE 13/14
Tendring DC,http://statistics.data.gov.uk/id/local-authority-district/22UN,Corporate Services,1950 - Transport,3062 - Running Costs - Petrol,20/08/2013,2110598-1,177.51,2101825 - Allstar Business Solutions Ltd,Courier Fuel
Tendring DC,http://statistics.data.gov.uk/id/local-authority-district/22UN,Corporate Services,1700 - Insurance Recharge Account,1905 - Employee Insurances - Personal Accident,13/08/2013,2110359-1,1637.5,2104849 - Aon Limited,Personal Acc Ins Renewal 13/14
Tendring DC,http://statistics.data.gov.uk/id/local-authority-district/22UN,Corporate Services,1700 - Insurance Recharge Account,1906 - Employee Insurances - Fidelity Guarantee,13/08/2013,2110360-1,1268.82,2104849 - Aon Limited,Fidelity Ins Renewal 13/14
Tendring DC,http://statistics.data.gov.uk/id/local-authority-district/22UN,Corporate Services,1700 - Insurance Recharge Account,1907 - Employee Insurances - Employment Practices Liability,13/08/2013,2110361-1,11130,2104849 - Aon Limited,EPL Renewal 13/14
Tendring DC,http://statistics.data.gov.uk/id/local-authority-district/22UN,Corporate Services,1700 - Insurance Recharge Account,2805 - Premises Insurances - Work in Progress,13/08/2013,2110362-1,926.41,2104849 - Aon Limited,Contract Works 13/14
Tendring DC,http://statistics.data.gov.uk/id/local-authority-district/22UN,Corporate Services,1700 - Insurance Recharge Account,2806 - Premises Insurance - Material damage,13/08/2013,2110363-1,104891.52,2104849 - Aon Limited,Damage & Terror Ins Renewal
Tendring DC,http://statistics.data.gov.uk/id/local-authority-district/22UN,Corporate Services,1700 - Insurance Recharge Account,2813 - Premises Insurance - Terrorism,13/08/2013,2110363-2,9813.35,2104849 - Aon Limited,Damage & Terror Ins Renewal
Tendring DC,http://statistics.data.gov.uk/id/local-authority-district/22UN,Corporate Services,1700 - Insurance Recharge Account,3400 - Motor Fleet - general vehicles,13/08/2013,2110364-1,40576.8,2104849 - Aon Limited,Motor Renewal 13/14
Tendring DC,http://statistics.data.gov.uk/id/local-authority-district/22UN,Corporate Services,1700 - Insurance Recharge Account,4526 - AON - Brokerage Fees,13/08/2013,2110365-1,8500,2104849 - Aon Limited,Broking Fee 13/14
Tendring DC,http://statistics.data.gov.uk/id/local-authority-district/22UN,Corporate Services,1700 - Insurance Recharge Account,5000 - Other Insurance - Computer Equipment &  Loss of Data,13/08/2013,2110366-1,1622.48,2104849 - Aon Limited,Computer Renewal 13/14
Tendring DC,http://statistics.data.gov.uk/id/local-authority-district/22UN,Corporate Services,1700 - Insurance Recharge Account,5001 - Insurances - Dataguard,13/08/2013,2110367-1,8480,2104849 - Aon Limited,Dataguard Renewal 13/14
Tendring DC,http://statistics.data.gov.uk/id/local-authority-district/22UN,Corporate Services,1432 - TDC Website,4500 - Consultancy Fees,07/08/2013,1054004-1,1025,2109504 - Associated Knowledge Systems Ltd,ANNUAL FEE
Tendring DC,http://statistics.data.gov.uk/id/local-authority-district/22UN,Corporate Services,1320 - Print Unit Service Unit,4302 - External Print Unit Expenses,20/08/2013,2110572-1,60,2100069 - Autoprint,Job 238
Tendring DC,http://statistics.data.gov.uk/id/local-authority-district/22UN,Corporate Services,6580 - Member Support Cost,4300 - Printing & Stationery,07/08/2013,1053926-1,-30.92,2100111 - Banner Business Supplies Ltd,CREDIT BANNER ENVELOPES
Tendring DC,http://statistics.data.gov.uk/id/local-authority-district/22UN,Corporate Services,1100 - Corporate Director (Corporate Services) and Admin Service Unit,4300 - Printing & Stationery,13/08/2013,1054093-1,112.79,2100111 - Banner Business Supplies Ltd,BANNER
Tendring DC,http://statistics.data.gov.uk/id/local-authority-district/22UN,Corporate Services,1100 - Corporate Director (Corporate Services) and Admin Service Unit,4300 - Printing & Stationery,27/08/2013,1054514-1,109.7,2100111 - Banner Business Supplies Ltd,PAPER
Tendring DC,http://statistics.data.gov.uk/id/local-authority-district/22UN,Corporate Services,1100 - Corporate Director (Corporate Services) and Admin Service Unit,4300 - Printing & Stationery,13/08/2013,2110343-1,37.82,2100111 - Banner Business Supplies Ltd,Stationery
Tendring DC,http://statistics.data.gov.uk/id/local-authority-district/22UN,Corporate Services,1100 - Corporate Director (Corporate Services) and Admin Service Unit,4300 - Printing & Stationery,13/08/2013,2110343-2,7.09,2100111 - Banner Business Supplies Ltd,Stationery
Tendring DC,http://statistics.data.gov.uk/id/local-authority-district/22UN,Corporate Services,1100 - Corporate Director (Corporate Services) and Admin Service Unit,4300 - Printing & Stationery,20/08/2013,2110602-1,3.81,2100111 - Banner Business Supplies Ltd,Diary Part Order
Tendring DC,http://statistics.data.gov.uk/id/local-authority-district/22UN,Corporate Services,6980 - Essex Family Needs Project,4469 - Other Non - Legal Professional Services,20/08/2013,1054342-1,20000,2112862 - Barnardo Services Ltd,4TH QTR BARNARDOS
Tendring DC,http://statistics.data.gov.uk/id/local-authority-district/22UN,Corporate Services,1760 - IT Direct Service Costs,4715 - Data Communication Charge,20/08/2013,2110463-1,226.5,2100168 - British Telecommunications plc,3584991QA40 Jul 13
Tendring DC,http://statistics.data.gov.uk/id/local-authority-district/22UN,Corporate Services,1815 - Personnel and Human Resources Issues,1708 - Training - New Programme Development Courses,27/08/2013,1054551-1,100,2101866 - C.I.E.H.,TRAINER REACTIVATION FEE
Tendring DC,http://statistics.data.gov.uk/id/local-authority-district/22UN,Corporate Services,9900 - General Fund Balance Sheet,B879 - Charges made by Merchant Acquirer,06/08/2013,1054452-1,34.74,2100202 - Capita Business Services Ltd,CAPITA JULY 2013
Tendring DC,http://statistics.data.gov.uk/id/local-authority-district/22UN,Corporate Services,9900 - General Fund Balance Sheet,B879 - Charges made by Merchant Acquirer,06/08/2013,1054452-2,70.33,2100202 - Capita Business Services Ltd,CAPITA JULY 2013
Tendring DC,http://statistics.data.gov.uk/id/local-authority-district/22UN,Corporate Services,9900 - General Fund Balance Sheet,B879 - Charges made by Merchant Acquirer,06/08/2013,1054452-3,236.7,2100202 - Capita Business Services Ltd,CAPITA JULY 2013
Tendring DC,http://statistics.data.gov.uk/id/local-authority-district/22UN,Corporate Services,9900 - General Fund Balance Sheet,B879 - Charges made by Merchant Acquirer,06/08/2013,1054452-4,366.02,2100202 - Capita Business Services Ltd,CAPITA JULY 2013
Tendring DC,http://statistics.data.gov.uk/id/local-authority-district/22UN,Corporate Services,9900 - General Fund Balance Sheet,B879 - Charges made by Merchant Acquirer,06/08/2013,1054452-5,396.54,2100202 - Capita Business Services Ltd,CAPITA JULY 2013
Tendring DC,http://statistics.data.gov.uk/id/local-authority-district/22UN,Corporate Services,9900 - General Fund Balance Sheet,B879 - Charges made by Merchant Acquirer,06/08/2013,1054452-6,360.89,2100202 - Capita Business Services Ltd,CAPITA JULY 2013
Tendring DC,http://statistics.data.gov.uk/id/local-authority-district/22UN,Corporate Services,9900 - General Fund Balance Sheet,B879 - Charges made by Merchant Acquirer,06/08/2013,1054452-7,371.7,2100202 - Capita Business Services Ltd,CAPITA JULY 2013
Tendring DC,http://statistics.data.gov.uk/id/local-authority-district/22UN,Corporate Services,9900 - General Fund Balance Sheet,B879 - Charges made by Merchant Acquirer,06/08/2013,1054452-8,243.63,2100202 - Capita Business Services Ltd,CAPITA JULY 2013
Tendring DC,http://statistics.data.gov.uk/id/local-authority-district/22UN,Corporate Services,9900 - General Fund Balance Sheet,B879 - Charges made by Merchant Acquirer,06/08/2013,1054452-9,-0.25,2100202 - Capita Business Services Ltd,CAPITA JULY 2013
Tendring DC,http://statistics.data.gov.uk/id/local-authority-district/22UN,Corporate Services,1110 - Credit & Debit Card Payment System,4753 - Computer - Application Software,27/08/2013,2110686-1,522.08,2100202 - Capita Business Services Ltd,Additional TT Lines
Tendring DC,http://statistics.data.gov.uk/id/local-authority-district/22UN,Corporate Services,6460 - Career Track,1700 - Training - Courses,27/08/2013,1054534-1,1500,2113278 - Charles Derby Consultants,AGE GRANT-CHLOEANNE MATTEI
Tendring DC,http://statistics.data.gov.uk/id/local-authority-district/22UN,Corporate Services,1800 - Qualification and Other Training,1700 - Training - Courses,27/08/2013,2110674-1,2020,2100254 - Chartered Institute of Housing,Tuition Fee
Tendring DC,http://statistics.data.gov.uk/id/local-authority-district/22UN,Corporate Services,6640 - Treasury Management,5192 - Brokerage,01/08/2013,1054276-1,140,REDACTED COMMERCIAL CONFIDENTIALITY,REDACTED COMMERCIAL CONFIDENTIALITY
Tendring DC,http://statistics.data.gov.uk/id/local-authority-district/22UN,Corporate Services,6620 - Corporate Management - General,5190 - Bank Commission Charges,01/08/2013,1054276-2,235,REDACTED COMMERCIAL CONFIDENTIALITY,REDACTED COMMERCIAL CONFIDENTIALITY
Tendring DC,http://statistics.data.gov.uk/id/local-authority-district/22UN,Corporate Services,"1580 - Benefits, Revenues and Customer Contact SU",5186 - Paypoint/post office charges,01/08/2013,1054276-3,1456.73,REDACTED COMMERCIAL CONFIDENTIALITY,REDACTED COMMERCIAL CONFIDENTIALITY
Tendring DC,http://statistics.data.gov.uk/id/local-authority-district/22UN,Corporate Services,"1580 - Benefits, Revenues and Customer Contact SU",5186 - Paypoint/post office charges,01/08/2013,1054276-4,3169.81,REDACTED COMMERCIAL CONFIDENTIALITY,REDACTED COMMERCIAL CONFIDENTIALITY
Tendring DC,http://statistics.data.gov.uk/id/local-authority-district/22UN,Corporate Services,1210 - Facilities Management Service Unit,4300 - Printing & Stationery,01/08/2013,1054454-1,45.75,2100269 - Co operative Bank plc,KLN VISA AUG 13
Tendring DC,http://statistics.data.gov.uk/id/local-authority-district/22UN,Corporate Services,1210 - Facilities Management Service Unit,4300 - Printing & Stationery,01/08/2013,1054454-2,21,2100269 - Co operative Bank plc,KLN VISA AUG 13
Tendring DC,http://statistics.data.gov.uk/id/local-authority-district/22UN,Corporate Services,7025 - CDRP Support,4900 - Grants,01/08/2013,1054454-3,194.68,2100269 - Co operative Bank plc,KLN VISA AUG 13
Tendring DC,http://statistics.data.gov.uk/id/local-authority-district/22UN,Corporate Services,4720 - Dog Warden,4040 - Equipment & Tools,01/08/2013,1054454-4,87.47,2100269 - Co operative Bank plc,KLN VISA AUG 13
Tendring DC,http://statistics.data.gov.uk/id/local-authority-district/22UN,Corporate Services,6620 - Corporate Management - General,5190 - Bank Commission Charges,01/08/2013,1054454-5,2,2100269 - Co operative Bank plc,KLN VISA AUG 13
Tendring DC,http://statistics.data.gov.uk/id/local-authority-district/22UN,Corporate Services,6460 - Career Track,4688 - Career Track Exam Fees,20/08/2013,2110576-1,22,REDACTED PERSONAL DATA,REDACTED PERSONAL DATA
Tendring DC,http://statistics.data.gov.uk/id/local-authority-district/22UN,Corporate Services,1930 - Asset Management Service Unit,4469 - Other Non - Legal Professional Services,27/08/2013,1054537-1,100,2113249 - CPD Essentials,
Tendring DC,http://statistics.data.gov.uk/id/local-authority-district/22UN,Corporate Services,1760 - IT Direct Service Costs,4715 - Data Communication Charge,20/08/2013,2110458-1,5830,2106704 - Daisy Communications Ltd,Daisy July 13
Tendring DC,http://statistics.data.gov.uk/id/local-authority-district/22UN,Corporate Services,9920 - HRA Balance Sheet,B505 - DCLGM Capital Receipts Pooling Creditor,06/08/2013,2110297-1,112509.5,2100432 - DCLG,Housing Capital Receipts Pooling Payment Q1-2013/14
Tendring DC,http://statistics.data.gov.uk/id/local-authority-district/22UN,Corporate Services,1090 - Chief Executive and Support Service Unit,4400 - Maintenance Under Service Agreements,13/08/2013,1054092-1,8.5,2102826 - Eden Springs UK Ltd,BOTTLED WATER
Tendring DC,http://statistics.data.gov.uk/id/local-authority-district/22UN,Corporate Services,6620 - Corporate Management - General,5180 - External Audit Fees,13/08/2013,1054146-1,24119,2112514 - Ernst & Young,INSTALMENT 1 13/14
Tendring DC,http://statistics.data.gov.uk/id/local-authority-district/22UN,Corporate Services,7025 - CDRP Support,4900 - Grants,13/08/2013,1054094-1,500,2100498 - Essex County Council,CLIMBING WALL 3 AUG
Tendring DC,http://statistics.data.gov.uk/id/local-authority-district/22UN,Corporate Services,9880 - Collection Fund - Council Tax,R100 - Precept - ECC,15/08/2013,1054460-1,4616471,2100409 - Essex County Council,PRECEPT
Tendring DC,http://statistics.data.gov.uk/id/local-authority-district/22UN,Corporate Services,9880 - Collection Fund - Council Tax,R110 - Council Tax Balance - ECC,15/08/2013,1054460-2,92582,2100409 - Essex County Council,PRECEPT
Tendring DC,http://statistics.data.gov.uk/id/local-authority-district/22UN,Corporate Services,9890 - Collection Fund - NNDR,R127 - NNDR - Essex County Retention,15/08/2013,1054460-3,217766,2100409 - Essex County Council,PRECEPT
Tendring DC,http://statistics.data.gov.uk/id/local-authority-district/22UN,Corporate Services,6683 - Second Homes Discount Scheme,8109 - Second Homes Discount Scheme - ECC Contribution,15/08/2013,1054460-4,-37770,2100409 - Essex County Council,PRECEPT
Tendring DC,http://statistics.data.gov.uk/id/local-authority-district/22UN,Corporate Services,6680 - Other Corporate Costs,4589 - Hired Services - Actuaries Costs FRS17/IAS19,20/08/2013,2110569-1,426.12,2100498 - Essex County Council,IAS19 Charge 2013
Tendring DC,http://statistics.data.gov.uk/id/local-authority-district/22UN,Corporate Services,7025 - CDRP Support,4900 - Grants,20/08/2013,2110570-1,275,2100498 - Essex County Council,Danbury Outdoors
Tendring DC,http://statistics.data.gov.uk/id/local-authority-district/22UN,Corporate Services,8971 - MIRS - Contributions Payable to the Pension Scheme,1816 - Superannuation Deficiency Contribution,07/08/2013,7009464-3,137750,2100419 - Essex County Council,Pension 00013
Tendring DC,http://statistics.data.gov.uk/id/local-authority-district/22UN,Corporate Services,8971 - MIRS - Contributions Payable to the Pension Scheme,1810 - Superannuation - Financial Strain/Added Years,07/08/2013,7009464-4,17231.46,2100419 - Essex County Council,Pension 00013
Tendring DC,http://statistics.data.gov.uk/id/local-authority-district/22UN,Corporate Services,8971 - MIRS - Contributions Payable to the Pension Scheme,1822 - Superannuation - Port Health Pensions etc.,07/08/2013,7009465-2,726.01,2100419 - Essex County Council,Port Health Authority
Tendring DC,http://statistics.data.gov.uk/id/local-authority-district/22UN,Corporate Services,9880 - Collection Fund - Council Tax,R101 - Precept - Essex Fire,15/08/2013,1054458-1,282150,2100469 - Essex Fire Authority,PRECEPT
Tendring DC,http://statistics.data.gov.uk/id/local-authority-district/22UN,Corporate Services,9880 - Collection Fund - Council Tax,R111 - Council Tax Balance - Essex Fire,15/08/2013,1054458-2,5658,2100469 - Essex Fire Authority,PRECEPT
Tendring DC,http://statistics.data.gov.uk/id/local-authority-district/22UN,Corporate Services,9890 - Collection Fund - NNDR,R128 - NNDR - Fire Retention,15/08/2013,1054458-3,24196,2100469 - Essex Fire Authority,PRECEPT
Tendring DC,http://statistics.data.gov.uk/id/local-authority-district/22UN,Corporate Services,6683 - Second Homes Discount Scheme,8109 - Second Homes Discount Scheme - ECC Contribution,15/08/2013,1054458-4,-2106,2100469 - Essex Fire Authority,PRECEPT
Tendring DC,http://statistics.data.gov.uk/id/local-authority-district/22UN,Corporate Services,9880 - Collection Fund - Council Tax,R102 - Precept - Essex Police,15/08/2013,1054459-1,601001,2100500 - Essex Police Authority,PRECEPT
Tendring DC,http://statistics.data.gov.uk/id/local-authority-district/22UN,Corporate Services,9880 - Collection Fund - Council Tax,R112 - Council Tax Balance - Essex Police,15/08/2013,1054459-2,11647,2100500 - Essex Police Authority,PRECEPT
Tendring DC,http://statistics.data.gov.uk/id/local-authority-district/22UN,Corporate Services,1660 - Other Apportionable Overheads,4609 - Child Care Vouchers Management Fee,07/08/2013,1054048-2,80.9,REDACTED PERSONAL DATA,REDACTED PERSONAL DATA
Tendring DC,http://statistics.data.gov.uk/id/local-authority-district/22UN,Corporate Services,7025 - CDRP Support,4900 - Grants,27/08/2013,2110684-1,55,2100546 - GCS Alarms,Footage from CCTV (Nic)
Tendring DC,http://statistics.data.gov.uk/id/local-authority-district/22UN,Corporate Services,1800 - Qualification and Other Training,1510 - Interview Expenses - Recruitment,13/08/2013,1054067-1,50,2113274 - Gerard McHugh,
Tendring DC,http://statistics.data.gov.uk/id/local-authority-district/22UN,Corporate Services,1180 - Benefit Fraud Investigation Service Unit,4459 - External Legal Advice,27/08/2013,1054550-1,577.44,2100672 - Harris Cuffaro & Nichols Solicitors,
Tendring DC,http://statistics.data.gov.uk/id/local-authority-district/22UN,Corporate Services,1180 - Benefit Fraud Investigation Service Unit,4459 - External Legal Advice,27/08/2013,1054550-2,3,2100672 - Harris Cuffaro & Nichols Solicitors,
Tendring DC,http://statistics.data.gov.uk/id/local-authority-district/22UN,Corporate Services,C350 - Hardware rolling replacement programme,C275 - Hardware,20/08/2013,2110468-1,9300,2105003 - Hewlett Packard Ltd,
Tendring DC,http://statistics.data.gov.uk/id/local-authority-district/22UN,Corporate Services,1815 - Personnel and Human Resources Issues,1708 - Training - New Programme Development Courses,20/08/2013,2110574-1,82.9,2113297 - Highfield.co.uk Ltd,Highfield
Tendring DC,http://statistics.data.gov.uk/id/local-authority-district/22UN,Corporate Services,1815 - Personnel and Human Resources Issues,1708 - Training - New Programme Development Courses,20/08/2013,2110574-2,8,2113297 - Highfield.co.uk Ltd,Highfield
Tendring DC,http://statistics.data.gov.uk/id/local-authority-district/22UN,Corporate Services,1760 - IT Direct Service Costs,4751 - Hardware & Service Maintenance,20/08/2013,2110459-1,1840,2102228 - Incoms Systems PLC,
Tendring DC,http://statistics.data.gov.uk/id/local-authority-district/22UN,Corporate Services,8520 - Frinton & Walton Swimming Pool,2100 - Building Repairs,07/08/2013,1054005-1,17.31,2100782 - Insight Direct (uk) Limited,CS100692
Tendring DC,http://statistics.data.gov.uk/id/local-authority-district/22UN,Corporate Services,8520 - Frinton & Walton Swimming Pool,2100 - Building Repairs,07/08/2013,1054006-1,17.31,2100782 - Insight Direct (uk) Limited,CS100707
Tendring DC,http://statistics.data.gov.uk/id/local-authority-district/22UN,Corporate Services,8540 - Leisure Centre Clacton,5500 - Miscellaneous Expenses,20/08/2013,2110464-1,34.62,2100782 - Insight Direct (uk) Limited,
Tendring DC,http://statistics.data.gov.uk/id/local-authority-district/22UN,Corporate Services,1760 - IT Direct Service Costs,4751 - Hardware & Service Maintenance,20/08/2013,2110465-1,44.58,2100782 - Insight Direct (uk) Limited,
Tendring DC,http://statistics.data.gov.uk/id/local-authority-district/22UN,Corporate Services,1000 - Community Services Service Unit,3311 - Travelling Career Track,27/08/2013,1054538-1,36,REDACTED PERSONAL DATA,REDACTED PERSONAL DATA
Tendring DC,http://statistics.data.gov.uk/id/local-authority-district/22UN,Corporate Services,1300 - Legal Services Service Unit,4880 - Subscriptions Paid,27/08/2013,1054567-1,300,2113289 - Lawyers in Local Government,MEMBERSHIP FEE
Tendring DC,http://statistics.data.gov.uk/id/local-authority-district/22UN,Corporate Services,1760 - IT Direct Service Costs,6325 - Additional Services,07/08/2013,1054007-1,3377.01,2108077 - Liberata Financial Services Ltd,VARIOUS
Tendring DC,http://statistics.data.gov.uk/id/local-authority-district/22UN,Corporate Services,1760 - IT Direct Service Costs,4715 - Data Communication Charge,07/08/2013,1054007-2,175,2108077 - Liberata Financial Services Ltd,VARIOUS
Tendring DC,http://statistics.data.gov.uk/id/local-authority-district/22UN,Corporate Services,1760 - IT Direct Service Costs,4715 - Data Communication Charge,07/08/2013,1054007-3,229.41,2108077 - Liberata Financial Services Ltd,VARIOUS
Tendring DC,http://statistics.data.gov.uk/id/local-authority-district/22UN,Corporate Services,1520 - Head of Planning and Customer Services,1700 - Training - Courses,07/08/2013,1054007-4,30,2108077 - Liberata Financial Services Ltd,VARIOUS
Tendring DC,http://statistics.data.gov.uk/id/local-authority-district/22UN,Corporate Services,1240 - Housing Services Service Unit,1700 - Training - Courses,07/08/2013,1054007-5,120,2108077 - Liberata Financial Services Ltd,VARIOUS
Tendring DC,http://statistics.data.gov.uk/id/local-authority-district/22UN,Corporate Services,1760 - IT Direct Service Costs,6320 - IT Services Agreements Payment,07/08/2013,2110295-1,51622.01,2108077 - Liberata Financial Services Ltd,Jul-13
Tendring DC,http://statistics.data.gov.uk/id/local-authority-district/22UN,Corporate Services,1760 - IT Direct Service Costs,4715 - Data Communication Charge,20/08/2013,2110509-1,100,2108077 - Liberata Financial Services Ltd,Liberata Various
Tendring DC,http://statistics.data.gov.uk/id/local-authority-district/22UN,Corporate Services,1760 - IT Direct Service Costs,4715 - Data Communication Charge,20/08/2013,2110509-2,181.25,2108077 - Liberata Financial Services Ltd,Liberata Various
Tendring DC,http://statistics.data.gov.uk/id/local-authority-district/22UN,Corporate Services,1760 - IT Direct Service Costs,6325 - Additional Services,20/08/2013,2110509-3,1385,2108077 - Liberata Financial Services Ltd,Liberata Various
Tendring DC,http://statistics.data.gov.uk/id/local-authority-district/22UN,Corporate Services,1240 - Housing Services Service Unit,1700 - Training - Courses,20/08/2013,2110509-4,450,2108077 - Liberata Financial Services Ltd,Liberata Various
Tendring DC,http://statistics.data.gov.uk/id/local-authority-district/22UN,Corporate Services,7025 - CDRP Support,4900 - Grants,13/08/2013,1054095-1,315,2111739 - Love To Eat,TEEN FRIENDLY BUFFET 70
Tendring DC,http://statistics.data.gov.uk/id/local-authority-district/22UN,Corporate Services,1300 - Legal Services Service Unit,4503 - Counsels Fees,13/08/2013,2110413-1,2500,2101798 - Mr David Altaras,The Old Pumping Station
Tendring DC,http://statistics.data.gov.uk/id/local-authority-district/22UN,Corporate Services,5480 - HRA - Repair & Maintenance,2804 - Premises Insurance - General,27/08/2013,1054536-1,210.01,REDACTED PERSONAL DATA,REDACTED PERSONAL DATA
Tendring DC,http://statistics.data.gov.uk/id/local-authority-district/22UN,Corporate Services,6620 - Corporate Management - General,5160 - Advertising,07/08/2013,1053968-1,281.83,2100989 - Newsquest (London) Ltd,ACCOUNTS INSPECTION
Tendring DC,http://statistics.data.gov.uk/id/local-authority-district/22UN,Corporate Services,6460 - Career Track,4688 - Career Track Exam Fees,20/08/2013,2110575-1,78.4,REDACTED PERSONAL DATA,REDACTED PERSONAL DATA
Tendring DC,http://statistics.data.gov.uk/id/local-authority-district/22UN,Corporate Services,6460 - Career Track,4688 - Career Track Exam Fees,20/08/2013,2110581-1,78.4,REDACTED PERSONAL DATA,REDACTED PERSONAL DATA
Tendring DC,http://statistics.data.gov.uk/id/local-authority-district/22UN,Corporate Services,6460 - Career Track,4688 - Career Track Exam Fees,27/08/2013,2110655-1,78.4,REDACTED PERSONAL DATA,REDACTED PERSONAL DATA
Tendring DC,http://statistics.data.gov.uk/id/local-authority-district/22UN,Corporate Services,1320 - Print Unit Service Unit,4302 - External Print Unit Expenses,07/08/2013,1054013-1,150,2111844 - Optimumprint,JOB 267/268
Tendring DC,http://statistics.data.gov.uk/id/local-authority-district/22UN,Corporate Services,1320 - Print Unit Service Unit,4302 - External Print Unit Expenses,20/08/2013,2110571-1,10,2111844 - Optimumprint,Job 277
Tendring DC,http://statistics.data.gov.uk/id/local-authority-district/22UN,Corporate Services,6460 - Career Track,4688 - Career Track Exam Fees,27/08/2013,2110656-1,43.5,REDACTED PERSONAL DATA,REDACTED PERSONAL DATA
Tendring DC,http://statistics.data.gov.uk/id/local-authority-district/22UN,Corporate Services,6460 - Career Track,4688 - Career Track Exam Fees,27/08/2013,2110657-1,71.5,2100425 - Pearson,Pearson Reg
Tendring DC,http://statistics.data.gov.uk/id/local-authority-district/22UN,Corporate Services,6460 - Career Track,4688 - Career Track Exam Fees,27/08/2013,2110658-1,14.5,2100425 - Pearson,Pearson Reg
Tendring DC,http://statistics.data.gov.uk/id/local-authority-district/22UN,Corporate Services,6460 - Career Track,4688 - Career Track Exam Fees,27/08/2013,2110659-1,120,2100425 - Pearson,Pearson
Tendring DC,http://statistics.data.gov.uk/id/local-authority-district/22UN,Corporate Services,6460 - Career Track,4688 - Career Track Exam Fees,27/08/2013,2110660-1,101.5,2100425 - Pearson,Pearson FS Reg
Tendring DC,http://statistics.data.gov.uk/id/local-authority-district/22UN,Corporate Services,6460 - Career Track,4688 - Career Track Exam Fees,27/08/2013,2110661-1,14.5,2100425 - Pearson,Pearson Reg
Tendring DC,http://statistics.data.gov.uk/id/local-authority-district/22UN,Corporate Services,6460 - Career Track,4688 - Career Track Exam Fees,27/08/2013,2110662-1,29,2100425 - Pearson,Pearson Reg
Tendring DC,http://statistics.data.gov.uk/id/local-authority-district/22UN,Corporate Services,6460 - Career Track,4688 - Career Track Exam Fees,27/08/2013,2110663-1,58,REDACTED PERSONAL DATA,REDACTED PERSONAL DATA
Tendring DC,http://statistics.data.gov.uk/id/local-authority-district/22UN,Corporate Services,6460 - Career Track,4688 - Career Track Exam Fees,27/08/2013,2110664-1,29,REDACTED PERSONAL DATA,REDACTED PERSONAL DATA
